Workbook

Sheet CF (hidden)
B2: CONDITIONAL FORMATTING MAP
F3: =INDEX(dms_CF_3.6.5, MATCH(dms_TradingName,dms_CF_TradingName))="Y" | G3: =INDEX(dms_CF_3.6.7.1, MATCH(dms_TradingName,dms_CF_TradingName))="Y" | H3: =INDEX(dms_CF_3.6.7.2, MATCH(dms_TradingName,dms_CF_TradingName))="Y" | I3: =INDEX(dms_CF_3.6.7.3, MATCH(dms_TradingName,dms_CF_TradingName))="Y" | J3: =INDEX(dms_CF_3.6.7.4, MATCH(dms_TradingName,dms_CF_TradingName))="Y" | K3: =INDEX(dms_CF_6.6.1, MATCH(dms_TradingName,dms_CF_TradingName))="Y" | L3: =INDEX(dms_CF_6.8, MATCH(dms_TradingName,dms_CF_TradingName))="Y" | M3: =INDEX(dms_CF_7.12, MATCH(dms_TradingName,dms_CF_TradingName))="Y" | N3: =INDEX(dms_CF_8.1_A, MATCH(dms_TradingName,dms_CF_TradingName))="Y" | O3: =INDEX(dms_CF_8.1_B, MATCH(dms_TradingName,dms_CF_TradingName))="Y" | P3: =INDEX(dms_CF_8.1_Neg, MATCH(dms_TradingName,dms_CF_TradingName))="Y"
B4: dms_CF_TradingName | C4: JurisdictionList | D4: Sector | E4: Segment | F4: dms_CF_3.6.5 | G4: dms_CF_3.6.7.1 | H4: dms_CF_3.6.7.2 | I4: dms_CF_3.6.7.3 | J4: dms_CF_3.6.7.4 | K4: dms_CF_6.6.1 | L4: dms_CF_6.8 | M4: dms_CF_7.12 | N4: dms_CF_8.1_A | O4: dms_CF_8.1_B | P4: dms_CF_8.1_Neg | Q4: Spare1 | R4: Spare2
B5: ActewAGL Distribution | C5: ACT | D5: Electricity | E5: Distribution | F5: Y | G5: Y | H5: Y | I5: N | J5: Y | K5: N | L5: Y | M5: Y | N5: N | O5: Y | P5: Y | Q5: N | R5: N
B6: Ausgrid | C6: NSW | D6: Electricity | E6: Distribution | F6: Y | G6: N | H6: N | I6: N | J6: Y | K6: N | L6: Y | M6: Y | N6: N | O6: Y | P6: Y | Q6: N | R6: N
B7: AusNet (D) | C7: Vic | D7: Electricity | E7: Distribution | F7: N | G7: N | H7: N | I7: N | J7: N | K7: N | L7: Y | M7: N | N7: N | O7: N | P7: Y | Q7: N | R7: N
B8: AusNet (T) | C8: Vic | D8: Electricity | E8: Transmission | F8: N | G8: N | H8: N | I8: N | J8: N | K8: N | L8: Y | M8: N | N8: N | O8: N | P8: Y | Q8: N | R8: N
B9: CitiPower | C9: Vic | D9: Electricity | E9: Distribution | F9: N | G9: N | H9: N | I9: N | J9: N | K9: N | L9: Y | M9: N | N9: N | O9: N | P9: Y | Q9: N | R9: N
B10: Directlink | C10: Qld | D10: Electricity | E10: Transmission | F10: N | G10: N | H10: N | I10: N | J10: N | K10: N | L10: Y | M10: N | N10: N | O10: Y | P10: Y | Q10: N | R10: N
B11: ElectraNet | C11: SA | D11: Electricity | E11: Transmission | F11: N | G11: N | H11: N | I11: N | J11: N | K11: N | L11: Y | M11: N | N11: N | O11: Y | P11: Y | Q11: N | R11: N
B12: Endeavour Energy | C12: NSW | D12: Electricity | E12: Distribution | F12: Y | G12: N | H12: N | I12: N | J12: Y | K12: N | L12: Y | M12: Y | N12: N | O12: Y | P12: Y | Q12: N | R12: N
B13: Energex | C13: Qld | D13: Electricity | E13: Distribution | F13: Y | G13: N | H13: N | I13: N | J13: N | K13: N | L13: Y | M13: Y | N13: N | O13: Y | P13: Y | Q13: N | R13: N
B14: Ergon Energy | C14: Qld | D14: Electricity | E14: Distribution | F14: Y | G14: N | H14: N | I14: N | J14: N | K14: N | L14: Y | M14: Y | N14: N | O14: Y | P14: Y | Q14: N | R14: N
B15: Essential Energy | C15: NSW | D15: Electricity | E15: Distribution | F15: Y | G15: N | H15: N | I15: N | J15: Y | K15: N | L15: Y | M15: Y | N15: N | O15: Y | P15: Y | Q15: N | R15: N
B16: Jemena Electricity | C16: Vic | D16: Electricity | E16: Distribution | F16: N | G16: N | H16: N | I16: N | J16: N | K16: N | L16: Y | M16: N | N16: N | O16: N | P16: Y | Q16: N | R16: N
B17: Murraylink | C17: SA | D17: Electricity | E17: Transmission | F17: N | G17: N | H17: N | I17: N | J17: N | K17: N | L17: Y | M17: N | N17: N | O17: Y | P17: Y | Q17: N | R17: N
B18: Power and Water | C18: NT | D18: Electricity | E18: Distribution | F18: N | G18: N | H18: Y | I18: N | J18: N | K18: Y | L18: Y | M18: Y | N18: N | O18: Y | P18: Y | Q18: N | R18: N
B19: Powercor Australia | C19: Vic | D19: Electricity | E19: Distribution | F19: N | G19: N | H19: N | I19: N | J19: N | K19: N | L19: Y | M19: N | N19: N | O19: N | P19: Y | Q19: N | R19: N
B20: Powerlink | C20: Qld | D20: Electricity | E20: Transmission | F20: N | G20: N | H20: N | I20: N | J20: N | K20: N | L20: Y | M20: N | N20: N | O20: Y | P20: Y | Q20: N | R20: N
B21: SA Power Networks | C21: SA | D21: Electricity | E21: Distribution | F21: Y | G21: N | H21: N | I21: N | J21: N | K21: N | L21: Y | M21: Y | N21: Y | O21: Y | P21: N | Q21: N | R21: N
B22: TasNetworks (D) | C22: Tas | D22: Electricity | E22: Distribution | F22: Y | G22: N | H22: N | I22: N | J22: N | K22: N | L22: Y | M22: Y | N22: N | O22: Y | P22: Y | Q22: N | R22: N
B23: TasNetworks (T) | C23: Tas | D23: Electricity | E23: Transmission | F23: N | G23: N | H23: N | I23: N | J23: N | K23: N | L23: Y | M23: N | N23: N | O23: Y | P23: Y | Q23: N | R23: N
B24: TransGrid | C24: NSW | D24: Electricity | E24: Transmission | F24: N | G24: N | H24: N | I24: N | J24: N | K24: N | L24: Y | M24: N | N24: N | O24: Y | P24: Y | Q24: N | R24: N
B25: United Energy | C25: Vic | D25: Electricity | E25: Distribution | F25: N | G25: N | H25: N | I25: N | J25: N | K25: N | L25: Y | M25: N | N25: N | O25: N | P25: Y | Q25: N | R25: N

Sheet AER only (hidden)
B1: Data in these columns used for data validation and database purposes.
B2: Date last modified: | C2: 2017-01-16 | D2: added (Albury and Victora) for AGN
C3: 2016-10-17 | D3: updated TransGrid's correct legal name, corrected TasNetworks (T) to June financial year
C4: 2017-02-01 | D4: inserted Power and Water, added NRs (dms_FeederCat_1 and dms_FeederCat_2)
C5: 2017-03-03 | D5: inserted AEMO as a business | AB5: FOR ELECTRICITY BUSINESSES ONLY
C6: 2018-03-28 | D6: major changes to accommodate STPIS
C7: Template Version | D7: 5 | AB7: Feeder Types | AF7: TasNetworks (D) | AG7: MAIFI flag | AH7: Feeder Names
AB9: CBD | AC9: Urban | AD9: Short rural | AE9: long rural | AF9: EXTRA
B10: dms_TradingName_List | C10: dms_TradingNameFull_List | D10: dms_ABN_List | E10: dms_JurisdictionList | F10: dms_Sector_List | G10: dms_Segment_List | H10: dms_FormControl_List | I10: dms_RPT_List | J10: dms_RPTMonth_List | K10: dms_CRCPlength_List | L10: dms_FRCPlength_List | M10: dms_663_List | N10: dms_DeterminationRef_List | O10: dms_Addr1_List | P10: dms_Addr2_List | Q10: dms_Suburb_List | R10: dms_State_List | S10: dms_PostCode_List | T10: dms_PAddr1_List | U10: dms_PAddr2_List | V10: dms_PSuburb_List | W10: dms_PState_List | X10: dms_PPostCode_List | Y10: dms_ContactName1_List | Z10: dms_ContactPh1_List | AA10: dms_ContactEmail_List | AB10: dms_CBD_flag | AC10: dms_Urban_flag | AD10: dms_ShortRural_flag | AE10: dms_LongRural_flag | AF10: dms_FeederType_5_flag | AG10: dms_MAIFI_flag_List | AH10: dms_FeederName_1 | AI10: dms_FeederName_2 | AJ10: dms_FeederName_3 | AK10: dms_FeederName_4 | AL10: dms_FeederName_5 | AM10: dms_Public_Lighting_List | AN10: Column1
B11: ActewAGL Distribution | C11: ActewAGL Distribution | D11: 76670568688 | E11: ACT | F11: Electricity | G11: Distribution | H11: Revenue cap | I11: Financial | J11: June | K11: 5 | L11: 5 | M11: 5 | N11: 2014-19 Distribution Determination | O11: 40 Bunda Street | Q11: CANBERRA | R11: ACT | S11: 2600 | T11: GPO BOX 366 | V11: CANBERRA | W11: ACT | X11: 2601 | Y11: Robert Walker | Z11: 02 6248 3847 | AA11: robert.walker@actewagle.com.au | AB11: NO | AC11: YES | AD11: YES | AE11: NO | AF11: NO | AG11: NO | AH11: CBD | AI11: Urban | AJ11: Short rural | AK11: Long rural | AM11: YES | AN11: ActewAGL Distribution
B12: ActewAGL Distribution (Tx Assets) | C12: ActewAGL Distribution (Tx Assets) | D12: 76670568688 | E12: ACT | F12: Electricity | G12: Distribution | H12: Revenue cap | I12: Financial | J12: June | K12: 5 | L12: 5 | M12: 5 | N12: distribution determination | O12: 40 Bunda Street | Q12: CANBERRA | R12: ACT | S12: 2600 | T12: GPO BOX 366 | V12: CANBERRA | W12: ACT | X12: 2601 | Y12: Robert Walker | Z12: 02 6248 3847 | AA12: robert.walker@actewagle.com.au | AB12: NO | AC12: YES | AD12: YES | AE12: NO | AF12: NO | AG12: NO | AH12: CBD | AI12: Urban | AJ12: Short rural | AK12: Long rural | AM12: NO | AN12: ActewAGL Distribution (Tx Assets)
B13: ActewAGL Gas | C13: ActewAGL Gas | D13: 76670568688 | E13: ACT | F13: Gas | G13: Distribution | H13: Weighted average price cap | I13: Financial | J13: June | K13: 5 | L13: 5 | M13: x | O13: 40 Bunda Street | Q13: CANBERRA | R13: ACT | S13: 2600 | T13: GPO BOX 366 | V13: CANBERRA | W13: ACT | X13: 2601 | Y13: Philip Deamer | Z13: 02 6248 3438 | AA13: GasAAReview@actewagl.com.au | AB13: NO | AC13: NO | AD13: NO | AE13: NO | AF13: NO | AG13: - | AH13: CBD | AI13: Urban | AJ13: Short rural | AK13: Long rural | AM13: NO | AN13: ActewAGL Gas
B14: AEMO | C14: Australian Energy Market Operator Ltd | D14: 94072010327 | E14: Vic | F14: Electricity | G14: Transmission | H14: - | I14: Financial | J14: March | K14: 5 | L14: 5 | M14: x | N14: - | O14: Level 22 | P14: 530 Collins Street | Q14: MELBOURNE | R14: VIC | S14: 3000 | T14: GPO Box 2008 | V14: MELBOURNE | W14: VIC | X14: 3001 | AB14: NO | AC14: NO | AD14: NO | AE14: NO | AF14: NO | AG14: - | AH14: CBD | AI14: Urban | AJ14: Short rural | AK14: Long rural | AM14: NO | AN14: AEMO
B15: AGN (Albury and Victoria) | C15: Australian Gas Networks Limited (reporting data for Albury and Victoria) | D15: 19078551685 | E15: Vic | F15: Gas | G15: Distribution | H15: Weighted average price cap | I15: Calendar | J15: December | K15: 5 | L15: 5 | M15: x | O15: Level 6 | P15: 400 King William Street | Q15: ADELAIDE | R15: SA | S15: 5000 | T15: PO Box 6468 | U15: Halifax Street | V15: ADELAIDE | W15: SA | X15: 5000 | Y15: Craig de Laine | Z15: 08 8418 1129 | AA15: craig.delaine@agn.com.au | AB15: NO | AC15: NO | AD15: NO | AE15: NO | AF15: NO | AG15: - | AH15: CBD | AI15: Urban | AJ15: Short rural | AK15: Long rural | AM15: NO | AN15: AGN (Albury)
B16: AGN (Albury) | C16: Australian Gas Networks Limited (reporting data for Albury) | D16: 19078551685 | E16: Vic | F16: Gas | G16: Distribution | H16: Weighted average price cap | I16: Calendar | J16: December | K16: 5 | L16: 5 | M16: x | O16: Level 6 | P16: 400 King William Street | Q16: ADELAIDE | R16: SA | S16: 5000 | T16: PO Box 6468 | U16: Halifax Street | V16: ADELAIDE | W16: SA | X16: 5000 | Y16: Craig de Laine | Z16: 08 8418 1129 | AA16: craig.delaine@agn.com.au | AB16: NO | AC16: NO | AD16: NO | AE16: NO | AF16: NO | AG16: - | AH16: CBD | AI16: Urban | AJ16: Short rural | AK16: Long rural | AM16: NO
B17: AGN (SA) | C17: Australian Gas Networks Limited (reporting data for SA) | D17: 19078551685 | E17: SA | F17: Gas | G17: Distribution | H17: Weighted average price cap | I17: Financial | J17: June | K17: 5 | L17: 5 | M17: 5 | N17: distribution determination | O17: Level 6 | P17: 400 King William Street | Q17: ADELAIDE | R17: SA | S17: 5000 | T17: PO Box 6468 | U17: Halifax Street | V17: ADELAIDE | W17: SA | X17: 5000 | Y17: Craig de Laine | Z17: 08 8418 1129 | AA17: craig.delaine@agn.com.au | AB17: NO | AC17: NO | AD17: NO | AE17: NO | AF17: NO | AG17: - | AH17: CBD | AI17: Urban | AJ17: Short rural | AK17: Long rural | AM17: NO | AN17: AGN (SA)
B18: AGN (Victoria) | C18: Australian Gas Networks Limited (reporting data for Victoria) | D18: 19078551685 | E18: Vic | F18: Gas | G18: Distribution | H18: Weighted average price cap | I18: Calendar | J18: December | K18: 5 | L18: 5 | M18: x | O18: Level 6 | P18: 400 King William Street | Q18: ADELAIDE | R18: SA | S18: 5000 | T18: PO Box 6468 | U18: Halifax Street | V18: ADELAIDE | W18: SA | X18: 5000 | Y18: Craig de Laine | Z18: 08 8418 1129 | AA18: craig.delaine@agn.com.au | AB18: NO | AC18: NO | AD18: NO | AE18: NO | AF18: NO | AG18: - | AH18: CBD | AI18: Urban | AJ18: Short rural | AK18: Long rural | AM18: NO | AN18: AGN (Victoria)
B19: Amadeus | C19: APT Pipelines (NT) Pty Ltd | D19: 39009737393 | E19: NT | F19: Gas | G19: Transmission | H19: Weighted average price cap | I19: Financial | J19: June | K19: 5 | L19: 5 | M19: x | N19: n/a | O19: Level 19, HSBC Building | P19: 580 George Street | Q19: SYDNEY | R19: NSW | S19: 2000 | T19: Level 19, HSBC Building | U19: 580 George Street | V19: SYDNEY | W19: NSW | X19: 2000 | Y19: Alexandra Curran | Z19: 02 9275 0020 | AA19: alexandra.curran@apa.com.au | AB19: NO | AC19: NO | AD19: NO | AE19: NO | AF19: NO | AG19: - | AH19: CBD | AI19: Urban | AJ19: Short rural | AK19: Long rural | AM19: NO | AN19: Amadeus
B20: APA GasNet | C20: APA GasNet Australia (Operations) Pty Ltd | D20: 065083009 | E20: Vic | F20: Gas | G20: Transmission | H20: Weighted average price cap | I20: Calendar | J20: December | K20: 5 | L20: 5 | M20: x | O20: Level 19, HSBC Building | P20: 580 George Street | Q20: SYDNEY | R20: NSW | S20: 2000 | T20: PO Box R41 | V20: ROYAL EXCHANGE | W20: NSW | X20: 1225 | Y20: Alexandra Curran | Z20: 02 9275 0020 | AA20: alexandra.curran@apa.com.au | AB20: NO | AC20: NO | AD20: NO | AE20: NO | AF20: NO | AG20: - | AH20: CBD | AI20: Urban | AJ20: Short rural | AK20: Long rural | AM20: NO | AN20: APA GasNet
B21: Ausgrid | C21: Ausgrid | D21: 78508211731 | E21: NSW | F21: Electricity | G21: Distribution | H21: Revenue cap | I21: Financial | J21: June | K21: 5 | L21: 5 | M21: 5 | N21: 2014-19 Distribution Determination | O21: 570 George St | Q21: SYDNEY | R21: NSW | S21: 2000 | T21: GPO Box 4009 | V21: SYDNEY | W21: NSW | X21: 2001 | Y21: John Thomson | Z21: 02 9269 2312 | AA21: john.thomson@ausgrid.com.au | AB21: YES | AC21: YES | AD21: YES | AE21: YES | AF21: NO | AG21: NO | AH21: CBD | AI21: Urban | AJ21: Short rural | AK21: Long rural | AM21: YES | AN21: Ausgrid
B22: Ausgrid (Tx Assets) | C22: Ausgrid (Tx Assets) | D22: 67505337385 | E22: NSW | F22: Electricity | G22: Distribution | H22: Revenue cap | I22: Financial | J22: June | K22: 5 | L22: 5 | M22: 5 | N22: distribution determination | O22: 570 George St | Q22: SYDNEY | R22: NSW | S22: 2000 | T22: GPO Box 4009 | V22: SYDNEY | W22: NSW | X22: 2001 | Y22: John Thomson | Z22: 02 9269 2312 | AA22: john.thomson@ausgrid.com.au | AB22: YES | AC22: YES | AD22: YES | AE22: YES | AF22: NO | AG22: NO | AH22: CBD | AI22: Urban | AJ22: Short rural | AK22: Long rural | AM22: NO | AN22: Ausgrid (Tx Assets)
B23: AusNet (D) | C23: AusNet Electricity Services Pty Ltd | D23: 91064651118 | E23: Vic | F23: Electricity | G23: Distribution | H23: Revenue cap | I23: Calendar | J23: December | K23: 5 | L23: 5 | M23: 2 | N23: 2016-20 Distribution Determination | O23: Level 32 | P23: 2 Southbank Boulevard | Q23: SOUTHBANK | R23: Vic | S23: 3006 | T23: Locked Bag 14051 | V23: MELBOURNE CITY MAIL CENTRE | W23: VIC | X23: 8001 | Y23: please provide contact details | AB23: NO | AC23: YES | AD23: YES | AE23: YES | AF23: NO | AG23: YES | AH23: CBD | AI23: Urban | AJ23: Short rural | AK23: Long rural | AM23: YES | AN23: AusNet (D)
B24: AusNet (Gas) | C24: AusNet Gas Services | D24: 086015036 | E24: Vic | F24: Gas | G24: Distribution | H24: Weighted average price cap | I24: Calendar | J24: December | K24: 5 | L24: 5 | M24: X | O24: Level 19, HSBC Building | P24: 580 George Street | Q24: SYDNEY | R24: NSW | S24: 2000 | T24: PO Box R41 | V24: ROYAL EXCHANGE | W24: NSW | X24: 1225 | Y24: Alexandra Curran | Z24: 02 9275 0020 | AA24: alexandra.curran@apa.com.au | AB24: NO | AC24: NO | AD24: NO | AE24: NO | AF24: NO | AG24: - | AH24: CBD | AI24: Urban | AJ24: Short rural | AK24: Long rural | AM24: NO | AN24: AusNet (Gas)
B25: AusNet (T) | C25: Ausnet Services (Transmission) Ltd | D25: 48116124362 | E25: Vic | F25: Electricity | G25: Transmission | H25: Revenue cap | I25: Financial | J25: March | K25: 5 | L25: 5 | M25: 2 | N25: transmission determination | O25: Level 32 | P25: 2 Southbank Boulevard | Q25: SOUTHBANK | R25: Vic | S25: 3006 | T25: Locked Bag 14051 | V25: MELBOURNE CITY MAIL CENTRE | W25: Vic | X25: 8001 | Y25: Clare Thompson | Z25: 03 9695 6670 | AA25: clare.e.thompson@ausnetservices.com.au | AB25: NO | AC25: NO | AD25: NO | AE25: NO | AF25: NO | AG25: - | AH25: CBD | AI25: Urban | AJ25: Short rural | AK25: Long rural | AM25: NO | AN25: AusNet (T)
B26: Australian Distribution Co. | C26: Australian Distribution Co. | D26: 11222333444 | E26: - | F26: Electricity | G26: Distribution | H26: Revenue cap | I26: Financial | J26: June | K26: 5 | L26: 5 | M26: 2 | N26: distribution determination | O26: 123 Straight Street | Q26: SYDNEY | R26: NSW | S26: 2000 | T26: PO Box 123 | V26: SYDNEY | W26: NSW | X26: 2000 | Y26: Bob Smith | Z26: 02 1234 5678 | AA26: bob@auselec.net.au | AB26: YES | AC26: YES | AD26: YES | AE26: YES | AF26: NO | AG26: NO | AH26: CBD | AI26: Urban | AJ26: Short rural | AK26: Long rural | AM26: YES | AN26: Australian Distribution Co.
B27: Australian Distribution Co. (Gas) | C27: Australian Gas Distribution Co. | D27: 11222333444 | E27: NSW | F27: Gas | G27: Distribution | H27: Weighted average price cap | I27: Financial | J27: June | K27: 5 | L27: 5 | O27: 123 Straight Street | Q27: SYDNEY | R27: NSW | S27: 2000 | T27: PO Box 123 | V27: SYDNEY | W27: NSW | X27: 2000 | Y27: Bob Smith | Z27: 02 1234 5678 | AA27: bob@auselec.net.au | AB27: NO | AC27: NO | AD27: NO | AE27: NO | AF27: NO | AG27: - | AH27: CBD | AI27: Urban | AJ27: Short rural | AK27: Long rural | AM27: NO | AN27: Australian Distribution Co. (Vic)
B28: Australian Distribution Co. (Vic) | C28: Australian Distribution Co. (Victoria) | D28: 11222333444 | E28: Vic | F28: Electricity | G28: Distribution | H28: Revenue cap | I28: Calendar | J28: December | K28: 5 | L28: 5 | M28: 2 | N28: distribution determination | O28: 123 Straight Street | Q28: MELBOURNE | R28: Vic | S28: 3000 | T28: PO Box 123 | V28: MELBOURNE | W28: VIC | X28: 3000 | Y28: Bob Smith | Z28: 02 1234 5678 | AA28: bob@auselec.net.au | AB28: NO | AC28: NO | AD28: NO | AE28: NO | AF28: NO | AG28: YES | AH28: CBD | AI28: Urban | AJ28: Short rural | AK28: Long rural | AM28: YES | AN28: Australian Distribution Co. (Vic)
B29: Australian Transmission Co. | C29: Australian Transmission Co. | D29: 11222333444 | E29: - | F29: Electricity | G29: Transmission | H29: Revenue cap | I29: Financial | J29: June | K29: 5 | L29: 5 | M29: 5 | N29: transmission determination | O29: 123 Straight Street | Q29: SYDNEY | R29: NSW | S29: 2000 | T29: PO Box 123 | V29: SYDNEY | W29: NSW | X29: 2000 | Y29: Bob Smith | Z29: 02 1234 5678 | AA29: bob@auselec.net.au | AB29: NO | AC29: NO | AD29: NO | AE29: NO | AF29: NO | AG29: - | AH29: CBD | AI29: Urban | AJ29: Short rural | AK29: Long rural | AM29: NO | AN29: Australian Transmission Co.
B30: Central Ranges Pipeline (D) | C30: Central Ranges Pipeline Pty Ltd | D30: 108218355 | E30: NSW | F30: Gas | G30: Distribution | H30: Weighted average price cap | I30: Financial | J30: June | K30: 15 | L30: 5 | M30: 5 | N30: distribution determination | O30: Level 19 | P30: 580 George Street | Q30: SYDNEY | R30: NSW | S30: 2000 | T30: PO Box R41 | V30: ROYAL EXCHANGE | W30: NSW | X30: 1225 | Y30: Scott Young | Z30: 02 9275 0031 | AA30: scott.young@apa.com.au | AB30: NO | AC30: NO | AD30: NO | AE30: NO | AF30: NO | AG30: - | AH30: CBD | AI30: Urban | AJ30: Short rural | AK30: Long rural | AM30: NO
B31: Central Ranges Pipeline (T) | C31: Central Ranges Pipeline Pty Ltd | D31: 108218355 | E31: NSW | F31: Gas | G31: Distribution | H31: Weighted average price cap | I31: Financial | J31: June | K31: 14 | L31: 5 | M31: 5 | N31: transmission determination | O31: Level 19 | P31: 580 George Street | Q31: SYDNEY | R31: NSW | S31: 2000 | T31: PO Box R41 | V31: ROYAL EXCHANGE | W31: NSW | X31: 1225 | Y31: Scott Young | Z31: 02 9275 0031 | AA31: scott.young@apa.com.au | AB31: NO | AC31: NO | AD31: NO | AE31: NO | AF31: NO | AG31: - | AH31: CBD | AI31: Urban | AJ31: Short rural | AK31: Long rural | AM31: NO
B32: CitiPower | C32: CitiPower | D32: 76064651056 | E32: Vic | F32: Electricity | G32: Distribution | H32: Revenue cap | I32: Calendar | J32: December | K32: 5 | L32: 5 | M32: 2 | N32: 2016-20 Distribution Determination | O32: 40 Market Street | Q32: MELBOURNE | R32: Vic | S32: 3000 | T32: Locked Bag 14090 | V32: MELBOURNE | W32: VIC | X32: 8001 | Y32: Hannah Williams | Z32: 03 9683 4088 | AA32: hwilliams@powercor.com.au | AB32: YES | AC32: YES | AD32: NO | AE32: NO | AF32: NO | AG32: YES | AH32: CBD | AI32: Urban | AJ32: Short rural | AK32: Long rural | AM32: YES | AN32: CitiPower
B33: Directlink | C33: Directlink | D33: 16779340889 | E33: Qld | F33: Electricity | G33: Transmission | H33: Revenue cap | I33: Financial | J33: June | K33: 5 | L33: 5 | M33: 5 | N33: transmission determination | O33: Level 19, HSBC Building | P33: 580 George Street | Q33: SYDNEY | R33: NSW | S33: 2000 | T33: PO Box R41 | V33: ROYAL EXCHANGE | W33: NSW | X33: 1225 | Y33: Scott Young | Z33: 02 9275 0031 | AA33: scott.young@apa.com.au | AB33: NO | AC33: NO | AD33: NO | AE33: NO | AF33: NO | AG33: - | AH33: CBD | AI33: Urban | AJ33: Short rural | AK33: Long rural | AM33: NO | AN33: Directlink
B34: ElectraNet | C34: ElectraNet | D34: 41094482416 | E34: SA | F34: Electricity | G34: Transmission | H34: Revenue cap | I34: Financial | J34: June | K34: 5 | L34: 5 | M34: 5 | N34: transmission determination | O34: 52-55 East Terrace | P34: Rymill Park | Q34: ADELAIDE | R34: SA | S34: 5000 | T34: PO Box 7096 | U34: Hutt Street Post Office | V34: ADELAIDE | W34: SA | X34: 5000 | Y34: Bill Jackson | Z34: 08 8404 7969 | AA34: jackson.bill@electranet.com.au | AB34: NO | AC34: NO | AD34: NO | AE34: NO | AF34: NO | AG34: - | AH34: CBD | AI34: Urban | AJ34: Short rural | AK34: Long rural | AM34: NO | AN34: ElectraNet
B35: Endeavour Energy | C35: Endeavour Energy | D35: 11247365823 | E35: NSW | F35: Electricity | G35: Distribution | H35: Revenue cap | I35: Financial | J35: June | K35: 5 | L35: 5 | M35: 5 | N35: 2014-19 Distribution Determination | O35: 51 Huntingwood Drive | Q35: HUNTINGWOOD | R35: NSW | S35: 2148 | T35: PO Box 811 | V35: SEVEN HILLS | W35: NSW | X35: 1730 | Y35: Jon Hocking | Z35: 02 9853 4386 / 0407 348 156 | AA35: Jon.Hocking@Endeavourenergy.com.au | AB35: NO | AC35: YES | AD35: YES | AE35: YES | AF35: NO | AG35: NO | AH35: CBD | AI35: Urban | AJ35: Short rural | AK35: Long rural | AM35: YES | AN35: Endeavour Energy
B36: Energex | C36: Energex | D36: 40078849055 | E36: Qld | F36: Electricity | G36: Distribution | H36: Revenue cap | I36: Financial | J36: June | K36: 5 | L36: 5 | M36: 5 | N36: 2015-20 Distribution Determination | O36: 26 Reddacliff Street | Q36: NEWSTEAD | R36: Qld | S36: 4006 | T36: 26 Reddacliff Street | V36: NEWSTEAD | W36: QLD | X36: 4006 | Y36: Jenny Doyle, Group Manager Regulatory Affairs | Z36: (07) 3851 6416 | AA36: jenny.doyle@ergon.com.au | AB36: YES | AC36: YES | AD36: YES | AE36: NO | AF36: NO | AG36: NO | AH36: CBD | AI36: Urban | AJ36: Short rural | AK36: Long rural | AM36: YES | AN36: Energex
B37: Ergon Energy | C37: Ergon Energy | D37: 50087646062 | E37: Qld | F37: Electricity | G37: Distribution | H37: Revenue cap | I37: Financial | J37: June | K37: 5 | L37: 5 | M37: 5 | N37: 2015-20 Distribution Determination | O37: 22 Walker Street | Q37: TOWNSVILLE | R37: Qld | S37: 4810 | T37: Po Box 264 | V37: FORTITUDE VALLEY | W37: QLD | X37: 4006 | Y37: Jenny Doyle, Group Manager Regulatory Affairs | Z37: (07) 3851 6416 | AA37: jenny.doyle@ergon.com.au | AB37: NO | AC37: YES | AD37: YES | AE37: YES | AF37: NO | AG37: NO | AH37: CBD | AI37: Urban | AJ37: Short rural | AK37: Long rural | AM37: YES | AN37: Ergon Energy
B38: Essential Energy | C38: Essential Energy | D38: 37428185226 | E38: NSW | F38: Electricity | G38: Distribution | H38: Revenue cap | I38: Financial | J38: June | K38: 5 | L38: 5 | M38: 5 | N38: 2014-19 Distribution Determination | O38: 8 Buller Street | Q38: PORT MACQUARIE | R38: NSW | S38: 2444 | T38: PO Box 5730 | V38: PORT MACQUARIE | W38: NSW | X38: 2444 | Y38: Catherine Waddell | Z38: 02 6338 3553 | AA38: catherine.waddell@essentialenergy.com.au | AB38: NO | AC38: NO | AD38: YES | AE38: YES | AF38: NO | AG38: NO | AH38: CBD | AI38: Urban | AJ38: Short rural | AK38: Long rural | AM38: YES | AN38: Essential Energy
B39: Jemena Electricity | C39: Jemena Electricity | D39: 82064651083 | E39: Vic | F39: Electricity | G39: Distribution | H39: Revenue cap | I39: Calendar | J39: December | K39: 5 | L39: 5 | M39: 2 | N39: 2016-20 Distribution Determination | O39: Level 16 | P39: 567 Collins Street | Q39: MELBOURNE | R39: VIC | S39: 3000 | T39: PO Box 16182 | V39: MELBOURNE | W39: VIC | X39: 8001 | Y39: Matthew Serpell | Z39: 03 9173 8231 | AA39: matthew.serpell@jemena.com.au | AB39: NO | AC39: YES | AD39: YES | AE39: NO | AF39: NO | AG39: YES | AH39: CBD | AI39: Urban | AJ39: Short rural | AK39: Long rural | AM39: YES | AN39: Jemena Electricity
B40: JGN | C40: Jemena Gas Networks (NSW) Ltd | D40: 003 004 322 | E40: NSW | F40: Gas | G40: Distribution | H40: Weighted average price cap | I40: Financial | J40: June | K40: 5 | L40: 5 | Y40: please provide contact details | AB40: NO | AC40: NO | AD40: NO | AE40: NO | AF40: NO | AG40: - | AH40: CBD | AI40: Urban | AJ40: Short rural | AK40: Long rural | AM40: NO | AN40: JGN
B41: Multinet Gas | C41: Multinet Gas (DB No.1) Pty Ltd (ACN 086 026 986), Multinet Gas (DB No.2) Pty Ltd (ACN 086 230 122) | D41: 086026986 | E41: Vic | F41: Gas | G41: Distribution | H41: Weighted average price cap | I41: Calendar | J41: December | K41: 5 | L41: 5 | M41: x | O41: 43-45 Centreway | Q41: MT WAVERLEY | R41: Vic | S41: 3149 | Y41: Andrew Schille | Z41: 03 8846 9860 | AA41: andrew.schille@ue.com.au | AB41: NO | AC41: NO | AD41: NO | AE41: NO | AF41: NO | AG41: - | AH41: CBD | AI41: Urban | AJ41: Short rural | AK41: Long rural | AM41: NO | AN41: Multinet Gas
B42: Murraylink | C42: Murraylink | D42: 79181207909 | E42: SA | F42: Electricity | G42: Transmission | H42: Revenue cap | I42: Financial | J42: June | K42: 5 | L42: 5 | M42: 5 | N42: transmission determination | O42: Level 19 | P42: 580 George Street | Q42: SYDNEY | R42: NSW | S42: 2000 | T42: PO Box R41 | V42: ROYAL EXCHANGE | W42: NSW | X42: 1225 | Y42: Scott Young | Z42: 02 9275 0031 | AA42: scott.young@apa.com.au | AB42: NO | AC42: NO | AD42: NO | AE42: NO | AF42: NO | AG42: - | AH42: CBD | AI42: Urban | AJ42: Short rural | AK42: Long rural | AM42: NO | AN42: Murraylink
B43: Power and Water | C43: Power and Water Corporation | D43: 15947352360 | E43: NT | F43: Electricity | G43: Distribution | H43: Revenue cap | I43: Financial | J43: June | K43: 5 | L43: 5 | M43: x | N43: distribution determination | O43: GPO Box 1921 | Q43: DARWIN | R43: NT | S43: 801 | T43: GPO Box 1921 | V43: DARWIN | W43: NT | X43: 801 | Y43: Lucy Moon | Z43: 08 8924 5822 | AA43: Lucy.Moon@powerwater.com.au | AB43: YES | AC43: YES | AD43: YES | AE43: YES | AF43: NO | AG43: NO | AH43: CBD | AI43: Urban | AJ43: Short rural | AK43: Long rural | AM43: NO | AN43: Power and Water
B44: Powercor Australia | C44: Powercor Australia | D44: 89064651109 | E44: Vic | F44: Electricity | G44: Distribution | H44: Revenue cap | I44: Calendar | J44: December | K44: 5 | L44: 5 | M44: 2 | N44: 2016-20 Distribution Determination | O44: 40 Market Street | Q44: MELBOURNE | R44: Vic | S44: 3000 | T44: Locked bag 14090 | V44: MELBOURNE | W44: VIC | X44: 8001 | Y44: Hannah Williams | Z44: 03 9683 4088 | AA44: hwilliams@powercor.com.au | AB44: NO | AC44: NO | AD44: YES | AE44: YES | AF44: NO | AG44: YES | AH44: CBD | AI44: Urban | AJ44: Short rural | AK44: Long rural | AM44: YES | AN44: Powercor Australia
B45: Powerlink | C45: Queensland Electricity Transmission Corporation Limited trading as Powerlink Queensland | D45: 82078849233 | E45: Qld | F45: Electricity | G45: Transmission | H45: Revenue cap | I45: Financial | J45: June | K45: 5 | L45: 5 | M45: 5 | N45: transmission determination | O45: 33 Harold St | Q45: VIRGINIA | R45: Qld | S45: 4014 | T45: PO Box 1193 | V45: VIRGINIA | W45: QLD | X45: 4014 | Y45: Jennifer Harris | Z45: 07 3860 2667 | AA45: jharris@powerlink.com.au | AB45: NO | AC45: NO | AD45: NO | AE45: NO | AF45: NO | AG45: - | AH45: CBD | AI45: Urban | AJ45: Short rural | AK45: Long rural | AM45: NO | AN45: Powerlink
B46: Roma to Brisbane Pipeline | C46: APT Petroleum Pipelines Limited t/a Roma to Brisbane Pipeline | D46: 009 737 393 | E46: Qld | F46: Gas | G46: Transmission | H46: Weighted average price cap | I46: Financial | J46: June | K46: 5 | L46: 5 | M46: x | N46: n/a | O46: 580 George Street | Q46: SYDNEY | R46: NSW | S46: 2000 | T46: PO Box R41 | V46: ROYAL EXCHANGE | W46: NSW | X46: 1225 | Y46: Mark Allen | Z46: 02 9275 0010 | AA46: mark.allen@apa.com.au | AB46: NO | AC46: NO | AD46: NO | AE46: NO | AF46: NO | AG46: - | AH46: CBD | AI46: Urban | AJ46: Short rural | AK46: Long rural | AM46: NO | AN46: Roma to Brisbane Pipeline
B47: SA Power Networks | C47: SA Power Networks | D47: 13332330749 | E47: SA | F47: Electricity | G47: Distribution | H47: Revenue cap | I47: Financial | J47: June | K47: 5 | L47: 5 | M47: 5 | N47: 2015-20 Distribution Determination | O47: 1 Anzac Highway | Q47: KESWICK | R47: SA | S47: 5035 | T47: GPO Box 77 | V47: ADELAIDE | W47: SA | X47: 5000 | Y47: Richard Sibly | Z47: 08 8404 5613 | AA47: richard.sibly@sapowernetworks.com.au | AB47: NO | AC47: NO | AD47: YES | AE47: YES | AF47: NO | AG47: NO | AH47: CBD | AI47: Urban | AJ47: Short rural | AK47: Long rural | AM47: NO | AN47: SA Power Networks
B48: TasNetworks (D) | C48: TasNetworks (D) | D48: 24167357299 | E48: Tas | F48: Electricity | G48: Distribution | H48: Revenue cap | I48: Financial | J48: June | K48: 5 | L48: 5 | M48: 5 | N48: distribution determination | O48: 1-7 Maria Street | Q48: LENAH VALLEY | R48: Tas | S48: 7008 | T48: PO Box 606 | V48: MOONAH | W48: Tas | X48: 7009 | Y48: John Sayers | Z48: 03 6271 6469 | AA48: john.sayers@tasnetworks.com.au | AB48: YES | AC48: YES | AD48: YES | AE48: YES | AF48: YES | AG48: NO | AH48: Critical Infrastructure | AI48: High density commercial | AJ48: Urban | AK48: High density rural | AL48: Low density rural | AM48: YES | AN48: TasNetworks (D)
B49: TasNetworks (T) | C49: TasNetworks (T) | D49: 24167357299 | E49: Tas | F49: Electricity | G49: Transmission | H49: Revenue cap | I49: Financial | J49: June | K49: 5 | L49: 5 | M49: 5 | N49: transmission determination | O49: 1-7 Maria Street | Q49: LENAH VALLEY | R49: Tas | S49: 7008 | T49: PO Box 606 | V49: MOONAH | W49: Tas | X49: 7009 | Y49: John Sayers | Z49: 03 6271 6469 | AA49: john.sayers@tasnetworks.com.au | AB49: NO | AC49: NO | AD49: NO | AE49: NO | AF49: NO | AG49: - | AH49: CBD | AI49: Urban | AJ49: Short rural | AK49: Long rural | AM49: NO | AN49: TasNetworks (T)
B50: TransGrid | C50: NSW Electricity Networks Operations Pty Ltd trading as TransGrid | D50: 70 250 995 390 | E50: NSW | F50: Electricity | G50: Transmission | H50: Revenue cap | I50: Financial | J50: June | K50: 4 | L50: 5 | M50: 5 | N50: transmission determination | O50: 180 Thomas Street | Q50: SYDNEY | R50: NSW | S50: 2000 | T50: PO Box A1000 | V50: SYDNEY SOUTH | W50: NSW | X50: 1235 | Y50: Garrie Chubb | Z50: 0408 210 221 | AA50: garrie.chubb@transgrid.com.au | AB50: NO | AC50: NO | AD50: NO | AE50: NO | AF50: NO | AG50: - | AH50: CBD | AI50: Urban | AJ50: Short rural | AK50: Long rural | AM50: NO | AN50: TransGrid
B51: United Energy | C51: United Energy | D51: 70064651029 | E51: Vic | F51: Electricity | G51: Distribution | H51: Revenue cap | I51: Calendar | J51: December | K51: 5 | L51: 5 | M51: 2 | N51: 2016-20 Distribution Determination | O51: Level 3 | P51: 6 Nexus Court | Q51: MULGRAVE | R51: Vic | S51: 3149 | T51: PO Box 449 | V51: MOUNT WAVERLEY | W51: VIC | X51: 3170 | Y51: Mathew Abraham | Z51: 03 8846 9758 | AA51: mathew.abraham@ue.com.au | AB51: NO | AC51: NO | AD51: YES | AE51: NO | AF51: NO | AG51: YES | AH51: CBD | AI51: Urban | AJ51: Short rural | AK51: Long rural | AM51: YES | AN51: United Energy
Z54: For EB & Reset RINs only | AE54: For AARs only
B55: The Reg Year Ending (dms_RYE) must be set to the last year of the regulatory period. For forecast data is is usually (FRCP_y5) for actual it is a single year (CRY). For historical actual data the RYE will need to be set manually in the business details sheet by setting the dms_Multiyear_flag to 1 and putting the correct value in 'dms_Specified_FinalYear. See cells C67:C68 | N55: Drop down selector box for CA & Reset RINs. | O55: For CA & Reset RINs only | Z55: for DNSP only | AE55: For DNSPs only
B56: dms_Model_List | C56: dms_Worksheet_List | E56: dms_RYE_Formula_Result | N56: dms_0203_ProjectType | O56: dms_020303_01_UOM | P56: dms_020501_01_UOM | Q56: dms_020501_02_UOM | R56: dms_020501_03_UOM | S56: dms_020501_04_UOM | T56: dms_020603_01_UOM | U56: dms_020701_01_UOM | V56: dms_020701_02_UOM | W56: dms_020701_01_Rows | X56: dms_040102_01_UOM | Y56: dms_040102_04_UOM | Z56: dms_030601_01_UOM | AA56: dms_030601_02_UOM | AB56: dms_030701_01_UOM | AC56: dms_030702_01_UOM | AD56: dms_030703_01_UOM | AE56: dms_030605_UOM | AF56: dms_03060703_UOM
B57: ARR | C57: ANNUAL REPORTING STATEMENT | E57: =LEFT(dms_SingleYear_FinalYear_Result,2)&RIGHT(dms_SingleYear_FinalYear_Result,2) -> 2006 | F57: =LEFT(dms_SingleYear_FinalYear_Result,2)&RIGHT(dms_SingleYear_FinalYear_Result,2) | H57: Formula errors are OK | N57: New line on new route - single circuit | O57: Circuit line length in km | P57: 0's | Q57: 0's | R57: 0's | S57: 0's | T57: 0's | U57: km | V57: km | W57: Route line length within zone | X57: 0's | Y57: days | Z57: minutes/customer | AA57: minutes/customer | AB57: Customer / km | AC57: % | AD57: km | AE57: number | AF57: number
B58: CA | C58: CATEGORY ANALYSIS | E58: =LEFT(dms_SingleYear_FinalYear_Result,2)&RIGHT(dms_SingleYear_FinalYear_Result,2) -> 2006 | F58: =LEFT(dms_SingleYear_FinalYear_Result,2)&RIGHT(dms_SingleYear_FinalYear_Result,2) | H58: Formula errors are OK | N58: New line on new route - dual circuit | O58: Circuit line length in km | P58: 0's | Q58: 0's | R58: 0's | S58: 0's | T58: 0's | U58: 0's | V58: 0's | W58: Number of maintenance spans | X58: 0's | Y58: 0's | Z58: minutes/customer | AA58: minutes/customer | AB58: MWh/customer | AC58: Number of spans | AE58: number | AF58: number
B59: CESS | C59: CAPITLAL EXPENDITURE SHARING SCHEMING | E59: 2016 | F59: =LEFT(dms_SingleYear_FinalYear_Result,2)&RIGHT(dms_SingleYear_FinalYear_Result,2) | N59: New line on new route - other | O59: Circuit line length in km | P59: MVA added | Q59: MVA added | R59: MVA added | S59: MVA added | T59: 0's | U59: km | V59: km | W59: Total length of maintenance spans | X59: 0's | Y59: $0s | Z59: interruptions/customer | AA59: interruptions/customer | AB59: kVA / customer | AC59: Number of spans | AE59: number | AF59: number
B60: CPI | C60: CPI | N60: Line rebuild over existing route - single circuit | O60: Circuit line length in km | P60: 0's | Q60: 0's | R60: 0's | S60: 0's | T60: 0's | U60: km | V60: km | W60: Length of vegetation corridors | X60: $0s | Y60: 0's | Z60: interruptions/customer | AA60: interruptions/customer | AC60: Number of spans | AE60: number | AF60: number
B61: EB | C61: ECONOMIC BENCHMARKING | E61: =LEFT(dms_SingleYear_FinalYear_Result,2)&RIGHT(dms_SingleYear_FinalYear_Result,2) -> 2006 | F61: =LEFT(dms_SingleYear_FinalYear_Result,2)&RIGHT(dms_SingleYear_FinalYear_Result,2) | H61: Formula errors are OK | N61: Line rebuild over existing route - dual circuit | O61: Number | P61: total spend $0s | Q61: total spend $0s | R61: total spend $0s | S61: total spend $0s | T61: (per cent) | U61: 0's | V61: 0's | W61: Average number of trees per maintenance span | AC61: Number of spans | AE61: number | AF61: (per cent)
B62: PTRM | C62: POST TAX REVENUE MODEL | E62: =LEFT(dms_MultiYear_FinalYear_Result,2)&RIGHT(dms_MultiYear_FinalYear_Result,2) -> 2018 | F62: =LEFT(dms_MultiYear_FinalYear_Result,2)&RIGHT(dms_MultiYear_FinalYear_Result,2) | N62: Reconductor - Single circuit | O62: Number | P62: net circuit km added | Q62: net circuit km added | R62: net circuit km added | S62: net circuit km added | U62: years | V62: years | W62: Average frequency of cutting cycle | AC62: Years | AE62: number
B63: Reset | C63: REGULATORY REPORTING STATEMENT | E63: =LEFT(dms_MultiYear_FinalYear_Result,2)&RIGHT(dms_MultiYear_FinalYear_Result,2) -> 2018 | F63: =LEFT(dms_MultiYear_FinalYear_Result,2)&RIGHT(dms_MultiYear_FinalYear_Result,2) | H63: Formula errors are OK | N63: Reconductor - Dual circuit | O63: Number | P63: total spend $0s | Q63: total spend $0s | R63: total spend $0s | S63: total spend $0s | AC63: Years | AE63: number
B64: RFM | C64: ROLL FORWARD MODEL | E64: =LEFT(dms_CRCP_FinalYear_Result,2)&RIGHT(dms_CRCP_FinalYear_Result,2) -> 2018 | F64: =LEFT(dms_CRCP_FinalYear_Result,2)&RIGHT(dms_CRCP_FinalYear_Result,2) | N64: Other | P64: net circuit km added | Q64: net circuit km added | R64: net circuit km added | S64: net circuit km added | AC64: Trees | AE64: number
B65: WACC | C65: WEIGHTED AVERAGE COST OF CAPITAL | E65: =LEFT(dms_MultiYear_FinalYear_Result,2)&RIGHT(dms_MultiYear_FinalYear_Result,2) -> 2018 | F65: =LEFT(dms_MultiYear_FinalYear_Result,2)&RIGHT(dms_MultiYear_FinalYear_Result,2) | P65: total spend $0s | Q65: total spend $0s | R65: total spend $0s | S65: total spend $0s | AC65: Trees | AE65: number
P66: 0's | R66: $0s | AC66: Defects | AE66: number
B67: dms_DataQuality_List | P67: 0's | AC67: Defects | AE67: number
B68: Actual | P68: 0's | AC68: Spans | AE68: number
B69: Estimate | P69: $0s | AC69: km | AE69: (per cent)
B70: Consolidated | AC70: Spans | AE70: (per cent)
B71: Recast
B72: Public
O73: For PTRM files - this field set the text for the named range "DMS_Xfactor" which in all cases is simply the text "x factors" - this saves putting in each old gas PTRM file | Z73: for TNSP only
B74: For all files either AER or business needs to be able to specify the type of submission | C74: For PTRM & RFM templates we must provide a choice in case they change their form of control - otherwise it is drawn from the business specific lookup table above. | O74: DMS_Xfactor | Z74: dms_030601_01_UOM | AB74: dms_030701_01_UOM | AC74: dms_030702_01_UOM
B75: dms_SourceList | C75: dms_FormControl_Choices | O75: x factors | Z75: % | AB75: Number of spans | AC75: km
B76: After appeal | C76: Revenue cap | Z76: number | AB76: Years | AC76: %
B77: Draft decision | C77: Revenue yield | Z77: number | AB77: Trees | AC77: km
B78: Final decision | C78: Weighted average price cap | Z78: % | AB78: Defects | AC78: number
B79: PTRM update 1 | Z79: number | AB79: Number of spans
B80: PTRM update 2 | Z80: number | AB80: km
B81: PTRM update 3 | Z81: % | AB81: km
B82: PTRM update 4 | Z82: number | AB82: Number of spans
B83: PTRM update 5 | Z83: number
B84: PTRM update 6 | Z84: %
B85: PTRM update 7 | Z85: number
B86: Regulatory proposal | Z86: %
B87: Reporting | Z87: number
B88: Revised regulatory proposal | Z88: %
Z89: number
B93: Reason for interruption | C93: dms_Reason_Interruption_Detailed | D93: dms_Reason_Interruption | E93: dms_STPIS_Exclusion_List | F93: dms_020301_ProjectType_List | G93: dms_020302_ProjectType_List
B94: Animal | C94: Animal impact | D94: Animal | E94: Weather | F94: New substation establishment | G94: New line on new route - single circuit
C95: Animal nesting/burrowing, etc and other | D95: Asset failure | E95: Equipment failure | F95: Capacity upgrade | G95: New line on new route - dual circuit
C96: Other | D96: Other | E96: Operational error | F96: Voltage upgrade | G96: New line on new route - other
B97: Asset failure | C97: LV | D97: Overloads | E97: Vegetation | F97: Other | G97: Line rebuild over existing route - single circuit
C98: Distribution substation | D98: Planned | E98: Animals | G98: Line rebuild over existing route - dual circuit
C99: HV | D99: Network business | E99: Third party impacts | G99: Reconductor - Single circuit
C100: Zone substation | D100: Third party | E100: Transmission failure | G100: Reconductor - Dual circuit
C101: Subtransmission | D101: Unknown | E101: Load shedding | G101: Reconductor - Other
B102: Other | C102: insert description of 'other' | D102: Vegetation | E102: Inter-distributor connection failure | G102: Line upgrade - raising/retensoring
B103: Overloads | C103: - | D103: Weather | E103: Other | G103: Line upgrade - voltage upgrade
B104: Planned | C104: - | D104: 2 - STPIS Exclusion (3.3)(a) | G104: Line upgrade - capacity
B105: Network business | C105: Network error | D105: 3 - STPIS Exclusion (3.3)(a) | G105: String spare circuit
C106: Switching and protection error | D106: 4 - STPIS Exclusion (3.3)(a) | G106: Other
B107: Third party | C107: Fire | D107: 5 - STPIS Exclusion (3.3)(a)
C108: Other | D108: 6 - STPIS Exclusion (3.3)(a)
C109: Dig-in | D109: 7 - STPIS Exclusion (3.3)(a)
C110: Unauthorised access
C111: Vehicle impact
B112: Unknown | C112: Unknown
B113: Vegetation | C113: Blow-in/Fall-in - NSP responsibility
C114: Grow-in - NSP responsibility
C115: Blow-in/Fall-in - Other responsible party
C116: Grow-in - Other responsible party
B117: Weather
B118: 2 - STPIS Exclusion (3.3)(a)
B119: 3 - STPIS Exclusion (3.3)(a)
B120: 4 - STPIS Exclusion (3.3)(a)
B121: 5 - STPIS Exclusion (3.3)(a)
B122: 6 - STPIS Exclusion (3.3)(a)
B123: 7 - STPIS Exclusion (3.3)(a)
B131: These are indeces and lookup values for various dates. All step from the value placed in FRCP_y1 on the business and other details worksheet | C131: =IF(dms_FifthFeeder_flag_NSP="NO","This NSP has only 4 feeder categories","This NSP has 5 feeder categories") -> This NSP has only 4 feeder categories | O131: These date tables are currently used in the Recast templates to provide column headings and conditional formatting
B132: dms_FRCPlength_Num_List | C132: dms_FinalYear_List | D132: dms_CRCPlength_Num_List | E132: dms_CFinalYear_List | F132: dms_FRCP_years | H132: dms_CRCP_years | J132: dms_CRCP_index | L132: dms_Financial_Years | M132: dms_Calendar_Years | O132: CRY from input cell on business sheet | P132: CRY - financial | Q132: dms_FinYears | R132: CRY calendar | S132: dms_CalYears
B133: 1 | C133: dms_FRCP_y1 | D133: 1 | E133: CRCP_y1 | F133: =FRCP_y1 -> 2020-21 | G133: dms_FRCP_y1 | H133: =IF(dms_RPT="financial",VALUE(LEFT(dms_FRCP_y1,4)-1)&"-"&TEXT(VALUE(MID(dms_FRCP_y1,3,2)),"00"),VALUE(LEFT(dms_FRCP_y1,4)-1)) -> 2019-20 | I133: dms_CRCP_yZ | J133: 1 | L133: 2005-06 | M133: 2006 | O133: =CRY -> 2005-06 | P133: =VALUE(LEFT(CRY,4))&"-"&TEXT(MID(CRY,3,2)+1,"00") -> 2005-06 | Q133: dms_CRYf_y1 | R133: =VALUE(LEFT(CRY,4)+1) -> 2006 | S133: dms_CRYc_y1
B134: 2 | C134: dms_FRCP_y2 | D134: 2 | E134: CRCP_y2 | F134: =IF(dms_RPT="financial",VALUE(LEFT(dms_FRCP_y1,4)+1)&"-"&TEXT(VALUE(RIGHT(dms_FRCP_y1,2)+1),"00"),VALUE(LEFT(dms_FRCP_y1,4)+1)) -> 2021-22 | G134: dms_FRCP_y2 | H134: =IF(dms_RPT="financial",VALUE(LEFT(dms_CRCP_yZ,4)-1)&"-"&TEXT(VALUE(MID(dms_CRCP_yZ,3,2)),"00"),VALUE(LEFT(dms_CRCP_yZ,4)-1)) -> 2018-19 | I134: dms_CRCP_yY | J134: 2 | L134: 2006-07 | M134: 2007 | P134: =VALUE(LEFT(dms_CRYf_y1,4)+1)&"-"&TEXT(MID(dms_CRYf_y1,3,2)+2,"00") -> 2006-07 | Q134: dms_CRYf_y2 | R134: =VALUE(LEFT(dms_CRYc_y1,4)+1) -> 2007 | S134: dms_CRYc_y2
B135: 3 | C135: dms_FRCP_y3 | D135: 3 | E135: CRCP_y3 | F135: =IF(dms_RPT="financial",VALUE(LEFT(dms_FRCP_y2,4)+1)&"-"&TEXT(VALUE(RIGHT(dms_FRCP_y2,2)+1),"00"),VALUE(LEFT(dms_FRCP_y2,4)+1)) -> 2022-23 | G135: dms_FRCP_y3 | H135: =IF(dms_RPT="financial",VALUE(LEFT(dms_CRCP_yY,4)-1)&"-"&TEXT(VALUE(MID(dms_CRCP_yY,3,2)),"00"),VALUE(LEFT(dms_CRCP_yY,4)-1)) -> 2017-18 | I135: dms_CRCP_yX | J135: 3 | L135: 2007-08 | M135: 2008 | P135: =VALUE(LEFT(dms_CRYf_y2,4)+1)&"-"&TEXT(MID(dms_CRYf_y2,3,2)+2,"00") -> 2007-08 | Q135: dms_CRYf_y3 | R135: =VALUE(LEFT(dms_CRYc_y2,4)+1) -> 2008 | S135: dms_CRYc_y3
B136: 4 | C136: dms_FRCP_y4 | D136: 4 | E136: CRCP_y4 | F136: =IF(dms_RPT="financial",VALUE(LEFT(dms_FRCP_y3,4)+1)&"-"&TEXT(VALUE(RIGHT(dms_FRCP_y3,2)+1),"00"),VALUE(LEFT(dms_FRCP_y3,4)+1)) -> 2023-24 | G136: dms_FRCP_y4 | H136: =IF(dms_RPT="financial",VALUE(LEFT(dms_CRCP_yX,4)-1)&"-"&TEXT(VALUE(MID(dms_CRCP_yX,3,2)),"00"),VALUE(LEFT(dms_CRCP_yX,4)-1)) -> 2016-17 | I136: dms_CRCP_yW | J136: 4 | L136: 2008-09 | M136: 2009 | P136: =VALUE(LEFT(dms_CRYf_y3,4)+1)&"-"&TEXT(MID(dms_CRYf_y3,3,2)+2,"00") -> 2008-09 | Q136: dms_CRYf_y4 | R136: =VALUE(LEFT(dms_CRYc_y3,4)+1) -> 2009 | S136: dms_CRYc_y4
B137: 5 | C137: dms_FRCP_y5 | D137: 5 | E137: CRCP_y5 | F137: =IF(dms_RPT="financial",VALUE(LEFT(dms_FRCP_y4,4)+1)&"-"&TEXT(VALUE(RIGHT(dms_FRCP_y4,2)+1),"00"),VALUE(LEFT(dms_FRCP_y4,4)+1)) -> 2024-25 | G137: dms_FRCP_y5 | H137: =IF(dms_RPT="financial",VALUE(LEFT(dms_CRCP_yW,4)-1)&"-"&TEXT(VALUE(MID(dms_CRCP_yW,3,2)),"00"),VALUE(LEFT(dms_CRCP_yW,4)-1)) -> 2015-16 | I137: dms_CRCP_yV | J137: 5 | L137: 2009-10 | M137: 2010 | P137: =VALUE(LEFT(dms_CRYf_y4,4)+1)&"-"&TEXT(MID(dms_CRYf_y4,3,2)+2,"00") -> 2009-10 | Q137: dms_CRYf_y5 | R137: =VALUE(LEFT(dms_CRYc_y4,4)+1) -> 2010 | S137: dms_CRYc_y5
B138: 6 | C138: dms_FRCP_y6 | D138: 6 | E138: CRCP_y6 | F138: =IF(dms_RPT="financial",VALUE(LEFT(dms_FRCP_y5,4)+1)&"-"&TEXT(VALUE(RIGHT(dms_FRCP_y5,2)+1),"00"),VALUE(LEFT(dms_FRCP_y5,4)+1)) -> 2025-26 | G138: dms_FRCP_y6 | H138: =IF(dms_RPT="financial",VALUE(LEFT(dms_CRCP_yV,4)-1)&"-"&TEXT(VALUE(MID(dms_CRCP_yV,3,2)),"00"),VALUE(LEFT(dms_CRCP_yV,4)-1)) -> 2014-15 | I138: dms_CRCP_yU | J138: 6 | L138: 2010-11 | M138: 2011 | P138: =VALUE(LEFT(dms_CRYf_y5,4)+1)&"-"&TEXT(MID(dms_CRYf_y5,3,2)+2,"00") -> 2010-11 | Q138: dms_CRYf_y6 | R138: =VALUE(LEFT(dms_CRYc_y5,4)+1) -> 2011 | S138: dms_CRYc_y6
B139: 7 | C139: dms_FRCP_y7 | D139: 7 | E139: CRCP_y7 | F139: =IF(dms_RPT="financial",VALUE(LEFT(dms_FRCP_y6,4)+1)&"-"&TEXT(VALUE(RIGHT(dms_FRCP_y6,2)+1),"00"),VALUE(LEFT(dms_FRCP_y6,4)+1)) -> 2026-27 | G139: dms_FRCP_y7 | H139: =IF(dms_RPT="financial",VALUE(LEFT(dms_CRCP_yU,4)-1)&"-"&TEXT(VALUE(MID(dms_CRCP_yU,3,2)),"00"),VALUE(LEFT(dms_CRCP_yU,4)-1)) -> 2013-14 | I139: dms_CRCP_yT | J139: 7 | L139: 2011-12 | M139: 2012 | P139: =VALUE(LEFT(dms_CRYf_y6,4)+1)&"-"&TEXT(MID(dms_CRYf_y6,3,2)+2,"00") -> 2011-12 | Q139: dms_CRYf_y7 | R139: =VALUE(LEFT(dms_CRYc_y6,4)+1) -> 2012 | S139: dms_CRYc_y7
B140: 8 | C140: dms_FRCP_y8 | D140: 8 | E140: CRCP_y8 | F140: =IF(dms_RPT="financial",VALUE(LEFT(dms_FRCP_y7,4)+1)&"-"&TEXT(VALUE(RIGHT(dms_FRCP_y7,2)+1),"00"),VALUE(LEFT(dms_FRCP_y7,4)+1)) -> 2027-28 | G140: dms_FRCP_y8 | H140: =IF(dms_RPT="financial",VALUE(LEFT(dms_CRCP_yT,4)-1)&"-"&TEXT(VALUE(MID(dms_CRCP_yT,3,2)),"00"),VALUE(LEFT(dms_CRCP_yT,4)-1)) -> 2012-13 | I140: dms_CRCP_yS | J140: 8 | L140: 2012-13 | M140: 2013 | P140: =VALUE(LEFT(dms_CRYf_y7,4)+1)&"-"&TEXT(MID(dms_CRYf_y7,3,2)+2,"00") -> 2012-13 | Q140: dms_CRYf_y8 | R140: =VALUE(LEFT(dms_CRYc_y7,4)+1) -> 2013 | S140: dms_CRYc_y8
B141: 9 | C141: dms_FRCP_y9 | D141: 9 | E141: CRCP_y9 | F141: =IF(dms_RPT="financial",VALUE(LEFT(dms_FRCP_y8,4)+1)&"-"&TEXT(VALUE(RIGHT(dms_FRCP_y8,2)+1),"00"),VALUE(LEFT(dms_FRCP_y8,4)+1)) -> 2028-29 | G141: dms_FRCP_y9 | H141: =IF(dms_RPT="financial",VALUE(LEFT(dms_CRCP_yS,4)-1)&"-"&TEXT(VALUE(MID(dms_CRCP_yS,3,2)),"00"),VALUE(LEFT(dms_CRCP_yS,4)-1)) -> 2011-12 | I141: dms_CRCP_yR | J141: 9 | L141: 2013-14 | M141: 2014 | P141: =VALUE(LEFT(dms_CRYf_y8,4)+1)&"-"&TEXT(MID(dms_CRYf_y8,3,2)+2,"00") -> 2013-14 | Q141: dms_CRYf_y9 | R141: =VALUE(LEFT(dms_CRYc_y8,4)+1) -> 2014 | S141: dms_CRYc_y9
B142: 10 | C142: dms_FRCP_y10 | D142: 10 | E142: CRCP_y10 | F142: =IF(dms_RPT="financial",VALUE(LEFT(dms_FRCP_y9,4)+1)&"-"&TEXT(VALUE(RIGHT(dms_FRCP_y9,2)+1),"00"),VALUE(LEFT(dms_FRCP_y9,4)+1)) -> 2029-30 | G142: dms_FRCP_y10 | H142: =IF(dms_RPT="financial",VALUE(LEFT(dms_CRCP_yR,4)-1)&"-"&TEXT(VALUE(MID(dms_CRCP_yR,3,2)),"00"),VALUE(LEFT(dms_CRCP_yR,4)-1)) -> 2010-11 | I142: dms_CRCP_yQ | J142: 10 | L142: 2014-15 | M142: 2015 | P142: =VALUE(LEFT(dms_CRYf_y9,4)+1)&"-"&TEXT(MID(dms_CRYf_y9,3,2)+2,"00") -> 2014-15 | Q142: dms_CRYf_y10 | R142: =VALUE(LEFT(dms_CRYc_y9,4)+1) -> 2015 | S142: dms_CRYc_y10
B143: 11 | C143: dms_FRCP_y11 | D143: 11 | E143: CRCP_y11 | F143: =IF(dms_RPT="financial",VALUE(LEFT(dms_FRCP_y10,4)+1)&"-"&TEXT(VALUE(RIGHT(dms_FRCP_y10,2)+1),"00"),VALUE(LEFT(dms_FRCP_y10,4)+1)) -> 2030-31 | G143: dms_FRCP_y11 | H143: =IF(dms_RPT="financial",VALUE(LEFT(dms_CRCP_yQ,4)-1)&"-"&TEXT(VALUE(MID(dms_CRCP_yQ,3,2)),"00"),VALUE(LEFT(dms_CRCP_yQ,4)-1)) -> 2009-10 | I143: dms_CRCP_yP | J143: 11 | L143: 2015-16 | M143: 2016 | P143: =VALUE(LEFT(dms_CRYf_y10,4)+1)&"-"&TEXT(MID(dms_CRYf_y10,3,2)+2,"00") -> 2015-16 | Q143: dms_CRYf_y11 | R143: =VALUE(LEFT(dms_CRYc_y10,4)+1) -> 2016 | S143: dms_CRYc_y11
B144: 12 | C144: dms_FRCP_y12 | D144: 12 | E144: CRCP_y12 | F144: =IF(dms_RPT="financial",VALUE(LEFT(dms_FRCP_y11,4)+1)&"-"&TEXT(VALUE(RIGHT(dms_FRCP_y11,2)+1),"00"),VALUE(LEFT(dms_FRCP_y11,4)+1)) -> 2031-32 | G144: dms_FRCP_y12 | H144: =IF(dms_RPT="financial",VALUE(LEFT(dms_CRCP_yP,4)-1)&"-"&TEXT(VALUE(MID(dms_CRCP_yP,3,2)),"00"),VALUE(LEFT(dms_CRCP_yP,4)-1)) -> 2008-09 | I144: dms_CRCP_yO | J144: 12 | L144: 2016-17 | M144: 2017 | P144: =VALUE(LEFT(dms_CRYf_y11,4)+1)&"-"&TEXT(MID(dms_CRYf_y11,3,2)+2,"00") -> 2016-17 | Q144: dms_CRYf_y12 | R144: =VALUE(LEFT(dms_CRYc_y11,4)+1) -> 2017 | S144: dms_CRYc_y12
B145: 13 | C145: dms_FRCP_y13 | D145: 13 | E145: CRCP_y13 | F145: =IF(dms_RPT="financial",VALUE(LEFT(dms_FRCP_y12,4)+1)&"-"&TEXT(VALUE(RIGHT(dms_FRCP_y12,2)+1),"00"),VALUE(LEFT(dms_FRCP_y12,4)+1)) -> 2032-33 | G145: dms_FRCP_y13 | H145: =IF(dms_RPT="financial",VALUE(LEFT(dms_CRCP_yO,4)-1)&"-"&TEXT(VALUE(MID(dms_CRCP_yO,3,2)),"00"),VALUE(LEFT(dms_CRCP_yO,4)-1)) -> 2007-08 | I145: dms_CRCP_yN | J145: 13 | L145: 2017-18 | M145: 2018 | P145: =VALUE(LEFT(dms_CRYf_y12,4)+1)&"-"&TEXT(MID(dms_CRYf_y12,3,2)+2,"00") -> 2017-18 | Q145: dms_CRYf_y13 | R145: =VALUE(LEFT(dms_CRYc_y12,4)+1) -> 2018 | S145: dms_CRYc_y13
B146: 14 | C146: dms_FRCP_y14 | D146: 14 | E146: CRCP_y14 | F146: =IF(dms_RPT="financial",VALUE(LEFT(dms_FRCP_y13,4)+1)&"-"&TEXT(VALUE(RIGHT(dms_FRCP_y13,2)+1),"00"),VALUE(LEFT(dms_FRCP_y13,4)+1)) -> 2033-34 | G146: dms_FRCP_y14 | H146: =IF(dms_RPT="financial",VALUE(LEFT(dms_CRCP_yN,4)-1)&"-"&TEXT(VALUE(MID(dms_CRCP_yN,3,2)),"00"),VALUE(LEFT(dms_CRCP_yN,4)-1)) -> 2006-07 | I146: dms_CRCP_yM | J146: 14 | L146: 2018-19 | M146: 2019 | P146: =VALUE(LEFT(dms_CRYf_y13,4)+1)&"-"&TEXT(MID(dms_CRYf_y13,3,2)+2,"00") -> 2018-19 | Q146: dms_CRYf_y14 | R146: =VALUE(LEFT(dms_CRYc_y13,4)+1) -> 2019 | S146: dms_CRYc_y14
B147: 15 | C147: dms_FRCP_y15 | D147: 15 | E147: CRCP_y15 | F147: =IF(dms_RPT="financial",VALUE(LEFT(dms_FRCP_y14,4)+1)&"-"&TEXT(VALUE(RIGHT(dms_FRCP_y14,2)+1),"00"),VALUE(LEFT(dms_FRCP_y14,4)+1)) -> 2034-35 | G147: dms_FRCP_y15 | H147: =IF(dms_RPT="financial",VALUE(LEFT(dms_CRCP_yM,4)-1)&"-"&TEXT(VALUE(MID(dms_CRCP_yM,3,2)),"00"),VALUE(LEFT(dms_CRCP_yM,4)-1)) -> 2005-06 | I147: dms_CRCP_yL | J147: 15 | L147: 2019-20 | M147: 2020 | P147: =VALUE(LEFT(dms_CRYf_y14,4)+1)&"-"&TEXT(MID(dms_CRYf_y14,3,2)+2,"00") -> 2019-20 | Q147: dms_CRYf_y15 | R147: =VALUE(LEFT(dms_CRYc_y14,4)+1) -> 2020 | S147: dms_CRYc_y15
L148: 2020-21 | M148: 2021 | P148: =VALUE(LEFT(dms_CRYf_y15,4)+1)&"-"&TEXT(MID(dms_CRYf_y15,3,2)+2,"00") -> 2020-21 | Q148: dms_CRYf_y16 | R148: =VALUE(LEFT(dms_CRYc_y15,4)+1) -> 2021 | S148: dms_CRYc_y16
B149: These are drop down lists for businesses to select the correct FRCP_y1 on the business and other details worksheet. This also populates the column headings in the worksheets | L149: 2021-22 | M149: 2022 | P149: =VALUE(LEFT(dms_CRYf_y16,4)+1)&"-"&TEXT(MID(dms_CRYf_y16,3,2)+2,"00") -> 2021-22 | Q149: dms_CRYf_y17 | R149: =VALUE(LEFT(dms_CRYc_y16,4)+1) -> 2022 | S149: dms_CRYc_y17
B150: dms_RCP_fyear_list | C150: dms_CRY_ListF | D150: dms_CRY_ListC | E150: dms_RCP_cyear_list | F150: dms_FRCP_fyear_list | G150: dms_FRCP_ListF | H150: dms_FRCP_ListC | I150: dms_FRCP_cyear_list | L150: 2022-23 | M150: 2023 | P150: =VALUE(LEFT(dms_CRYf_y17,4)+1)&"-"&TEXT(MID(dms_CRYf_y17,3,2)+2,"00") -> 2022-23 | Q150: dms_CRYf_y18 | R150: =VALUE(LEFT(dms_CRYc_y17,4)+1) -> 2023 | S150: dms_CRYc_y18
B151: dms_y1 | C151: =CRY -> 2005-06 | D151: 2006 | E151: dms_cy1 | F151: dms_frcp_fy1 | G151: 2010-11 | H151: 2011 | I151: dms_crcp_cy1 | L151: 2023-24 | M151: 2024 | P151: =VALUE(LEFT(dms_CRYf_y18,4)+1)&"-"&TEXT(MID(dms_CRYf_y18,3,2)+2,"00") -> 2023-24 | Q151: dms_CRYf_y19 | R151: =VALUE(LEFT(dms_CRYc_y18,4)+1) -> 2024 | S151: dms_CRYc_y19
B152: dms_y2 | C152: =IF(dms_RPT="financial",VALUE(LEFT(CRY,4)+1)&"-"&TEXT(MID(CRY,3,2)+2,"00"),VALUE(LEFT(CRY,4)+1)) -> 2006-07 | D152: 2007 | E152: dms_cy2 | F152: dms_frcp_fy2 | G152: 2011-12 | H152: 2012 | I152: dms_crcp_cy2 | L152: 2024-25 | M152: 2025 | P152: =VALUE(LEFT(dms_CRYf_y19,4)+1)&"-"&TEXT(MID(dms_CRYf_y19,3,2)+2,"00") -> 2024-25 | Q152: dms_CRYf_y20 | R152: =VALUE(LEFT(dms_CRYc_y19,4)+1) -> 2025 | S152: dms_CRYc_y20
B153: dms_y3 | C153: =IF(dms_RPT="financial",VALUE(LEFT(dms_fy2,4)+1)&"-"&TEXT(MID(dms_fy2,3,2)+2,"00"),VALUE(LEFT(dms_fy2,4)+1)) -> 2007-08 | D153: 2008 | E153: dms_cy3 | F153: dms_frcp_fy3 | G153: 2012-13 | H153: 2013 | I153: dms_crcp_cy3 | L153: 2025-26 | M153: 2026
B154: dms_y4 | C154: =IF(dms_RPT="financial",VALUE(LEFT(dms_fy3,4)+1)&"-"&TEXT(MID(dms_fy3,3,2)+2,"00"),VALUE(LEFT(dms_fy3,4)+1)) -> 2008-09 | D154: 2009 | E154: dms_cy4 | F154: dms_frcp_fy4 | G154: 2013-14 | H154: 2014 | I154: dms_crcp_cy4 | L154: 2026-27 | M154: 2027
B155: dms_y5 | C155: =IF(dms_RPT="financial",VALUE(LEFT(dms_fy4,4)+1)&"-"&TEXT(MID(dms_fy4,3,2)+2,"00"),VALUE(LEFT(dms_fy4,4)+1)) -> 2009-10 | D155: 2010 | E155: dms_cy5 | F155: dms_frcp_fy5 | G155: 2014-15 | H155: 2015 | I155: dms_crcp_cy5 | L155: 2027-28 | M155: 2028
B156: dms_y6 | C156: =IF(dms_RPT="financial",VALUE(LEFT(dms_fy5,4)+1)&"-"&TEXT(MID(dms_fy5,3,2)+2,"00"),VALUE(LEFT(dms_fy5,4)+1)) -> 2010-11 | D156: 2011 | E156: dms_cy6 | F156: dms_frcp_fy6 | G156: 2015-16 | H156: 2016 | I156: dms_crcp_cy6 | L156: 2028-29 | M156: 2029
B157: dms_y7 | C157: =IF(dms_RPT="financial",VALUE(LEFT(dms_fy6,4)+1)&"-"&TEXT(MID(dms_fy6,3,2)+2,"00"),VALUE(LEFT(dms_fy6,4)+1)) -> 2011-12 | D157: 2012 | E157: dms_cy7 | F157: dms_frcp_fy7 | G157: 2016-17 | H157: 2017 | I157: dms_crcp_cy7 | L157: 2029-30 | M157: 2030
B158: dms_y8 | C158: =IF(dms_RPT="financial",VALUE(LEFT(dms_fy7,4)+1)&"-"&TEXT(MID(dms_fy7,3,2)+2,"00"),VALUE(LEFT(dms_fy7,4)+1)) -> 2012-13 | D158: 2013 | E158: dms_cy8 | F158: dms_frcp_fy8 | G158: 2017-18 | H158: 2018 | I158: dms_crcp_cy8 | L158: 2030-31 | M158: 2031
B159: dms_y9 | C159: =IF(dms_RPT="financial",VALUE(LEFT(dms_fy8,4)+1)&"-"&TEXT(MID(dms_fy8,3,2)+2,"00"),VALUE(LEFT(dms_fy8,4)+1)) -> 2013-14 | D159: 2014 | E159: dms_cy9 | F159: dms_frcp_fy9 | G159: 2018-19 | H159: 2019 | I159: dms_crcp_cy9 | L159: 2031-32 | M159: 2032
B160: dms_y10 | C160: =IF(dms_RPT="financial",VALUE(LEFT(dms_fy9,4)+1)&"-"&TEXT(MID(dms_fy9,3,2)+2,"00"),VALUE(LEFT(dms_fy9,4)+1)) -> 2014-15 | D160: 2015 | E160: dms_cy10 | F160: dms_frcp_fy10 | G160: 2019-20 | H160: 2020 | I160: dms_crcp_cy10 | L160: 2032-33 | M160: 2033
B161: dms_y11 | C161: =IF(dms_RPT="financial",VALUE(LEFT(dms_fy10,4)+1)&"-"&TEXT(MID(dms_fy10,3,2)+2,"00"),VALUE(LEFT(dms_fy10,4)+1)) -> 2015-16 | D161: 2016 | E161: dms_cy11 | F161: dms_frcp_fy11 | G161: 2020-21 | H161: 2021 | I161: dms_crcp_cy11 | L161: 2033-34 | M161: 2034
B162: dms_y12 | C162: =IF(dms_RPT="financial",VALUE(LEFT(dms_fy11,4)+1)&"-"&TEXT(MID(dms_fy11,3,2)+2,"00"),VALUE(LEFT(dms_fy11,4)+1)) -> 2016-17 | D162: 2017 | E162: dms_cy12 | F162: dms_frcp_fy12 | G162: 2021-22 | H162: 2022 | I162: dms_crcp_cy12 | L162: 2034-35 | M162: 2035
B163: dms_y13 | C163: =IF(dms_RPT="financial",VALUE(LEFT(dms_fy12,4)+1)&"-"&TEXT(MID(dms_fy12,3,2)+2,"00"),VALUE(LEFT(dms_fy12,4)+1)) -> 2017-18 | D163: 2018 | E163: dms_cy13 | F163: dms_frcp_fy13 | G163: 2022-23 | H163: 2023 | I163: dms_crcp_cy13 | L163: 2035-36 | M163: 2036
B164: dms_y14 | C164: =IF(dms_RPT="financial",VALUE(LEFT(dms_fy13,4)+1)&"-"&TEXT(MID(dms_fy13,3,2)+2,"00"),VALUE(LEFT(dms_fy13,4)+1)) -> 2018-19 | D164: 2019 | E164: dms_cy14 | F164: dms_frcp_fy14 | G164: 2023-24 | H164: 2024 | I164: dms_crcp_cy14
B165: dms_y15 | C165: =IF(dms_RPT="financial",VALUE(LEFT(dms_fy14,4)+1)&"-"&TEXT(MID(dms_fy14,3,2)+2,"00"),VALUE(LEFT(dms_fy14,4)+1)) -> 2019-20 | D165: 2020 | E165: dms_cy15 | F165: dms_frcp_fy15 | G165: 2024-25 | H165: 2025 | I165: dms_crcp_cy15
B166: dms_y16 | C166: =IF(dms_RPT="financial",VALUE(LEFT(dms_fy15,4)+1)&"-"&TEXT(MID(dms_fy15,3,2)+2,"00"),VALUE(LEFT(dms_fy15,4)+1)) -> 2020-21 | D166: 2021 | E166: dms_cy16
B167: dms_y17 | C167: =IF(dms_RPT="financial",VALUE(LEFT(dms_fy16,4)+1)&"-"&TEXT(MID(dms_fy16,3,2)+2,"00"),VALUE(LEFT(dms_fy16,4)+1)) -> 2021-22 | D167: 2022 | E167: dms_cy17
B168: dms_y18 | C168: =IF(dms_RPT="financial",VALUE(LEFT(dms_fy17,4)+1)&"-"&TEXT(MID(dms_fy17,3,2)+2,"00"),VALUE(LEFT(dms_fy17,4)+1)) -> 2022-23 | D168: 2023 | E168: dms_cy18
B169: dms_y19 | C169: =IF(dms_RPT="financial",VALUE(LEFT(dms_fy18,4)+1)&"-"&TEXT(MID(dms_fy18,3,2)+2,"00"),VALUE(LEFT(dms_fy18,4)+1)) -> 2023-24 | D169: 2024 | E169: dms_cy19
B170: dms_y20 | C170: =IF(dms_RPT="financial",VALUE(LEFT(dms_fy19,4)+1)&"-"&TEXT(MID(dms_fy19,3,2)+2,"00"),VALUE(LEFT(dms_fy19)+1)) -> 2024-25 | D170: 2025 | E170: dms_cy20
B176: These "row descriptions" are the column headings in the various templates but become row descriptions in the ETL process
C177: Table 6.3 sustained interruptions - row descriptions
C178: dms_060301_CustNo_Affected_Row | D178: dms_060301_Avg_Duration_Sustained_Int_Row | E178: dms_060301_Effect_unplanned_SAIDI_Row | F178: dms_060301_Effect_unplanned_SAIFI_Row
C179: Number of customers affected by the interruption | D179: Average duration of sustained customer interruption | E179: Effect on unplanned SAIDI | F179: Effect on unplanned SAIFI
C183: Table 6.1 telephone answering - row descriptions and start date
C184: dms_060101_Rows | D184: dms_060102_Rows | E184: dms_060101_StartDateTxt
C185: Total number of calls (after removing excluded events) | D185: Number of calls answered within 30 seconds (after excluding excluded events) | E185: =dms_060701_StartDateTxt -> 1-Jul-2005
H189: dms_0603_FeederList | I189: =INDEX(dms_FeederName_1,MATCH(dms_TradingName,dms_TradingName_List)) -> CBD | J189: =INDEX(dms_FeederName_2,MATCH(dms_TradingName,dms_TradingName_List)) -> Urban | K189: =INDEX(dms_FeederName_3,MATCH(dms_TradingName,dms_TradingName_List)) -> Short rural | L189: =INDEX(dms_FeederName_4,MATCH(dms_TradingName,dms_TradingName_List)) -> Long rural
C190: Table 6.7.1 - daily performance data - unplanned - MAIFI -- row descriptions and header named range values
C191: These headings (Lists) are determined from the INDEX/MATCH function on the NSP selected on the Business & other details sheet
B192: dms_060701_Feeder_Header_Lvl4 | C192: =INDEX(dms_FeederName_1,MATCH(dms_TradingName,dms_TradingName_List)) -> CBD | D192: =INDEX(dms_FeederName_1,MATCH(dms_TradingName,dms_TradingName_List)) -> CBD | E192: =INDEX(dms_FeederName_2,MATCH(dms_TradingName,dms_TradingName_List)) -> Urban | F192: =INDEX(dms_FeederName_2,MATCH(dms_TradingName,dms_TradingName_List)) -> Urban | G192: =INDEX(dms_FeederName_3,MATCH(dms_TradingName,dms_TradingName_List)) -> Short rural | H192: =INDEX(dms_FeederName_3,MATCH(dms_TradingName,dms_TradingName_List)) -> Short rural | I192: =INDEX(dms_FeederName_4,MATCH(dms_TradingName,dms_TradingName_List)) -> Long rural | J192: =INDEX(dms_FeederName_4,MATCH(dms_TradingName,dms_TradingName_List)) -> Long rural | K192: =IF((INDEX(dms_FeederName_5,MATCH(dms_TradingName,dms_TradingName_List))=0),"Network",(INDEX(dms_FeederName_5,MATCH(dms_TradingName,dms_TradingName_List)))) -> Network | L192: =IF((INDEX(dms_FeederName_5,MATCH(dms_TradingName,dms_TradingName_List))=0),"Network",(INDEX(dms_FeederName_5,MATCH(dms_TradingName,dms_TradingName_List)))) -> Network | M192: Network | N192: Network
B194: dms_060701_Rows | C194: All events | D194: After removing excluded events | E194: All events | F194: After removing excluded events | G194: All events | H194: After removing excluded events | I194: All events | J194: After removing excluded events | K194: All events | L194: After removing excluded events | M194: All events | N194: After removing excluded events
C195: the number of column headings changes from 10 to 12 depending on the number of feeder categories for the NSP
C200: Table 6.8.1 - row descriptions
C201: dms_060801_01_Rows | D201: dms_060801_02_Rows | E201: dms_060801_03_Rows | F201: dms_060801_04_Rows
C202: Number of interruptions | D202: Duration of interruptions | E202: Total unplanned minutes off supply | F202: Effect on unplanned MAIFI
C207: Table 7.9.4 - market impact component - row descriptions
B208: dms_070904_01_Rows | C208: without exclusions | D208: with exclusions
C214: Use this to add to existing files
C215: ARRs 6.7 STPIS daily performance
C216: dms_060101_Values | D216: dms_060102_Values | E216: dms_060701_Values
C218: ARR's 6.8 STPIS exclusions
C219: dms_060801_Event_Date | D219: dms_060801_OutageID | E219: dms_060801_FeederID | F219: dms_060801_FeederClass | G219: dms_060801_CauseID | H219: dms_060801_01_Values | I219: dms_060801_02_Values | J219: dms_060801_03_Values | K219: dms_060801_Excl_Cat | L219: dms_060801_04_Values
C220: dms_060801_StartCell
C222: CA 6.3 sustained interruptions
C223: dms_060301_Event_Date | D223: dms_060301_Event_Time | E223: dms_060301_AssetID | F223: dms_060301_FeederClass | G223: dms_060301_Reason | H223: dms_060301_DetailedReason | I223: dms_060301_CustNo_Affected_Values | J223: dms_060301_Avg_Duration_Sustained_Int_Values | K223: dms_060301_Effect_unplanned_SAIDI_Values | L223: dms_060301_Effect_unplanned_SAIFI_Values | M223: dms_060301_MED

Sheet Instructions
B2: =CONCATENATE(dms_Segment," Network Service Provider") -> Distribution Network Service Provider
B3: Historical Reporting RIN Template
C4: =CONCATENATE("This template is to be used by ",dms_TradingName," to fulfil its reporting obligations to the AER.") -> This template is to be used by SA Power Networks to fulfil its reporting obligations to the AER.
C5: INSTRUCTIONS
C6: Complete the Business & other details worksheet before entering data or values in any other worksheets. The Business & other details worksheet is linked to other worksheets within the workbook and automatically generates certain column headings and conditional formatting.
C8: Identifying CONFIDENTIAL INFORMATION: Please use the macro at the top of each worksheet to identify confidential information.
C9: -Do this by selecting the cell or cells that contain confidential information and then run the Mark selection CONFIDENTIAL macro. This will format the cells a specific colour that is identified by the AER's database which in turn marks that information as confidential. -To reverse this, select the cell or cells and run the Return selection to NON-CONFIDENTIAL macro.
C11: UNITS OF MEASURE All amounts are to be unrounded and reported on a one for one basis: that is 1000 is to be entered as '1000'. Applicable units of measure may be identified in the table column headings or row descriptors.
C13: COLOUR CODING OF INPUT / NON-INPUT CELLS:
D14: Yellow = Input cell (mandatory)
D15: Darker yellow = input cell (mandatory)
D16: Orange = input cell (if data available)
D17: Grey = Not applicable/No inputs required
D18: . PLEASE DO NOT ENTER TEXT into cells that are to contain numeric data.
C21: WORKSHEET NAVIGATION Many tables in the worksheets have been "grouped" to allow for easy navigation. To ungroup or group data use the outline symbols in the left margin of excel (for Row groupings) or above the columns (for column groupings).
C23: RETURNING COMPLETED RESPONSES Please return two (2) files to the AER: 1. A confidential version which must contain a complete set of all responses with confidential information marked using the Mark selected cells CONFIDENTIAL macro and which has been completed using the locked template file provided by the AER. 2. A public version with confidential information either removed completely or aggregated in some form together with writtten consent to disclose the public version of the response. Use the drop down box on the Business and other details worksheet to identify the file as either confidential ('consolidated') or public.
C25: SUBMITTING AMENDED DATA TO THE AER If an NSP wishes to correct data previously submitted to the AER it should resubmit that data using the original completed submission as the starting point. Please make any necessary changes to the data. Data that is not being amended should be left unchanged. NSPs must identify the reason for the amendments in the Amendment Reason box on the Business and other details worksheet. NSPs may provide further details regarding any amendments in the Amendments worksheet. .
C26: NSP may use Amended Data macro to highlight cells that contain amended data. NB: if data is also CONFIDENTIAL, re-apply the Confidentiality macro after applying the Amended macro
C27: Please resubmit two (2) files - a confidential version and a public version of the amended submission to the AER

Sheet Business & other details
B1: =IF(dms_DataQuality="backcast",INDEX(dms_Worksheet_List,MATCH(dms_Model,dms_Model_List))&" BACKCAST",INDEX(dms_Worksheet_List,MATCH(dms_Model,dms_Model_List))) -> ECONOMIC BENCHMARKING
B2: =INDEX(dms_TradingNameFull_List,MATCH(dms_TradingName,dms_TradingName_List)) -> SA Power Networks
B3: =IF(SUM(dms_SingleYear_Model)>0,CONCATENATE(CRY),CONCATENATE(FRCP_y1," to ",dms_MultiYear_FinalYear_Result)) -> 2005-06
B4: BUSINESS & OTHER DETAILS
B7: Instructions
B8: Complete the following business details regulatory template before entering data or values in any other regulatory template. This regulatory template is linked to other cells within the spreadsheet and automatically generates column headings and conditional formatting to distinguish business specific input and non-input cells.
B10: SUBMISSION PARTICULARS INPUT SHEETS
B12: ENTITY DETAILS
B14: Short name | C14: SA Power Networks | F14: Select business name from drop down list first
B15: ACN / ABN | C15: =INDEX(dms_ABN_List,MATCH(dms_TradingName,dms_TradingName_List)) -> 13332330749
B18: Business address | C18: Address 1 | E18: =INDEX(dms_Addr1_List,MATCH(dms_TradingName,dms_TradingName_List)) -> 1 Anzac Highway
D19: Address 2 | E19: =IF(ISBLANK(INDEX(dms_Addr2_List,MATCH(dms_TradingName,dms_TradingName_List))),"",(INDEX(dms_Addr2_List,MATCH(dms_TradingName,dms_TradingName_List)))) -> 
C20: Suburb | E20: =INDEX(dms_Suburb_List,MATCH(dms_TradingName,dms_TradingName_List)) -> KESWICK
D21: State | E21: =INDEX(dms_State_List,MATCH(dms_TradingName,dms_TradingName_List)) -> SA | F21: p/code | G21: =INDEX(dms_PostCode_List,MATCH(dms_TradingName,dms_TradingName_List)) -> 5035
B23: Postal address | C23: Address 1 | E23: =INDEX(dms_PAddr1_List,MATCH(dms_TradingName,dms_TradingName_List)) -> GPO Box 77
D24: Address 2 | E24: =IF(ISBLANK(INDEX(dms_PAddr2_List,MATCH(dms_TradingName,dms_TradingName_List))),"",(INDEX(dms_PAddr2_List,MATCH(dms_TradingName,dms_TradingName_List)))) -> 
C25: Suburb | E25: =INDEX(dms_PSuburb_List,MATCH(dms_TradingName,dms_TradingName_List)) -> ADELAIDE
D26: State | E26: =INDEX(dms_PState_List,MATCH(dms_TradingName,dms_TradingName_List)) -> SA | F26: p/code | G26: =INDEX(dms_PPostCode_List,MATCH(dms_TradingName,dms_TradingName_List)) -> 5000
B29: Contact name/s | C29: =INDEX(dms_ContactName1_List,MATCH(dms_TradingName,dms_TradingName_List)) -> Richard Sibly
B30: Contact phone/s | C30: =INDEX(dms_ContactPh1_List,MATCH(dms_TradingName,dms_TradingName_List)) -> 08 8404 5613
B31: Contact email address/s | C31: =INDEX(dms_ContactEmail_List,MATCH(dms_TradingName,dms_TradingName_List)) -> richard.sibly@sapowernetworks.com.au
B33: REGULATORY CONTROL PERIODS
B35: Forthcoming regulatory control period | C35: 2020-21 | D35: =dms_FRCP_y2 -> 2021-22 | E35: =dms_FRCP_y3 -> 2022-23 | F35: =dms_FRCP_y4 -> 2023-24 | G35: =dms_FRCP_y5 -> 2024-25
C36: =dms_FRCP_y6 -> 2025-26 | D36: =dms_FRCP_y7 -> 2026-27 | E36: =dms_FRCP_y8 -> 2027-28 | F36: =dms_FRCP_y9 -> 2028-29 | G36: =dms_FRCP_y10 -> 2029-30
B39: Current regulatory control period | C39: =dms_CRCP_FirstYear_Result -> 2015-16 | D39: =IF(dms_RPT="financial",VALUE(LEFT(CRCP_y1,4)+1)&"-"&TEXT(MID(CRCP_y1,3,2)+2,"00"),VALUE(LEFT(CRCP_y1,4)+1)) -> 2016-17 | E39: =IF(dms_RPT="financial",VALUE(LEFT(CRCP_y1,4)+2)&"-"&TEXT(VALUE(MID(CRCP_y1,3,2)+3),"00"),VALUE(LEFT(CRCP_y1,4)+2)) -> 2017-18 | F39: =IF(dms_RPT="financial",VALUE(LEFT(CRCP_y1,4)+3)&"-"&TEXT(MID(CRCP_y1,3,2)+4,"00"),VALUE(LEFT(CRCP_y1,4)+3)) -> 2018-19 | G39: =IF(dms_RPT="financial",VALUE(LEFT(CRCP_y1,4)+4)&"-"&TEXT(MID(CRCP_y1,3,2)+5,"00"),VALUE(LEFT(CRCP_y1,4)+4)) -> 2019-20
C40: =IF(dms_RPT="financial",VALUE(LEFT(CRCP_y1,4)+5)&"-"&TEXT(MID(CRCP_y1,3,2)+6,"00"),VALUE(LEFT(CRCP_y1,4)+5)) -> 2020-21 | D40: =IF(dms_RPT="financial",VALUE(LEFT(CRCP_y1,4)+6)&"-"&TEXT(MID(CRCP_y1,3,2)+7,"00"),VALUE(LEFT(CRCP_y1,4)+6)) -> 2021-22 | E40: =IF(dms_RPT="financial",VALUE(LEFT(CRCP_y1,4)+7)&"-"&TEXT(MID(CRCP_y1,3,2)+8,"00"),VALUE(LEFT(CRCP_y1,4)+7)) -> 2022-23 | F40: =IF(dms_RPT="financial",VALUE(LEFT(CRCP_y1,4)+8)&"-"&TEXT(MID(CRCP_y1,3,2)+9,"00"),VALUE(LEFT(CRCP_y1,4)+8)) -> 2023-24 | G40: =IF(dms_RPT="financial",VALUE(LEFT(CRCP_y1,4)+9)&"-"&TEXT(MID(CRCP_y1,3,2)+10,"00"),VALUE(LEFT(CRCP_y1,4)+9)) -> 2024-25
C41: =IF(dms_RPT="financial",VALUE(LEFT(CRCP_y1,4)+10)&"-"&TEXT(MID(CRCP_y1,3,2)+11,"00"),VALUE(LEFT(CRCP_y1,4)+10)) -> 2025-26 | D41: =IF(dms_RPT="financial",VALUE(LEFT(CRCP_y1,4)+11)&"-"&TEXT(MID(CRCP_y1,3,2)+12,"00"),VALUE(LEFT(CRCP_y1,4)+11)) -> 2026-27 | E41: =IF(dms_RPT="financial",VALUE(LEFT(CRCP_y1,4)+12)&"-"&TEXT(MID(CRCP_y1,3,2)+13,"00"),VALUE(LEFT(CRCP_y1,4)+12)) -> 2027-28 | F41: =IF(dms_RPT="financial",VALUE(LEFT(CRCP_y1,4)+13)&"-"&TEXT(MID(CRCP_y1,3,2)+14,"00"),VALUE(LEFT(CRCP_y1,4)+13)) -> 2028-29 | G41: =IF(dms_RPT="financial",VALUE(LEFT(CRCP_y1,4)+14)&"-"&TEXT(MID(CRCP_y1,3,2)+15,"00"),VALUE(LEFT(CRCP_y1,4)+14)) -> 2029-30
B44: Previous regulatory control period | C44: =IF(dms_RPT="financial",VALUE(LEFT(PRCP_y2,4)-1)&"-"&TEXT(VALUE(MID(PRCP_y2,3,2)),"00"),VALUE(LEFT(PRCP_y2,4)-1)) -> 2010-11 | D44: =IF(dms_RPT="financial",VALUE(LEFT(PRCP_y3,4)-1)&"-"&TEXT(VALUE(MID(PRCP_y3,3,2)),"00"),VALUE(LEFT(PRCP_y3,4)-1)) -> 2011-12 | E44: =IF(dms_RPT="financial",VALUE(LEFT(PRCP_y4,4)-1)&"-"&TEXT(VALUE(MID(PRCP_y4,3,2)),"00"),VALUE(LEFT(PRCP_y4,4)-1)) -> 2012-13 | F44: =IF(dms_RPT="financial",VALUE(LEFT(PRCP_y5,4)-1)&"-"&TEXT(VALUE(RIGHT(PRCP_y5,2)-1),"00"),VALUE(LEFT(PRCP_y5,4)-1)) -> 2013-14 | G44: =IF(dms_RPT="financial",VALUE(LEFT(CRCP_y1,4)-1)&"-"&TEXT(VALUE(RIGHT(CRCP_y1,2)-1),"00"),VALUE(LEFT(CRCP_y1,4)-1)) -> 2014-15
B48: Commencing regulatory year | C48: 2005-06 | D48: CRY
B50: Last completed regulatory year | C50: 2017-18 | D50: dms_FinalYear
C54: IF THIS IS AN ABC RIN - make sure the the named range CRY is applied and the named range dms_dollar_nom_UOM is applied
C55: IF THIS IS A RESET RIN - make sure the named ranges CRY and dms_dollar_nom_UOM are NOT present in the workbook
C56: FOR ABC RINS THAT SPAN MULTIPLE YEARS - make sure MultiYear Flag is set and final year entered as required
B58: Source | C58: Regulatory proposal | E58: Please select the correct submission type from the dropdown list.
B59: Data quality (actual, estimate, public, consolidated) | C59: Public | E59: Use Consolidated for Consolidated Confidential version Use Public for Consolidated Public version
B60: Amended RIN submission - amendment reason | C60: .
B61: Submission Date | C61: 31/01/2019 | D61: dms_SubmissionDate | E61: Please enter date this file submitted to AER (dd/mm/yyyy)
B62: EBSS - First application of scheme in forthcoming period? | C62: No
B63: Sector | C63: =INDEX(dms_Sector_List,MATCH(dms_TradingName,dms_TradingName_List)) -> Electricity | D63: dms_Sector | E63: =INDEX(dms_Sector_List,MATCH(dms_TradingName,dms_TradingName_List))
B64: Segment | C64: =INDEX(dms_Segment_List,MATCH(dms_TradingName,dms_TradingName_List)) -> Distribution | D64: dms_Segment | E64: =INDEX(dms_Segment_List,MATCH(dms_TradingName,dms_TradingName_List))
B65: Regulatory Year Ending | C65: =IF(dms_MultiYear_Flag=1,LEFT(dms_Specified_FinalYear,2)&RIGHT(dms_Specified_FinalYear,2),INDEX(dms_RYE_Formula_Result,MATCH(dms_Model,dms_Model_List))) -> 2018 | D65: dms_RYE | E65: =IF(dms_MultiYear_Flag=1,LEFT(dms_Specified_FinalYear,2)&RIGHT(dms_Specified_FinalYear,2),INDEX(dms_RYE_Formula_Result,MATCH(dms_Model,dms_Model_List)))
B66: Reporting Period Type | C66: =INDEX(dms_RPT_List,MATCH(dms_TradingName,dms_TradingName_List)) -> Financial | D66: dms_RPT | E66: =INDEX(dms_RPT_List,MATCH(dms_TradingName,dms_TradingName_List))
B67: Model or RIN Type | C67: EB | D67: dms_Model | E67: Drop down selection
B68: EB/CA Unit of Measure for Monetary Values | C68: $0s | D68: dms_dollar_nom_UOM | E68: If the cover sheet is attached to an ABC RIN apply the NAMED RANGE to the cell
B69: Security Classification | C69: Public | D69: dms_Classification | E69: Always Public
B70: Jurisdiction | C70: =INDEX(dms_JurisdictionList,MATCH(dms_TradingName,dms_TradingName_List)) -> SA | D70: dms_Jurisdiction | E70: =INDEX(dms_JurisdictionList,MATCH(dms_TradingName,dms_TradingName_List))
B71: FORECAST and MultiYear RINS
B72: CRY-1 (last full calendar year before CRY) | C72: =IF(dms_RPT="financial",VALUE(LEFT(dms_SingleYear_FinalYear_Result,4)),VALUE(LEFT(dms_SingleYear_FinalYear_Result,4)-1)) -> 2005 | D72: dms_Cal_Year_B4_CRY | E72: '=IF(dms_RPT="financial",VALUE(LEFT(dms_SingleYear_FinalYear_Result,4)),VALUE(LEFT(dms_SingleYear_FinalYear_Result,4)-1))
B73: Dollar $ real month | C73: =INDEX(dms_RPTMonth_List,MATCH(dms_TradingName,dms_TradingName_List)) -> June | D73: dms_RPTMonth | E73: =INDEX(dms_RPTMonth_List,MATCH(dms_TradingName,dms_TradingName_List))
B74: Dollar $ real (the last month before the FRCP_y1) | C74: =IF(SUM(dms_SingleYear_Model)>0,CONCATENATE(dms_RPTMonth)&" "&VALUE((LEFT(CRY,2))&RIGHT(CRY,2)),CONCATENATE(dms_RPTMonth)&" "&VALUE((LEFT(dms_CRCP_FinalYear_Result,2)&RIGHT(dms_CRCP_FinalYear_Result,2)))) -> June 2006 | D74: dms_DollarReal | E74: =IF(SUM(dms_SingleYear_Model)>0,CONCATENATE(dms_RPTMonth)&" "&VALUE((LEFT(CRY,2))&RIGHT(CRY,2)),CONCATENATE(dms_RPTMonth)&" "&VALUE((LEFT(dms_CRCP_FinalYear_Result,2)&RIGHT(dms_CRCP_FinalYear_Result,2))))
B75: Dollar $ real previous year (PRCP_y5) | C75: =IF(SUM(dms_SingleYear_Model)>0,CONCATENATE(dms_RPTMonth)&" "&VALUE(((LEFT(CRY,2))&RIGHT(CRY,2))-1),CONCATENATE(dms_RPTMonth)&" "&VALUE(((LEFT(dms_CRCP_FirstYear_Result,2)&RIGHT(dms_CRCP_FirstYear_Result,2))))-1) -> June 2005 | D75: dms_DollarReal_Prev | E75: =IF(SUM(dms_SingleYear_Model)>0,CONCATENATE(dms_RPTMonth)&" "&VALUE(((LEFT(CRY,2))&RIGHT(CRY,2))-1),CONCATENATE(dms_RPTMonth)&" "&VALUE(((LEFT(dms_CRCP_FirstYear_Result,2)&RIGHT(dms_CRCP_FirstYear_Result,2))))-1)
B76: This block works out the various RYE's for ALL RIN types and MODELS
B77: Single Year Model T/F | C77: =IF(dms_Model="EB",1,0) -> 1 | D77: dms_EB
C78: =IF(dms_Model="CA",1,0) -> 0 | D78: dms_CA | E78: =dms_SingleYear_Model
C79: =IF(dms_Model="ARR",1,0) -> 0 | D79: dms_ARR
B80: Is this a single Year RIN? | C80: =IF(SUM(dms_SingleYear_Model)=1,"yes","no") -> yes | D80: dms_SingleYearModel | E80: =IF(SUM(dms_SingleYear_Model)=1,"yes","no")
B81: Single Year Final Year Reference | C81: CRY | D81: dms_SingleYear_FinalYear_Ref | E81: This is the reference for EB, CA & ARR RINs
B82: Single Year Final Year Result | C82: =IFERROR(IF(SUM(dms_SingleYear_Model)<>0,(INDIRECT(dms_SingleYear_FinalYear_Ref)),"not a single year RIN"),"CRY not present") -> 2005-06 | D82: dms_SingleYear_FinalYear_Result | E82: =IFERROR(IF(SUM(dms_SingleYear_Model)<>0,(INDIRECT(dms_SingleYear_FinalYear_Ref)),"not a single year RIN"),"CRY not present")
B83: FRCP length in years | C83: =INDEX(dms_FRCPlength_List,MATCH(dms_TradingName,dms_TradingName_List)) -> 5 | D83: dms_FRCPlength_Num | E83: =INDEX(dms_FRCPlength_List,MATCH(dms_TradingName,dms_TradingName_List))
B84: Multi Year Final Year Reference | C84: =INDEX(dms_FinalYear_List,MATCH(dms_FRCPlength_Num,dms_FRCPlength_Num_List)) -> dms_FRCP_y5 | D84: dms_MultiYear_FinalYear_Ref | E84: =INDEX(dms_FinalYear_List,MATCH(dms_FRCPlength_Num,dms_FRCPlength_Num_List))
B85: Multi Year Final Year Result | C85: =IF(dms_MultiYear_Flag=0,INDIRECT(dms_MultiYear_FinalYear_Ref),dms_Specified_FinalYear) -> 2017-18 | D85: dms_MultiYear_FinalYear_Result | E85: =IF(dms_MultiYear_Flag=0,INDIRECT(dms_MultiYear_FinalYear_Ref),dms_Specified_FinalYear) | I85: Formula errors OK
B86: CRCP length in years | C86: =INDEX(dms_CRCPlength_List,MATCH(dms_TradingName,dms_TradingName_List)) -> 5 | D86: dms_CRCPlength_Num | E86: =INDEX(dms_CRCPlength_List,MATCH(dms_TradingName,dms_TradingName_List))
B87: CRCP Final Year Reference | C87: =INDEX(dms_CFinalYear_List,MATCH(dms_CRCPlength_Num,dms_CRCPlength_Num_List)) -> CRCP_y5 | D87: dms_CRCP_FinalYear_Ref | E87: =INDEX(dms_CFinalYear_List,MATCH(dms_CRCPlength_Num,dms_CRCPlength_Num_List))
B88: CRCP First Year Result | C88: =INDEX(dms_CRCP_years,MATCH(dms_CRCPlength_Num,dms_CRCP_index)) -> 2015-16 | D88: dms_CRCP_FirstYear_Result | E88: =INDEX(dms_CRCP_years,MATCH(dms_CRCPlength_Num,dms_CRCP_index))
B89: CRCP Final Year Result | C89: =IF(dms_MultiYear_Flag=0,(IF(SUM(dms_SingleYear_Model)>0,CRY,dms_CRCP_yZ)),dms_Specified_FinalYear) -> 2017-18 | D89: dms_CRCP_FinalYear_Result | E89: =IF(dms_MultiYear_Flag=0,(IF(SUM(dms_SingleYear_Model)>0,CRY,dms_CRCP_yZ)),dms_Specified_FinalYear)
B90: PTRM/ RFMs
B91: Form of control | C91: =INDEX(dms_FormControl_List,MATCH(dms_TradingName,dms_TradingName_List)) -> Revenue cap | D91: dms_FormControl | E91: =INDEX(dms_FormControl_List,MATCH(dms_TradingName,dms_TradingName_List))
B92: ABC RINS THAT SPAN MULTIPLE YEARS
B93: Is this a multi year ABC RIN? | C93: Yes
B94: Multiyear EB, CA or ARR? | C94: =IF(dms_MultiYear_ResponseFlag="No",0,1) -> 1 | D94: dms_MultiYear_Flag | E94: This is set from the answer provided above
C95: =IF(dms_MultiYear_Flag=1,FRY,"not a Multiple year submission") -> 2017-18 | D95: dms_Specified_FinalYear | E95: The result here is returned to dms_CRCP_FinalYear_Result if response to Q in C73 is "yes" and dms_MultiYear_Flag is set to 1
B96: Start year for 5.2 in Multi year ABC RINS | C96: =IFERROR(IF(dms_MultiYear_Flag=1,FRY,CRY),"not an ABC") -> 2017-18 | D96: dms_0502_Inst_Year | E96: =IF(dms_MultiYear_Flag=1,FRY,CRY) | G96: For single year RINS this is CRY - multi year RINS need to start a the end of the span of years (ie. FRY)
B97: EB RINS
B98: Calendar Year for table 3.6 data | C98: =dms_SingleYear_FinalYear_Result -> 2005-06 | D98: dms_0306_Year | E98: =IF(dms_RPT="financial",VALUE(LEFT(dms_SingleYear_FinalYear_Result,4)),VALUE(LEFT(dms_SingleYear_FinalYear_Result,4)-1))
B99: CA RINS
B100: Find how many rows in tables 6.3 sustained interruptions? | E100: dms_060301_MaxRows only returns a valid value when cover sheet is attached to a CA file
C101: =IF(dms_Model<>"CA","not a CA","Is a CA") -> not a CA | E101: =IF(dms_Model<>"CA","not a CA","Is a CA")
B102: dms_060301_Avg_Duration_Sustained_Int_Values present? | C102: =IFERROR(IF(INDEX(dms_060301_Avg_Duration_Sustained_Int_Values,1,1)<>"","yes","no"),"no") -> no | D102: dms_060301_checkvalue | E102: =IFERROR(IF(INDEX(dms_060301_Avg_Duration_Sustained_Int_Values,1,1)<>"","yes","no"),"no")
C103: =IF(AND(dms_Model="CA",(dms_060301_checkvalue="no")),"error - NR not present","no errors") -> no errors | E103: =IF(AND(dms_Model="CA",(dms_060301_checkvalue="no")),"error - NR not present","no errors")
B104: Table 6.3.1 - last row reference | C104: =IFERROR(IF(dms_Model="CA",LOOKUP(2,1/(dms_060301_Avg_Duration_Sustained_Int_Values<>""),(ROW(dms_060301_Avg_Duration_Sustained_Int_Values))),"not a CA"),"6.3 not present") -> not a CA | D104: dms_060301_LastRow | E104: =IFERROR(IF(dms_Model="CA",LOOKUP(2,1/(dms_060301_Avg_Duration_Sustained_Int_Values<>""),(ROW(dms_060301_Avg_Duration_Sustained_Int_Values))),"not a CA"),"6.3 not present")
B105: Table 6.3.1 - max number rows | C105: =IFERROR(IF(dms_Model="CA",(dms_060301_LastRow-15),"not a CA"),"error") -> not a CA | D105: dms_060301_MaxRows | E105: =IFERROR(IF(dms_Model="CA",(dms_060301_LastRow-15),"not a CA"),"error")
B106: Table 6.6.3 - Public lighting repair - no. business days | C106: =INDEX(dms_663_List,MATCH(dms_TradingName,dms_TradingName_List)) -> 5 | D106: dms_663 | E106: =INDEX(dms_663_List,MATCH(dms_TradingName,dms_TradingName_List))
B107: ARR or RESET RINS
B108: How many rows in tables 6.1 or 6.7? (leap year?) | C108: insert dms_LeapYear NR if required | E108: 'dms_LeapYear is used to determine dms_060701_Max_Rows BUT it is only found on worksheet 6.1 or 6.7 and the date value in the cell is used to determine whether it is a leap year
B109: Is dms_LeapYear named range present? | C109: =IFERROR(IF(dms_LeapYear,"yes"),"no") -> no
B110: Table 6.7.1 - includes a leap year? | C110: =IFERROR(IF(MONTH(DATE(YEAR(dms_LeapYear),2,29))=2,"is a leap year","not a leap year"), "dms_LeapYear not present") -> dms_LeapYear not present | D110: dms_LeapYear_Result | E110: =IFERROR(IF(MONTH(DATE(YEAR(dms_LeapYear),2,29))=2,"is a leap year","not a leap year"),"dms_LeapYear not present")
B111: MaxRows if Reset and leap year | C111: =IF(dms_LeapYear_Result="is a leap year",1827,1826) -> 1826 | D111: dms_060701_Reset_MaxRows | E111: =IF(dms_LeapYear_Result="is a leap year",1827,1826) | H111: number of days present in Reset RIN table
B112: MaxRows if ARR and leap year | C112: =IF(dms_LeapYear_Result="is a leap year",366,365) -> 365 | D112: dms_060701_ARR_MaxRows | E112: =IF(dms_LeapYear_Result="is a leap year",366,365) | H112: number of days present in ARR RIN table
B113: Table 6.7.1 - Max Rows (leap year/ non leap year) | C113: =IF(dms_Model="ARR",dms_060701_ARR_MaxRows,IF(dms_Model="Reset",dms_060701_Reset_MaxRows,"not a relevant RIN type")) -> not a relevant RIN type | D113: dms_060701_MaxRows | E113: =IF(dms_Model="ARR",dms_060701_ARR_MaxRows,IF(dms_Model="Reset",dms_060701_Reset_MaxRows,"not a relevant RIN type"))
B114: How many columns in 6.7? (4 or 5 feeder categories) | C114: =IF(dms_FifthFeeder_flag_NSP="NO","This NSP has only 4 feeder categories","This NSP has 5 feeder categories") -> This NSP has only 4 feeder categories
B115: Table 6.7.1 - Last column (# of feeder categories > 4) | C115: =IF(dms_FifthFeeder_flag_NSP="NO",10,12) -> 10 | D115: dms_060701_MaxCols | E115: =IF(dms_FifthFeeder_flag_NSP="NO",8,10)
B116: Table 6.7.1 - Number of offset rows | C116: =IF(dms_Model="ARR",15,9) -> 9 | D116: dms_060701_OffsetRows | E116: =IF(dms_Model="ARR",15,9)
B117: Start date for telephone answering in 6.1 or 6.7? | E117: Using 060101 as naming standard not 060701 for start dates
B118: Table 6.1.1 and 6.7.1 - Start Date as Text | C118: =IF(dms_SingleYearModel="yes",(CONCATENATE(IF(LEN(CRY)=4,"1-Jan-","1-Jul-"),LEFT(CRY,4))),(CONCATENATE(IF(LEN(PRCP_y4)=4,"1-Jan-","1-Jul-"),LEFT(PRCP_y4,4)))) -> 1-Jul-2005 | D118: dms_060101_StartDateTxt | E118: =IF(SUM(dms_SingleYear_Model)>1,(CONCATENATE(IF(LEN(CRY)=4,"1-Jan-","1-Jul-"),LEFT(CRY,4))),(CONCATENATE(IF(LEN(CRCP_y4)=4,"1-Jan-","1-Jul-"),LEFT(CRCP_y4,4))))
B119: Table 6.1.1 and 6.7.1 - Start Date as Date Value | C119: =DATEVALUE(dms_060701_StartDateTxt) -> 38534 | D119: dms_060101_StartDateVal | E119: =DATEVALUE(dms_060701_StartDateTxt)
B120: ARRs
B121: How many rows in table 6.8? | C121: insert dms_060801_StartCell NR if required | E121: dms_060801_StartCell is only found on worksheet 6.8 and is used to determine the starting date for the date range
B122: Is dms_060801_StartCell named range present? | C122: yes | E122: =IFERROR(IF((ROW(dms_060801_StartCell)-1)=1,"yes","yes"),"no")
B123: Table 6.8 - Number of offset rows | C123: 12 | D123: dms_0608_OffsetRows | E123: =IFERROR(IF(dms_Model="ARR",(ROW(dms_060801_StartCell)-1),"not an ARR"),"6.8 error")
B124: Table 6.8 - Last row | C124: 6.8 not present | D124: dms_0608_LastRow | E124: =IFERROR(IF(dms_060801_StartCell<>"",IF(dms_Model="ARR",(LOOKUP(2,1/(dms_060801_01_Values<>""),(ROW(dms_060801_01_Values)))),"not an ARR"),0),"6.8 not present")
B125: Table 6.8 - MaxRows | C125: =IFERROR(IF(dms_Model="ARR",(MAX(0,dms_0608_LastRow-dms_0608_OffsetRows)),"not an ARR"),"6.8 not present") -> not an ARR | D125: dms_060801_MaxRows | E125: =IFERROR(IF(dms_Model="ARR",(MAX(0,dms_0608_LastRow-dms_0608_OffsetRows)),"not an ARR"),"6.8 not present")
B126: TNSP RESET RINS
B127: Table 7.9.4 only appears in TNSPs Reset RIN
B128: Table 7.9.4 - first year | C128: =LEFT(PRCP_y3,4) -> 2012 | D128: dms_070904_Start_Year | E128: =LEFT(PRCP_y3,4)
B129: SUBSET FILES
B130: Is this Submission File a Subset File | C130: YES | D130: dms_Partial
B131: MISC
B132: Distribution Determination Reference | C132: =INDEX(dms_DeterminationRef_List,MATCH(dms_TradingName,dms_TradingName_List)) -> 2015-20 Distribution Determination | D132: dms_DeterminationRef
B133: Public lighting NSP? | C133: =INDEX(dms_Public_Lighting_List,MATCH(dms_TradingName,dms_TradingName_List)) -> NO | D133: dms_Public_Lighting | E133: =INDEX(dms_Public_Lighting_List,MATCH(dms_TradingName,dms_TradingName_List))
B134: CBD Feeder for this business | C134: =INDEX(dms_CBD_flag,MATCH(dms_TradingName,dms_TradingName_List)) -> NO | D134: dms_CBD_flag_NSP
B135: Urban Feeder for this business | C135: =INDEX(dms_Urban_flag,MATCH(dms_TradingName,dms_TradingName_List)) -> NO | D135: dms_Urban_flag_NSP
B136: Short rural Feeder for this business | C136: =INDEX(dms_ShortRural_flag,MATCH(dms_TradingName,dms_TradingName_List)) -> YES | D136: dms_ShortRural_flag_NSP
B137: Long rural Feeder for this business | C137: =INDEX(dms_LongRural_flag,MATCH(dms_TradingName,dms_TradingName_List)) -> YES | D137: dms_LongRural_flag_NSP
B138: Fifth Feeder Category (eg. TasNetworks (D)) | C138: =INDEX(dms_FeederType_5_flag,MATCH(dms_TradingName,dms_TradingName_List)) -> NO | D138: dms_FifthFeeder_flag_NSP | E138: =INDEX(dms_FeederType_5_flag,MATCH(dms_TradingName,dms_TradingName_List))
B140: DISCARD FILES
B141: discard this record? | C141: NO | D141: dms_DISCARD | E141: If record is to be discarded from DB set this flag to YES
B143: USES NAMED RANGES FLAG | C143: yes | D143: dms_Defined_Names_Used
B145: REGULATORY YEARS FOR MULTI RYE SUBMISSIONS
B146: Multiple RYE flag | C146: YES | D146: dms_Multi_RYE_flag
C147: Manually specify RYE | D147: Named ranges to apply
C148: 2013 | D148: dms_RYE_01
C149: 2014 | D149: dms_RYE_02
C150: 2015 | D150: dms_RYE_03
C151: 2016 | D151: dms_RYE_04
C152: 2017 | D152: dms_RYE_05
C153: 2018 | D153: dms_RYE_06
C154: 2019 | D154: dms_RYE_07
C155: 2020 | D155: dms_RYE_08
C156: 2021 | D156: dms_RYE_09

Sheet Contents
B1: REGULATORY REPORTING STATEMENT
B2: =dms_TradingName -> SA Power Networks
B3: =CONCATENATE("Benchmarking RIN response ",CRY) -> Benchmarking RIN response 2005-06
B5: CONTENTS
B12: 3. ECONOMIC BENCHMARKING

Sheet 3.1 Revenue
B1: REGULATORY REPORTING STATEMENT
B2: =INDEX(dms_TradingNameFull_List,MATCH(dms_TradingName,dms_TradingName_List)) -> SA Power Networks
B3: =CONCATENATE("ECONOMIC BENCHMARKING ",IF(SUM(dms_SingleYear_Model)>0,CRY,CONCATENATE(dms_CRCP_FirstYear_Result," to ",dms_CRCP_FinalYear_Result))) -> ECONOMIC BENCHMARKING 2005-06
B4: 3.1 REVENUE
B6: There are THREE (x TWO) tables on this worksheet. Both ROWS and COLUMNS have been grouped for ease of navigation. see the Instructions sheet on how to group or ungroup tables.
B8: 3.1.1 - REVENUE GROUPING BY CHARGEABLE QUANTITY
C9: STANDARD CONTROL SERVICES | Q9: ALTERNATIVE CONTROL SERVICES
C10: REVENUE ($0's) | Q10: REVENUE ($0's)
C11: =IF(dms_RPT="financial",dms_fy1,dms_cy1) -> 2005-06 | D11: =IF(dms_RPT="financial",dms_fy2,dms_cy2) -> 2006-07 | E11: =IF(dms_RPT="financial",dms_fy3,dms_cy3) -> 2007-08 | F11: =IF(dms_RPT="financial",dms_fy4,dms_cy4) -> 2008-09 | G11: =IF(dms_RPT="financial",dms_fy5,dms_cy5) -> 2009-10 | H11: =IF(dms_RPT="financial",dms_fy6,dms_cy6) -> 2010-11 | I11: =IF(dms_RPT="financial",dms_fy7,dms_cy7) -> 2011-12 | J11: =IF(dms_RPT="financial",dms_fy8,dms_cy8) -> 2012-13 | K11: =IF(dms_RPT="financial",dms_fy9,dms_cy9) -> 2013-14 | L11: =IF(dms_RPT="financial",dms_fy10,dms_cy10) -> 2014-15 | M11: =IF(dms_RPT="financial",dms_fy11,dms_cy11) -> 2015-16 | N11: =IF(dms_RPT="financial",dms_fy12,dms_cy12) -> 2016-17 | O11: =IF(dms_RPT="financial",dms_fy13,dms_cy13) -> 2017-18 | Q11: =IF(dms_RPT="financial",dms_fy1,dms_cy1) -> 2005-06 | R11: =IF(dms_RPT="financial",dms_fy2,dms_cy2) -> 2006-07 | S11: =IF(dms_RPT="financial",dms_fy3,dms_cy3) -> 2007-08 | T11: =IF(dms_RPT="financial",dms_fy4,dms_cy4) -> 2008-09 | U11: =IF(dms_RPT="financial",dms_fy5,dms_cy5) -> 2009-10 | V11: =IF(dms_RPT="financial",dms_fy6,dms_cy6) -> 2010-11 | W11: =IF(dms_RPT="financial",dms_fy7,dms_cy7) -> 2011-12 | X11: =IF(dms_RPT="financial",dms_fy8,dms_cy8) -> 2012-13 | Y11: =IF(dms_RPT="financial",dms_fy9,dms_cy9) -> 2013-14 | Z11: =IF(dms_RPT="financial",dms_fy10,dms_cy10) -> 2014-15 | AA11: =IF(dms_RPT="financial",dms_fy11,dms_cy11) -> 2015-16 | AB11: =IF(dms_RPT="financial",dms_fy12,dms_cy12) -> 2016-17 | AC11: =IF(dms_RPT="financial",dms_fy13,dms_cy13) -> 2017-18
A12: DREV0101 | B12: Revenue from Fixed Customer Charges | C12: 74664482 | D12: 68970076 | E12: 69592647 | F12: 75700128 | G12: 79988029 | H12: 67306360 | I12: 72055893 | J12: 78952501 | K12: 85294000 | L12: 92995326 | M12: 80077619 | N12: 82997063.31 | O12: 111585535.6 | Q12: 0 | R12: 0 | S12: 0 | T12: 0 | U12: 0 | V12: 0 | W12: 0 | X12: 0 | Y12: 0 | Z12: 0 | AA12: 0 | AB12: 0 | AC12: 0
A13: DREV0102 | B13: Revenue from Energy Delivery charges where time of use is not a determinant | C13: 230658209 | D13: 247448719 | E13: 254428363 | F13: 263350399 | G13: 282511808 | H13: 295043152 | I13: 364761567 | J13: 379332640 | K13: 402270000 | L13: 424592256 | M13: 413907812 | N13: 431147157.9 | O13: 433387520 | Q13: 0 | R13: 0 | S13: 0 | T13: 0 | U13: 0 | V13: 0 | W13: 0 | X13: 0 | Y13: 0 | Z13: 0 | AA13: 0 | AB13: 0 | AC13: 0
A14: DREV0103 | B14: Revenue from On–Peak Energy Delivery charges | C14: 81450310 | D14: 88849727 | E14: 87734803 | F14: 90924377 | G14: 94469296 | H14: 79694356 | I14: 104931800 | J14: 113533531 | K14: 121225000 | L14: 126440410 | M14: 32583593 | N14: 26762857 | O14: 26731974 | Q14: 0 | R14: 0 | S14: 0 | T14: 0 | U14: 0 | V14: 0 | W14: 0 | X14: 0 | Y14: 0 | Z14: 0 | AA14: 0 | AB14: 0 | AC14: 0
A15: DREV0104 | B15: Revenue from Shoulder period Energy Delivery Charges | C15: 0 | D15: 0 | E15: 0 | F15: 0 | G15: 0 | H15: 0 | I15: 0 | J15: 0 | K15: 0 | L15: 0 | M15: 0 | N15: 0 | O15: 0 | Q15: 0 | R15: 0 | S15: 0 | T15: 0 | U15: 0 | V15: 0 | W15: 0 | X15: 0 | Y15: 0 | Z15: 0 | AA15: 0 | AB15: 0 | AC15: 0
A16: DREV0105 | B16: Revenue from Off–Peak Energy Delivery charges | C16: 37626841 | D16: 40877518 | E16: 40221607 | F16: 41387226 | G16: 40904178 | H16: 44031707 | I16: 59589417 | J16: 65409209 | K16: 71350000 | L16: 81151267 | M16: 28386840 | N16: 25406872 | O16: 26162886 | Q16: 0 | R16: 0 | S16: 0 | T16: 0 | U16: 0 | V16: 0 | W16: 0 | X16: 0 | Y16: 0 | Z16: 0 | AA16: 0 | AB16: 0 | AC16: 0
A17: DREV0106 | B17: Revenue from controlled load customer charges | C17: 11880384 | D17: 11594126 | E17: 11205770 | F17: 11637870 | G17: 11712545 | H17: 15077730 | I17: 18315706 | J17: 18569617 | K17: 20018000 | L17: 21765961 | M17: 16549671 | N17: 17228754.28 | O17: 20134546.32 | Q17: 0 | R17: 0 | S17: 0 | T17: 0 | U17: 0 | V17: 0 | W17: 0 | X17: 0 | Y17: 0 | Z17: 0 | AA17: 0 | AB17: 0 | AC17: 0
A18: DREV0107 | B18: Revenue from unmetered supplies | C18: 3493788 | D18: 3710918 | E18: 3747293 | F18: 3997544 | G18: 3894497 | H18: 4256553 | I18: 5670347 | J18: 6180126 | K18: 7092000 | L18: 7588957 | M18: 5157246 | N18: 6992604.102 | O18: 5006654.694 | Q18: 0 | R18: 0 | S18: 0 | T18: 0 | U18: 0 | V18: 0 | W18: 0 | X18: 0 | Y18: 0 | Z18: 0 | AA18: 0 | AB18: 0 | AC18: 0
A19: DREV0108 | B19: Revenue from Contracted Maximum Demand charges | C19: 26807606 | D19: 38418963 | E19: 41379213 | F19: 46377626 | G19: 45492299 | H19: 82896531 | I19: 114806995 | J19: 129641902 | K19: 153835000 | L19: 172096271 | M19: 123495566 | N19: 121018958.7 | O19: 123314975.1 | Q19: 0 | R19: 0 | S19: 0 | T19: 0 | U19: 0 | V19: 0 | W19: 0 | X19: 0 | Y19: 0 | Z19: 0 | AA19: 0 | AB19: 0 | AC19: 0
A20: DREV0109 | B20: Revenue from Measured Maximum Demand charges | C20: 0 | D20: 0 | E20: 0 | F20: 0 | G20: 0 | H20: 0 | I20: 0 | J20: 0 | K20: 0 | L20: 4179 | M20: 16916040 | N20: 22054668.67 | O20: 25162768.74 | Q20: 0 | R20: 0 | S20: 0 | T20: 0 | U20: 0 | V20: 0 | W20: 0 | X20: 0 | Y20: 0 | Z20: 0 | AA20: 0 | AB20: 0 | AC20: 0
A21: DREV0110 | B21: Revenue from metering charges | C21: 0 | D21: 0 | E21: 0 | F21: 0 | G21: 0 | H21: 0 | I21: 0 | J21: 0 | K21: 0 | L21: 0 | M21: 0 | N21: 0 | O21: 0 | Q21: 0 | R21: 0 | S21: 0 | T21: 0 | U21: 0 | V21: 18330000 | W21: 21830000 | X21: 23755000 | Y21: 25718000 | Z21: 27408080 | AA21: 17816089.33 | AB21: 22475203.09 | AC21: 20590250.52
A22: DREV0111 | B22: Revenue from connection charges | C22: 0 | D22: 0 | E22: 0 | F22: 0 | G22: 0 | H22: 0 | I22: 0 | J22: 0 | K22: 0 | L22: 0 | M22: 0 | N22: 0 | O22: 0 | Q22: 0 | R22: 0 | S22: 0 | T22: 0 | U22: 0 | V22: 0 | W22: 0 | X22: 0 | Y22: 0 | Z22: 0 | AA22: 0 | AB22: 0 | AC22: 0
A23: DREV0112 | B23: Revenue from public lighting charges | C23: 0 | D23: 0 | E23: 0 | F23: 0 | G23: 0 | H23: 0 | I23: 0 | J23: 0 | K23: 0 | L23: 0 | M23: 0 | N23: 0 | O23: 0 | Q23: 14399204 | R23: 15021226 | S23: 15702294 | T23: 15528930 | U23: 15863913 | V23: 15725738 | W23: 16188559 | X23: 16442892 | Y23: 17496924 | Z23: 17841458 | AA23: 17973491 | AB23: 15255240 | AC23: 17878260
A24: DREV0113 | B24: Revenue from other Sources | C24: -9303620 | D24: -22196047 | E24: -9522696 | F24: -6818170 | G24: -5657652 | H24: 28710611 | I24: 33726275 | J24: 25435474 | K24: -11193000 | L24: 1483525 | M24: -38062705.54 | N24: 22196934.78 | O24: 17067560.72 | Q24: 11401498 | R24: 14395482 | S24: 17958318 | T24: 20438643 | U24: 20744918 | V24: 27720939 | W24: 25348547 | X24: 22481414 | Y24: 18597517 | Z24: 23077887 | AA24: 74341593 | AB24: 57163205 | AC24: 61382361
A25: DREV01 | B25: Total revenue by chargeable quantity | C25: =SUM(C12:C24) -> 457278000 | D25: =SUM(D12:D24) -> 477674000 | E25: 498787000 | F25: 526557000 | G25: 553315000 | H25: 617017000 | I25: 773858000 | J25: 817055000 | K25: =SUM(K12:K24) -> 849891000 | L25: 928118152 | M25: =SUM(M12:M24) -> 679011681.5 | N25: 755805870.7 | O25: 788554421.2 | Q25: =SUM(Q12:Q24) -> 25800702 | R25: =SUM(R12:R24) -> 29416708 | S25: =SUM(S12:S24) -> 33660612 | T25: =SUM(T12:T24) -> 35967573 | U25: =SUM(U12:U24) -> 36608831 | V25: =SUM(V12:V24) -> 61776677 | W25: =SUM(W12:W24) -> 63367106 | X25: =SUM(X12:X24) -> 62679306 | Y25: 61812441 | Z25: 68327425 | AA25: 110131173.3 | AB25: 94893648.09 | AC25: 99850871.52
B27: 3.1.2 - REVENUE GROUPING BY CUSTOMER TYPE OR CLASS
C28: STANDARD CONTROL SERVICES | Q28: ALTERNATIVE CONTROL SERVICES
C29: REVENUE ($0's) | Q29: REVENUE ($0's)
C30: =IF(dms_RPT="financial",dms_fy1,dms_cy1) -> 2005-06 | D30: =IF(dms_RPT="financial",dms_fy2,dms_cy2) -> 2006-07 | E30: =IF(dms_RPT="financial",dms_fy3,dms_cy3) -> 2007-08 | F30: =IF(dms_RPT="financial",dms_fy4,dms_cy4) -> 2008-09 | G30: =IF(dms_RPT="financial",dms_fy5,dms_cy5) -> 2009-10 | H30: =IF(dms_RPT="financial",dms_fy6,dms_cy6) -> 2010-11 | I30: =IF(dms_RPT="financial",dms_fy7,dms_cy7) -> 2011-12 | J30: =IF(dms_RPT="financial",dms_fy8,dms_cy8) -> 2012-13 | K30: =IF(dms_RPT="financial",dms_fy9,dms_cy9) -> 2013-14 | L30: =IF(dms_RPT="financial",dms_fy10,dms_cy10) -> 2014-15 | M30: =IF(dms_RPT="financial",dms_fy11,dms_cy11) -> 2015-16 | N30: =IF(dms_RPT="financial",dms_fy12,dms_cy12) -> 2016-17 | O30: =IF(dms_RPT="financial",dms_fy13,dms_cy13) -> 2017-18 | Q30: =IF(dms_RPT="financial",dms_fy1,dms_cy1) -> 2005-06 | R30: =IF(dms_RPT="financial",dms_fy2,dms_cy2) -> 2006-07 | S30: =IF(dms_RPT="financial",dms_fy3,dms_cy3) -> 2007-08 | T30: =IF(dms_RPT="financial",dms_fy4,dms_cy4) -> 2008-09 | U30: =IF(dms_RPT="financial",dms_fy5,dms_cy5) -> 2009-10 | V30: =IF(dms_RPT="financial",dms_fy6,dms_cy6) -> 2010-11 | W30: =IF(dms_RPT="financial",dms_fy7,dms_cy7) -> 2011-12 | X30: =IF(dms_RPT="financial",dms_fy8,dms_cy8) -> 2012-13 | Y30: =IF(dms_RPT="financial",dms_fy9,dms_cy9) -> 2013-14 | Z30: =IF(dms_RPT="financial",dms_fy10,dms_cy10) -> 2014-15 | AA30: =IF(dms_RPT="financial",dms_fy11,dms_cy11) -> 2015-16 | AB30: =IF(dms_RPT="financial",dms_fy12,dms_cy12) -> 2016-17 | AC30: =IF(dms_RPT="financial",dms_fy13,dms_cy13) -> 2017-18
A31: DREV0201 | B31: Revenue from residential Customers | C31: 250819800 | D31: 265967624 | E31: 272846658 | F31: 285374746 | G31: 309121798 | H31: 312320224 | I31: 376325950 | J31: 395423286 | K31: 422725000 | L31: 454591900 | M31: 365534674 | N31: 378566181 | O31: 400188934 | Q31: 0 | R31: 0 | S31: 0 | T31: 0 | U31: 0 | V31: 15576000 | W31: 18870000 | X31: 20650000 | Y31: 22408000 | Z31: 24068810 | AA31: 15823960.71 | AB31: 19904012.43 | AC31: 17945971
A32: DREV0202 | B32: Revenue from Non residential customers not on demand tariffs | C32: 125655090 | D32: 137222958 | E32: 138162346 | F32: 143713447 | G32: 147468918 | H32: 124273783 | I32: 157121648 | J32: 166071055 | K32: 173015000 | L32: 176476676 | M32: 120676612 | N32: 110820832 | O32: 114021664 | Q32: 0 | R32: 0 | S32: 0 | T32: 0 | U32: 0 | V32: 2242000 | W32: 2706000 | X32: 2855000 | Y32: 3077000 | Z32: 3140510 | AA32: 1992128.619 | AB32: 2571190.66 | AC32: 2644279.526
A33: DREV0203 | B33: Revenue from Non-residential low voltage demand tariff customers | C33: 58568961 | D33: 63195556 | E33: 64523983 | F33: 70520516 | G33: 70066040 | H33: 113948708 | I33: 157920052 | J33: 177423771 | K33: 205593000 | L33: 232765713 | M33: 184240406 | N33: 191669045 | O33: 206141532.5 | Q33: 0 | R33: 0 | S33: 0 | T33: 0 | U33: 0 | V33: 358000 | W33: 178000 | X33: 175000 | Y33: 163000 | Z33: 139130 | AA33: 0 | AB33: 0 | AC33: 0
A34: DREV0204 | B34: Revenue from Non-residential high voltage demand tariff customers | C34: 28043981 | D34: 29772991 | E34: 29029416 | F34: 29768917 | G34: 28421399 | H34: 33507121 | I34: 43093728 | J34: 46521288 | K34: 52659000 | L34: 55211381 | M34: 41465449 | N34: 45560274.45 | O34: 46128076.75 | Q34: 0 | R34: 0 | S34: 0 | T34: 0 | U34: 0 | V34: 154000 | W34: 76000 | X34: 75000 | Y34: 70000 | Z34: 59630 | AA34: 0 | AB34: 0 | AC34: 0
A35: DREV0205 | B35: Revenue from unmetered supplies | C35: 3493788 | D35: 3710918 | E35: 3747293 | F35: 3997544 | G35: 3894497 | H35: 4256553 | I35: 5670347 | J35: 6180126 | K35: 7092000 | L35: 7588957 | M35: 5157246 | N35: 6992604.102 | O35: 5006654.694 | Q35: 0 | R35: 0 | S35: 0 | T35: 0 | U35: 0 | V35: 0 | W35: 0 | X35: 0 | Y35: 0 | Z35: 0 | AA35: 0 | AB35: 0 | AC35: 0
A36: DREV0206 | B36: Revenue from Other Customers | C36: -9303620 | D36: -22196047 | E36: -9522696 | F36: -6818170 | G36: -5657652 | H36: 28710611 | I36: 33726275 | J36: 25435474 | K36: -11193000 | L36: 1483525 | M36: -38062705.54 | N36: 22196934.78 | O36: 17067558.72 | Q36: 25800702 | R36: 29416708 | S36: 33660612 | T36: 35967573 | U36: 36608831 | V36: 43446677 | W36: 41537106 | X36: 38924306 | Y36: 36094441 | Z36: 40919345 | AA36: 92315084 | AB36: 72418445 | AC36: 79260621
A37: DREV02 | B37: Total revenue by customer class | C37: =SUM(C31:C36) -> 457278000 | D37: =SUM(D31:D36) -> 477674000 | E37: 498787000 | F37: 526557000 | G37: 553315000 | H37: 617017000 | I37: 773858000 | J37: 817055000 | K37: =SUM(K31:K36) -> 849891000 | L37: 928118152 | M37: 679011681.5 | N37: 755805871.3 | O37: 788554420.6 | Q37: =SUM(Q31:Q36) -> 25800702 | R37: =SUM(R31:R36) -> 29416708 | S37: =SUM(S31:S36) -> 33660612 | T37: =SUM(T31:T36) -> 35967573 | U37: =SUM(U31:U36) -> 36608831 | V37: =SUM(V31:V36) -> 61776677 | W37: =SUM(W31:W36) -> 63367106 | X37: =SUM(X31:X36) -> 62679306 | Y37: 61812441 | Z37: 68327425 | AA37: 110131173.3 | AB37: 94893648.09 | AC37: 99850871.52
B39: 3.1.3 - REVENUE (penalties) ALLOWED (deducted) THROUGH INCENTIVE SCHEMES
C40: STANDARD CONTROL SERVICES | Q40: ALTERNATIVE CONTROL SERVICES
C41: REVENUE ($0's) | Q41: REVENUE ($0's)
C42: =IF(dms_RPT="financial",dms_fy1,dms_cy1) -> 2005-06 | D42: =IF(dms_RPT="financial",dms_fy2,dms_cy2) -> 2006-07 | E42: =IF(dms_RPT="financial",dms_fy3,dms_cy3) -> 2007-08 | F42: =IF(dms_RPT="financial",dms_fy4,dms_cy4) -> 2008-09 | G42: =IF(dms_RPT="financial",dms_fy5,dms_cy5) -> 2009-10 | H42: =IF(dms_RPT="financial",dms_fy6,dms_cy6) -> 2010-11 | I42: =IF(dms_RPT="financial",dms_fy7,dms_cy7) -> 2011-12 | J42: =IF(dms_RPT="financial",dms_fy8,dms_cy8) -> 2012-13 | K42: =IF(dms_RPT="financial",dms_fy9,dms_cy9) -> 2013-14 | L42: =IF(dms_RPT="financial",dms_fy10,dms_cy10) -> 2014-15 | M42: =IF(dms_RPT="financial",dms_fy11,dms_cy11) -> 2015-16 | N42: =IF(dms_RPT="financial",dms_fy12,dms_cy12) -> 2016-17 | O42: =IF(dms_RPT="financial",dms_fy13,dms_cy13) -> 2017-18 | Q42: =IF(dms_RPT="financial",dms_fy1,dms_cy1) -> 2005-06 | R42: =IF(dms_RPT="financial",dms_fy2,dms_cy2) -> 2006-07 | S42: =IF(dms_RPT="financial",dms_fy3,dms_cy3) -> 2007-08 | T42: =IF(dms_RPT="financial",dms_fy4,dms_cy4) -> 2008-09 | U42: =IF(dms_RPT="financial",dms_fy5,dms_cy5) -> 2009-10 | V42: =IF(dms_RPT="financial",dms_fy6,dms_cy6) -> 2010-11 | W42: =IF(dms_RPT="financial",dms_fy7,dms_cy7) -> 2011-12 | X42: =IF(dms_RPT="financial",dms_fy8,dms_cy8) -> 2012-13 | Y42: =IF(dms_RPT="financial",dms_fy9,dms_cy9) -> 2013-14 | Z42: =IF(dms_RPT="financial",dms_fy10,dms_cy10) -> 2014-15 | AA42: =IF(dms_RPT="financial",dms_fy11,dms_cy11) -> 2015-16 | AB42: =IF(dms_RPT="financial",dms_fy12,dms_cy12) -> 2016-17 | AC42: =IF(dms_RPT="financial",dms_fy13,dms_cy13) -> 2017-18
A43: DREV0301 | B43: EBSS
A44: DREV0302 | B44: STPIS
A45: DREV0303 | B45: F-Factor
A46: DREV0304 | B46: S-Factor True up
A47: DREV0305 | B47: Other
A48: DREV03 | B48: Total revenue of incentive schemes | C48: =SUM(C43:C47) -> 0 | D48: =SUM(D43:D47) -> 0 | E48: 0 | F48: 0 | G48: 0 | H48: 0 | I48: 0 | J48: 0 | K48: =SUM(K43:K47) -> 0 | L48: 0 | M48: 0 | N48: 0 | O48: 0 | Q48: =SUM(Q43:Q47) -> 0 | R48: =SUM(R43:R47) -> 0 | S48: =SUM(S43:S47) -> 0 | T48: =SUM(T43:T47) -> 0 | U48: =SUM(U43:U47) -> 0 | V48: =SUM(V43:V47) -> 0 | W48: =SUM(W43:W47) -> 0 | X48: =SUM(X43:X47) -> 0 | Y48: 0 | Z48: 0 | AA48: 0 | AB48: 0 | AC48: 0

Sheet 3.2 Operating expenditure
B1: REGULATORY REPORTING STATEMENT
B2: =INDEX(dms_TradingNameFull_List,MATCH(dms_TradingName,dms_TradingName_List)) -> SA Power Networks
B3: =CONCATENATE("ECONOMIC BENCHMARKING ",IF(SUM(dms_SingleYear_Model)>0,CRY,CONCATENATE(dms_CRCP_FirstYear_Result," to ",dms_CRCP_FinalYear_Result))) -> ECONOMIC BENCHMARKING 2005-06
B4: 3.2 OPERATING EXPENDITURE
B6: There are THREE tables on this worksheet. Each has been grouped for ease of navigation. see the Instructions sheet on how to group or ungroup tables.
B8: Instructions
B9: =CONCATENATE("Please list current opex categories in tables 3.2.1 and 3.2.2 and provide opex data as required."," Where opex categories have changed at any time during the ",CRY, " to ",dms_MultiYear_FinalYear_Result," regulatory period, list previous opex categories in the 'Historical' sub-table and provide opex data as required.") -> Please list current opex categories in tables 3.2.1 and 3.2.2 and provide opex data as required. Where opex categories have changed at any time during the 2005-06 to 2017-18 regulatory period, list previous opex categories in the 'Historical' sub-table and provide opex data as required.
B11: 3.2.1 - OPEX CATEGORIES
B12: CURRENT OPEX CATEGORIES AND COST ALLOCATIONS
D13: STANDARD CONTROL SERVICES | R13: ALTERNATIVE CONTROL SERVICES
D14: EXPENDITURE ($0's) | R14: EXPENDITURE ($0's)
D15: =IF(dms_RPT="financial",dms_fy1,dms_cy1) -> 2005-06 | E15: =IF(dms_RPT="financial",dms_fy2,dms_cy2) -> 2006-07 | F15: =IF(dms_RPT="financial",dms_fy3,dms_cy3) -> 2007-08 | G15: =IF(dms_RPT="financial",dms_fy4,dms_cy4) -> 2008-09 | H15: =IF(dms_RPT="financial",dms_fy5,dms_cy5) -> 2009-10 | I15: =IF(dms_RPT="financial",dms_fy6,dms_cy6) -> 2010-11 | J15: =IF(dms_RPT="financial",dms_fy7,dms_cy7) -> 2011-12 | K15: =IF(dms_RPT="financial",dms_fy8,dms_cy8) -> 2012-13 | L15: =IF(dms_RPT="financial",dms_fy9,dms_cy9) -> 2013-14 | M15: =IF(dms_RPT="financial",dms_fy10,dms_cy10) -> 2014-15 | N15: =IF(dms_RPT="financial",dms_fy11,dms_cy11) -> 2015-16 | O15: =IF(dms_RPT="financial",dms_fy12,dms_cy12) -> 2016-17 | P15: =IF(dms_RPT="financial",dms_fy13,dms_cy13) -> 2017-18 | R15: =IF(dms_RPT="financial",dms_fy1,dms_cy1) -> 2005-06 | S15: =IF(dms_RPT="financial",dms_fy2,dms_cy2) -> 2006-07 | T15: =IF(dms_RPT="financial",dms_fy3,dms_cy3) -> 2007-08 | U15: =IF(dms_RPT="financial",dms_fy4,dms_cy4) -> 2008-09 | V15: =IF(dms_RPT="financial",dms_fy5,dms_cy5) -> 2009-10 | W15: =IF(dms_RPT="financial",dms_fy6,dms_cy6) -> 2010-11 | X15: =IF(dms_RPT="financial",dms_fy7,dms_cy7) -> 2011-12 | Y15: =IF(dms_RPT="financial",dms_fy8,dms_cy8) -> 2012-13 | Z15: =IF(dms_RPT="financial",dms_fy9,dms_cy9) -> 2013-14 | AA15: =IF(dms_RPT="financial",dms_fy10,dms_cy10) -> 2014-15 | AB15: =IF(dms_RPT="financial",dms_fy11,dms_cy11) -> 2015-16 | AC15: =IF(dms_RPT="financial",dms_fy12,dms_cy12) -> 2016-17 | AD15: =IF(dms_RPT="financial",dms_fy13,dms_cy13) -> 2017-18
A16: DOPEX0101 | B16: Distribution licence fee | D16: 3132731 | E16: 3203241.64 | F16: 3433783.04 | G16: 3522151.27 | H16: 3382368.99 | I16: 3320000 | J16: 3320000 | K16: 3320000 | L16: 3323542.46 | M16: 3326815.89 | N16: 2558186.82 | O16: 2263400 | P16: 2299110.14 | R16: 0 | S16: 0 | T16: 0 | U16: 0 | V16: 0 | W16: 0 | X16: 0 | Y16: 0 | Z16: 0 | AA16: 0 | AB16: 0 | AC16: 0 | AD16: 0
A17: DOPEX0102 | B17: Network operating costs | D17: 12595317 | E17: 14920724 | F17: 15408742 | G17: 17395591.17 | H17: 18616920.54 | I17: 20287288.11 | J17: 20849359.65 | K17: 23160851.86 | L17: 27336176.47 | M17: 27206508.06 | N17: 26327893.28 | O17: 25867915.96 | P17: 35713998.7 | R17: 0 | S17: 0 | T17: 0 | U17: 0 | V17: 0 | W17: 0 | X17: 0 | Y17: 0 | Z17: 0 | AA17: 0 | AB17: 0 | AC17: 0 | AD17: 0
A18: DOPEX0103 | B18: Inspections | D18: 3819171 | E18: 3656722 | F18: 4178947 | G18: 3977105.04 | H18: 5036673.07 | I18: 8350116.87 | J18: 9540735.57 | K18: 12957458.04 | L18: 11491685.45 | M18: 14446039.11 | N18: 13641343.41 | O18: 13701623.13 | P18: 11939438.68 | R18: 0 | S18: 0 | T18: 0 | U18: 0 | V18: 0 | W18: 0 | X18: 0 | Y18: 0 | Z18: 0 | AA18: 0 | AB18: 0 | AC18: 0 | AD18: 0
A19: DOPEX0104 | B19: Maintenance and repair | D19: 10396545.96 | E19: 11393743.46 | F19: 12072915.7 | G19: 14588350.57 | H19: 14942293.77 | I19: 15275542.44 | J19: 19422958.74 | K19: 18916503.69 | L19: 27746730.55 | M19: 24931363.57 | N19: 22920361.27 | O19: 28309164.66 | P19: 29598223.84 | R19: 806209.2 | S19: 993904.61 | T19: 904287.27 | U19: 1062852.16 | V19: 1510426.67 | W19: 1585809.31 | X19: 1713495.99 | Y19: 1366898.71 | Z19: 1155191.43 | AA19: 1093158.55 | AB19: 2726925.52 | AC19: 1988466.63 | AD19: 1651037.653
A20: DOPEX0105 | B20: Substation property maintenance | D20: 1941233.223 | E20: 2454708.182 | F20: 2526149.912 | G20: 2477025.679 | H20: 2754649.713 | I20: 4044977.853 | J20: 3901044.484 | K20: 4719734.288 | L20: 6559950.2 | M20: 7388833.103 | N20: 6786534.672 | O20: 6762167.888 | P20: 7818000.886 | R20: 0 | S20: 0 | T20: 0 | U20: 0 | V20: 0 | W20: 0 | X20: 0 | Y20: 0 | Z20: 0 | AA20: 0 | AB20: 0 | AC20: 0 | AD20: 0
A21: DOPEX0106 | B21: Vegetation management | D21: 13110560 | E21: 9204002 | F21: 16097835 | G21: 14441385.01 | H21: 14943809.04 | I21: 21986577.72 | J21: 37234678.9 | K21: 41566007.79 | L21: 35953469.82 | M21: 46802128.29 | N21: 32029751.13 | O21: 31138908.85 | P21: 38365210.35 | R21: 0 | S21: 0 | T21: 0 | U21: 0 | V21: 0 | W21: 0 | X21: 0 | Y21: 0 | Z21: 0 | AA21: 0 | AB21: 0 | AC21: 0 | AD21: 0
A22: DOPEX0107 | B22: Emergency response | D22: 19188515 | E22: 19348890 | F22: 23858840 | G22: 27719580.95 | H22: 27148980.81 | I22: 30181240.95 | J22: 26388299.76 | K22: 32431747.54 | L22: 32436176.54 | M22: 32849401.83 | N22: 34747494.26 | O22: 44966413.84 | P22: 35434504.43 | R22: 0 | S22: 0 | T22: 0 | U22: 0 | V22: 0 | W22: 0 | X22: 0 | Y22: 0 | Z22: 0 | AA22: 0 | AB22: 0 | AC22: 0 | AD22: 0
A23: DOPEX0108 | B23: Demand management | D23: 863317 | E23: 3434796 | F23: 2315092 | G23: 3482231.22 | H23: 1557888.9 | I23: 5116785.83 | J23: 2257974.55 | K23: 3006988.31 | L23: 2616143.66 | M23: 2669305.17 | N23: 0 | O23: 0 | P23: 0 | R23: 0 | S23: 0 | T23: 0 | U23: 0 | V23: 0 | W23: 0 | X23: 0 | Y23: 0 | Z23: 0 | AA23: 0 | AB23: 0 | AC23: 0 | AD23: 0
A24: DOPEX0109 | B24: Guaranteed service level payments | D24: 2026284 | E24: 493257 | F24: 845868 | G24: 543595.45 | H24: 1297764 | I24: 7052285 | J24: 2996580 | K24: 4762807 | L24: 9923975 | M24: 3713691.06 | N24: 3389550 | O24: 25515380.57 | P24: 1867082.64 | R24: 0 | S24: 0 | T24: 0 | U24: 0 | V24: 0 | W24: 0 | X24: 0 | Y24: 0 | Z24: 0 | AA24: 0 | AB24: 0 | AC24: 0 | AD24: 0
A25: DOPEX0110 | B25: Network insurance | D25: 3123710.219 | E25: 2310392.784 | F25: 2149102.907 | G25: 2603143.382 | H25: 2327088.206 | I25: 2405877.475 | J25: 2682356.489 | K25: 3282566.039 | L25: 2902521.709 | M25: 2645505.06 | N25: 1641531.188 | O25: 1827737.535 | P25: 1872276.643 | R25: 0 | S25: 0 | T25: 0 | U25: 0 | V25: 0 | W25: 0 | X25: 0 | Y25: 0 | Z25: 0 | AA25: 0 | AB25: 0 | AC25: 0 | AD25: 0
A26: DOPEX0111 | B26: Call centre | D26: 2390498.67 | E26: 2466558.66 | F26: 2547589.98 | G26: 2367686.37 | H26: 2222958.54 | I26: 2466427.08 | J26: 2644297.71 | K26: 2746663.94 | L26: 2887267.43 | M26: 3158852.86 | N26: 3210252.2 | O26: 3297340.35 | P26: 3579417.24 | R26: 0 | S26: 0 | T26: 0 | U26: 0 | V26: 0 | W26: 0 | X26: 0 | Y26: 0 | Z26: 0 | AA26: 0 | AB26: 0 | AC26: 0 | AD26: 0
A27: DOPEX0112 | B27: Customer billing (previously full retail contestability) | D27: 10861276.5 | E27: 9584756.06 | F27: 10879884.18 | G27: 11557342.25 | H27: 13151521.25 | I27: 16072343.93 | J27: 15029933.75 | K27: 15739466.95 | L27: 16595731.47 | M27: 17340798.57 | N27: 15865522.39 | O27: 15528517.49 | P27: 15155255.5 | R27: 0 | S27: 0 | T27: 0 | U27: 0 | V27: 0 | W27: 0 | X27: 0 | Y27: 0 | Z27: 0 | AA27: 0 | AB27: 2328232.109 | AC27: 2193106.876 | AD27: 2224792.63
A28: DOPEX0113 | B28: Meter reading | D28: 0 | E28: 0 | F28: 0 | G28: 0 | H28: 0 | I28: 0 | J28: 0 | K28: 0 | L28: 0 | M28: 0 | N28: 0 | O28: 0 | P28: 0 | R28: 3646475.52 | S28: 3145465.4 | T28: 3171965.33 | U28: 3331587.42 | V28: 3388650.52 | W28: 3396889.93 | X28: 3383420.68 | Y28: 3576787.28 | Z28: 3513198.54 | AA28: 3566560.76 | AB28: 3562050.05 | AC28: 3632790.01 | AD28: 3097098.04
A29: DOPEX0114 | B29: Other customer services | D29: 1881862.743 | E29: 3029505.433 | F29: 3665343.005 | G29: 3760340.56 | H29: 4156132.652 | I29: 4903555.499 | J29: 6289753.735 | K29: 6421255.709 | L29: 6490666.743 | M29: 6434012.121 | N29: 6946344.621 | O29: 7679470.246 | P29: 9266336.734 | R29: 275169.587 | S29: 431314.5666 | T29: 584236.0153 | U29: 758859.09 | V29: 990066.0578 | W29: 802856.6212 | X29: 864019.665 | Y29: 726764.3513 | Z29: 755008.1066 | AA29: 626472.259 | AB29: 1138391.769 | AC29: 1072517.964 | AD29: 824736.3845
A30: DOPEX0115 | B30: Corporate costs and other operating | D30: 31467839.59 | E30: 28409707.15 | F30: 32113606.31 | G30: 42007130.16 | H30: 42581384.93 | I30: 57741204.83 | J30: 61281158.15 | K30: 58733842.85 | L30: 64921341.85 | M30: 67748422.76 | N30: 52874705.79 | O30: 58995611.88 | P30: 72593463.51 | R30: 2820573.512 | S30: 2653295.408 | T30: 3820412.755 | U30: 4305979.892 | V30: 4467571.724 | W30: 4793064.462 | X30: 5634173.11 | Y30: 3989372.165 | Z30: 4463089.949 | AA30: 4254116.444 | AB30: 5655373.517 | AC30: 5382073.741 | AD30: 9039711.123
A31: DOPEX0116 | B31: Public lighting | D31: 0 | E31: 0 | F31: 0 | G31: 0 | H31: 0 | I31: 0 | J31: 0 | K31: 0 | L31: 0 | M31: 0 | N31: 0 | O31: 0 | P31: 0 | R31: 3252274 | S31: 4757540 | T31: 5890231 | U31: 4553703.804 | V31: 5075073.845 | W31: 4830457.188 | X31: 5324120.556 | Y31: 6175241.173 | Z31: 6894329.36 | AA31: 6984583.12 | AB31: 7322865.11 | AC31: 8687201.54 | AD31: 13325496.09
A32: DOPEX0117 | B32: Fee-based and quoted services | D32: 0 | E32: 0 | F32: 0 | G32: 0 | H32: 0 | I32: 0 | J32: 0 | K32: 0 | L32: 0 | M32: 0 | N32: 0 | O32: 0 | P32: 0 | R32: 8234851 | S32: 9919009 | T32: 10156680 | U32: 12771953.31 | V32: 14299984.26 | W32: 23210382.05 | X32: 17321000.53 | Y32: 16642164.59 | Z32: 15725471.39 | AA32: 17211437.22 | AB32: 44263232.97 | AC32: 33332470.5 | AD32: 35922833.18
A33: DOPEX0118
A34: DOPEX0119
A35: DOPEX0120
A36: DOPEX0121
A37: DOPEX0122
A38: DOPEX0123
A39: DOPEX0124
A40: DOPEX0125
A41: DOPEX0126
A42: DOPEX0127
A43: DOPEX0128
A44: DOPEX0129
A45: DOPEX0130
A46: DOPEX0131
A47: DOPEX0132
A48: DOPEX0133
A49: DOPEX0134
A50: DOPEX0135
A51: DOPEX0136
A52: DOPEX0137
A53: DOPEX0138
A54: DOPEX0139
A55: DOPEX0140
A56: DOPEX0141
A57: DOPEX0142
A58: DOPEX01 | B58: Total opex | D58: =SUM(D16:D57) -> 116798861.9 | E58: 113911004.4 | F58: 132093699 | G58: 150442659.1 | H58: 154120434.4 | I58: 199204223.6 | J58: 213839131.5 | K58: 231765894 | L58: =SUM(L16:L57) -> 251185379.4 | M58: 260661677.5 | N58: 222939471 | P58: 265502319.3 | R58: =SUM(R16:R57) -> 19035552.82 | S58: =SUM(S16:S57) -> 21900528.98 | T58: =SUM(T16:T57) -> 24527812.37 | U58: =SUM(U16:U57) -> 26784935.68 | V58: =SUM(V16:V57) -> 29731773.07 | W58: =SUM(W16:W57) -> 38619459.56 | X58: =SUM(X16:X57) -> 34240230.53 | Y58: =SUM(Y16:Y57) -> 32477228.27 | Z58: =SUM(Z16:Z57) -> 32506288.78 | AA58: 33736328.35 | AB58: 66997071.04 | AD58: =SUM(AD16:AD57) -> 66085705.1
B60: A: HISTORICAL OPEX CATEGORIES AND COST ALLOCATIONS
D61: STANDARD CONTROL SERVICES | R61: ALTERNATIVE CONTROL SERVICES
D62: EXPENDITURE ($0's) | R62: EXPENDITURE ($0's)
D63: =IF(dms_RPT="financial",dms_fy1,dms_cy1) -> 2005-06 | E63: =IF(dms_RPT="financial",dms_fy2,dms_cy2) -> 2006-07 | F63: =IF(dms_RPT="financial",dms_fy3,dms_cy3) -> 2007-08 | G63: =IF(dms_RPT="financial",dms_fy4,dms_cy4) -> 2008-09 | H63: =IF(dms_RPT="financial",dms_fy5,dms_cy5) -> 2009-10 | I63: =IF(dms_RPT="financial",dms_fy6,dms_cy6) -> 2010-11 | J63: =IF(dms_RPT="financial",dms_fy7,dms_cy7) -> 2011-12 | K63: =IF(dms_RPT="financial",dms_fy8,dms_cy8) -> 2012-13 | L63: =IF(dms_RPT="financial",dms_fy9,dms_cy9) -> 2013-14 | M63: =IF(dms_RPT="financial",dms_fy10,dms_cy10) -> 2014-15 | N63: =IF(dms_RPT="financial",dms_fy11,dms_cy11) -> 2015-16 | O63: =IF(dms_RPT="financial",dms_fy12,dms_cy12) -> 2016-17 | P63: =IF(dms_RPT="financial",dms_fy13,dms_cy13) -> 2017-18 | R63: =IF(dms_RPT="financial",dms_fy1,dms_cy1) -> 2005-06 | S63: =IF(dms_RPT="financial",dms_fy2,dms_cy2) -> 2006-07 | T63: =IF(dms_RPT="financial",dms_fy3,dms_cy3) -> 2007-08 | U63: =IF(dms_RPT="financial",dms_fy4,dms_cy4) -> 2008-09 | V63: =IF(dms_RPT="financial",dms_fy5,dms_cy5) -> 2009-10 | W63: =IF(dms_RPT="financial",dms_fy6,dms_cy6) -> 2010-11 | X63: =IF(dms_RPT="financial",dms_fy7,dms_cy7) -> 2011-12 | Y63: =IF(dms_RPT="financial",dms_fy8,dms_cy8) -> 2012-13 | Z63: =IF(dms_RPT="financial",dms_fy9,dms_cy9) -> 2013-14 | AA63: =IF(dms_RPT="financial",dms_fy10,dms_cy10) -> 2014-15 | AB63: =IF(dms_RPT="financial",dms_fy11,dms_cy11) -> 2015-16 | AC63: =IF(dms_RPT="financial",dms_fy12,dms_cy12) -> 2016-17 | AD63: =IF(dms_RPT="financial",dms_fy13,dms_cy13) -> 2017-18
A64: DOPEX0101 | B64: Distribution licence fee | I64: 3320000 | J64: 3320000 | K64: 3320000 | L64: 3323542.46 | M64: 3326815.89 | N64: 2558186.82 | O64: 2263400 | P64: 2299110.14 | W64: 0 | X64: 0 | Y64: 0 | Z64: 0 | AA64: 0 | AB64: 0 | AC64: 0 | AD64: 0
A65: DOPEX0102 | B65: Network operating costs | I65: 20287288.11 | J65: 20849359.65 | K65: 23160851.86 | L65: 27336176.47 | M65: 27206508.06 | N65: 26327893.28 | O65: 25867915.96 | P65: 35713998.7 | W65: 0 | X65: 0 | Y65: 0 | Z65: 0 | AA65: 0 | AB65: 0 | AC65: 0 | AD65: 0
A66: DOPEX0103 | B66: Inspections | I66: 8350116.87 | J66: 9540735.57 | K66: 12957458.04 | L66: 11491685.45 | M66: 14446039.11 | N66: 13641343.41 | O66: 13701623.13 | P66: 11939438.68 | W66: 0 | X66: 0 | Y66: 0 | Z66: 0 | AA66: 0 | AB66: 0 | AC66: 0 | AD66: 0
A67: DOPEX0104 | B67: Maintenance and repair | I67: 15275542.44 | J67: 19422958.74 | K67: 18916503.69 | L67: 27746730.55 | M67: 24931363.57 | N67: 22920361.27 | O67: 28309164.66 | P67: 29598223.84 | W67: 1585809.31 | X67: 1713495.99 | Y67: 1366898.71 | Z67: 1155191.43 | AA67: 1093158.55 | AB67: 2726925.52 | AC67: 1988466.63 | AD67: 1651037.653
A68: DOPEX0105 | B68: Substation property maintenance | I68: 4044977.853 | J68: 3901044.484 | K68: 4719734.288 | L68: 6559950.2 | M68: 7388833.103 | N68: 6786534.672 | O68: 6762167.888 | P68: 7818000.886 | W68: 0 | X68: 0 | Y68: 0 | Z68: 0 | AA68: 0 | AB68: 0 | AC68: 0 | AD68: 0
A69: DOPEX0106 | B69: Vegetation management | I69: 21986577.72 | J69: 37234678.9 | K69: 41566007.79 | L69: 35953469.82 | M69: 46802128.29 | N69: 32029751.13 | O69: 31138908.85 | P69: 38365210.35 | W69: 0 | X69: 0 | Y69: 0 | Z69: 0 | AA69: 0 | AB69: 0 | AC69: 0 | AD69: 0
A70: DOPEX0107 | B70: Emergency response | I70: 30181240.95 | J70: 26388299.76 | K70: 32431747.54 | L70: 32436176.54 | M70: 32849401.83 | N70: 34747494.26 | O70: 44966413.84 | P70: 35434504.43 | W70: 0 | X70: 0 | Y70: 0 | Z70: 0 | AA70: 0 | AB70: 0 | AC70: 0 | AD70: 0
A71: DOPEX0108 | B71: Demand management | I71: 5116785.83 | J71: 2257974.55 | K71: 3006988.31 | L71: 2616143.66 | M71: 2669305.17 | N71: 0 | O71: 0 | P71: 0 | W71: 0 | X71: 0 | Y71: 0 | Z71: 0 | AA71: 0 | AB71: 0 | AC71: 0 | AD71: 0
A72: DOPEX0109 | B72: Guaranteed service level payments | I72: 7052285 | J72: 2996580 | K72: 4762807 | L72: 9923975 | M72: 3713691.06 | N72: 3389550 | O72: 25515380.57 | P72: 1867082.64 | W72: 0 | X72: 0 | Y72: 0 | Z72: 0 | AA72: 0 | AB72: 0 | AC72: 0 | AD72: 0
A73: DOPEX0110 | B73: Network insurance | I73: 2405877.475 | J73: 2682356.489 | K73: 3282566.039 | L73: 2902521.709 | M73: 2645505.06 | N73: 1641531.188 | O73: 1827737.535 | P73: 1872276.643 | W73: 0 | X73: 0 | Y73: 0 | Z73: 0 | AA73: 0 | AB73: 0 | AC73: 0 | AD73: 0
A74: DOPEX0111 | B74: Call centre | I74: 2466427.08 | J74: 2644297.71 | K74: 2746663.94 | L74: 2887267.43 | M74: 3158852.86 | N74: 3210252.2 | O74: 3297340.35 | P74: 3579417.24 | W74: 0 | X74: 0 | Y74: 0 | Z74: 0 | AA74: 0 | AB74: 0 | AC74: 0 | AD74: 0
A75: DOPEX0112 | B75: Customer billing (previously full retail contestability) | I75: 16072343.93 | J75: 15029933.75 | K75: 15739466.95 | L75: 16595731.47 | M75: 17340798.57 | N75: 15865522.39 | O75: 15528517.49 | P75: 15155255.5 | W75: 0 | X75: 0 | Y75: 0 | Z75: 0 | AA75: 0 | AB75: 2328232.109 | AC75: 2193106.876 | AD75: 2224792.63
A76: DOPEX0113 | B76: Meter reading | I76: 0 | J76: 0 | K76: 0 | L76: 0 | M76: 0 | N76: 0 | O76: 0 | P76: 0 | W76: 3396889.93 | X76: 3383420.68 | Y76: 3576787.28 | Z76: 3513198.54 | AA76: 3566560.76 | AB76: 3562050.05 | AC76: 3632790.01 | AD76: 3097098.04
A77: DOPEX0114 | B77: Other customer services | I77: 4903555.499 | J77: 6289753.735 | K77: 6421255.709 | L77: 6490666.743 | M77: 6434012.121 | N77: 6946344.621 | O77: 7679470.246 | P77: 9266336.734 | W77: 802856.6212 | X77: 864019.665 | Y77: 726764.3513 | Z77: 755008.1066 | AA77: 626472.259 | AB77: 1138391.769 | AC77: 1072517.964 | AD77: 824736.3845
A78: DOPEX0115 | B78: Corporate costs and other operating | I78: 57741204.83 | J78: 61281158.15 | K78: 58733842.85 | L78: 64921341.85 | M78: 67748422.76 | N78: 52874705.79 | O78: 58995611.88 | P78: 72593463.51 | W78: 4793064.462 | X78: 5634173.11 | Y78: 3989372.165 | Z78: 4463089.949 | AA78: 4254116.444 | AB78: 5655373.517 | AC78: 5382073.741 | AD78: 9039711.123
A79: DOPEX0116 | B79: Public lighting | I79: 0 | J79: 0 | K79: 0 | L79: 0 | M79: 0 | N79: 0 | O79: 0 | P79: 0 | W79: 4830457.188 | X79: 5324120.556 | Y79: 6175241.173 | Z79: 6894329.36 | AA79: 6984583.12 | AB79: 7322865.11 | AC79: 8687201.54 | AD79: 13325496.09
A80: DOPEX0117 | B80: Fee-based and quoted services | I80: 0 | J80: 0 | K80: 0 | L80: 0 | M80: 0 | N80: 0 | O80: 0 | P80: 0 | W80: 23210382.05 | X80: 17321000.53 | Y80: 16642164.59 | Z80: 15725471.39 | AA80: 17211437.22 | AB80: 44263232.97 | AC80: 33332470.5 | AD80: 35922833.18
A81: DOPEX0118
A82: DOPEX0119
A83: DOPEX0120
A84: DOPEX0121
A85: DOPEX0122
A86: DOPEX0123
A87: DOPEX0124
A88: DOPEX0125
A89: DOPEX0126
A90: DOPEX0127
A91: DOPEX0128
A92: DOPEX0129
A93: DOPEX0130
A94: DOPEX0131
A95: DOPEX0132
A96: DOPEX0133
A97: DOPEX0134
A98: DOPEX0135
A99: DOPEX0136
A100: DOPEX0137
A101: DOPEX0138
A102: DOPEX0139
A103: DOPEX0140
A104: DOPEX0141
A105: DOPEX0142
A106: DOPEX01 | B106: Total opex
B108: B: HISTORICAL OPEX CATEGORIES AND COST ALLOCATIONS
D109: STANDARD CONTROL SERVICES | R109: ALTERNATIVE CONTROL SERVICES
D110: EXPENDITURE ($0's) | R110: EXPENDITURE ($0's)
D111: =IF(dms_RPT="financial",dms_fy1,dms_cy1) -> 2005-06 | E111: =IF(dms_RPT="financial",dms_fy2,dms_cy2) -> 2006-07 | F111: =IF(dms_RPT="financial",dms_fy3,dms_cy3) -> 2007-08 | G111: =IF(dms_RPT="financial",dms_fy4,dms_cy4) -> 2008-09 | H111: =IF(dms_RPT="financial",dms_fy5,dms_cy5) -> 2009-10 | I111: =IF(dms_RPT="financial",dms_fy6,dms_cy6) -> 2010-11 | J111: =IF(dms_RPT="financial",dms_fy7,dms_cy7) -> 2011-12 | K111: =IF(dms_RPT="financial",dms_fy8,dms_cy8) -> 2012-13 | L111: =IF(dms_RPT="financial",dms_fy9,dms_cy9) -> 2013-14 | M111: =IF(dms_RPT="financial",dms_fy10,dms_cy10) -> 2014-15 | N111: =IF(dms_RPT="financial",dms_fy11,dms_cy11) -> 2015-16 | O111: =IF(dms_RPT="financial",dms_fy12,dms_cy12) -> 2016-17 | P111: =IF(dms_RPT="financial",dms_fy13,dms_cy13) -> 2017-18 | R111: =IF(dms_RPT="financial",dms_fy1,dms_cy1) -> 2005-06 | S111: =IF(dms_RPT="financial",dms_fy2,dms_cy2) -> 2006-07 | T111: =IF(dms_RPT="financial",dms_fy3,dms_cy3) -> 2007-08 | U111: =IF(dms_RPT="financial",dms_fy4,dms_cy4) -> 2008-09 | V111: =IF(dms_RPT="financial",dms_fy5,dms_cy5) -> 2009-10 | W111: =IF(dms_RPT="financial",dms_fy6,dms_cy6) -> 2010-11 | X111: =IF(dms_RPT="financial",dms_fy7,dms_cy7) -> 2011-12 | Y111: =IF(dms_RPT="financial",dms_fy8,dms_cy8) -> 2012-13 | Z111: =IF(dms_RPT="financial",dms_fy9,dms_cy9) -> 2013-14 | AA111: =IF(dms_RPT="financial",dms_fy10,dms_cy10) -> 2014-15 | AB111: =IF(dms_RPT="financial",dms_fy11,dms_cy11) -> 2015-16 | AC111: =IF(dms_RPT="financial",dms_fy12,dms_cy12) -> 2016-17 | AD111: =IF(dms_RPT="financial",dms_fy13,dms_cy13) -> 2017-18
A112: DOPEX0101 | B112: Distribution licence fee | D112: 2956278 | E112: 2996107 | F112: 3212627 | G112: 3329137 | H112: 3184514 | R112: 0 | S112: 0 | T112: 0 | U112: 0 | V112: 0
A113: DOPEX0102 | B113: Network operating costs | D113: 12595317 | E113: 14920724 | F113: 15408742 | G113: 17395591 | H113: 18616921 | R113: 0 | S113: 0 | T113: 0 | U113: 0 | V113: 0
A114: DOPEX0103 | B114: Inspections | D114: 3819171 | E114: 3656722 | F114: 4178947 | G114: 3977105 | H114: 5036673 | R114: 0 | S114: 0 | T114: 0 | U114: 0 | V114: 0
A115: DOPEX0104 | B115: Maintenance and repair | D115: 7534633 | E115: 8622505 | F115: 9084569 | G115: 12161580 | H115: 11979587 | R115: 0 | S115: 0 | T115: 0 | U115: 0 | V115: 0
A116: DOPEX0105 | B116: Substation property maintenance | D116: 4911837 | E116: 5883903 | F116: 6088614 | G116: 6086984 | H116: 6659605 | R116: 0 | S116: 0 | T116: 0 | U116: 0 | V116: 0
A117: DOPEX0106 | B117: Vegetation management | D117: 13110560 | E117: 9204002 | F117: 16097835 | G117: 14441385 | H117: 14943809 | R117: 0 | S117: 0 | T117: 0 | U117: 0 | V117: 0
A118: DOPEX0107 | B118: Emergency response | D118: 19188515 | E118: 19348890 | F118: 23858840 | G118: 27719581 | H118: 27148981 | R118: 0 | S118: 0 | T118: 0 | U118: 0 | V118: 0
A119: DOPEX0108 | B119: Demand management | D119: 863317 | E119: 3434796 | F119: 2315092 | G119: 3482231 | H119: 1557889 | R119: 0 | S119: 0 | T119: 0 | U119: 0 | V119: 0
A120: DOPEX0109 | B120: Guaranteed service level payments | D120: 2026284 | E120: 493257 | F120: 845868 | G120: 543595 | H120: 1297764 | R120: 0 | S120: 0 | T120: 0 | U120: 0 | V120: 0
A121: DOPEX0110 | B121: Network insurance | D121: 5787552 | E121: 3695026 | F121: 3941127 | G121: 4322019 | H121: 4262881 | R121: 0 | S121: 0 | T121: 0 | U121: 0 | V121: 0
A122: DOPEX0111 | B122: Call centre | D122: 2390498 | E122: 2466558 | F122: 2547590 | G122: 2367686 | H122: 2222959 | R122: 0 | S122: 0 | T122: 0 | U122: 0 | V122: 0
A123: DOPEX0112 | B123: Customer billing (previously full retail contestability) | D123: 10861277 | E123: 9584756 | F123: 10879884 | G123: 11557342 | H123: 13151521 | R123: 0 | S123: 0 | T123: 0 | U123: 0 | V123: 0
A124: DOPEX0113 | B124: Meter reading | D124: 3646475 | E124: 3145466 | F124: 3171965 | G124: 3331588 | H124: 3388651 | R124: 0 | S124: 0 | T124: 0 | U124: 0 | V124: 0
A125: DOPEX0114 | B125: Other customer services | D125: 1914436 | E125: 3069011 | F125: 3716931 | G125: 3791610 | H125: 4214006 | R125: 0 | S125: 0 | T125: 0 | U125: 0 | V125: 0
A126: DOPEX0115 | B126: Corporate costs and other operating | D126: 23224781 | E126: 20652028 | F126: 26381018 | G126: 36262962 | H126: 36615216 | R126: 0 | S126: 0 | T126: 0 | U126: 0 | V126: 0
A127: DOPEX0116 | B127: Public lighting | D127: 0 | E127: 0 | F127: 0 | G127: 0 | H127: 0 | R127: 0 | S127: 0 | T127: 0 | U127: 0 | V127: 0
A128: DOPEX0117 | B128: Fee-based and quoted services | D128: 0 | E128: 0 | F128: 0 | G128: 0 | H128: 0 | R128: 0 | S128: 0 | T128: 0 | U128: 0 | V128: 0
A129: DOPEX0118
A130: DOPEX0119
A131: DOPEX0120
A132: DOPEX0121
A133: DOPEX0122
A134: DOPEX0123
A135: DOPEX0124
A136: DOPEX0125
A137: DOPEX0126
A138: DOPEX0127
A139: DOPEX0128
A140: DOPEX0129
A141: DOPEX0130
A142: DOPEX0131
A143: DOPEX0132
A144: DOPEX0133
A145: DOPEX0134
A146: DOPEX0135
A147: DOPEX0136
A148: DOPEX0137
A149: DOPEX0138
A150: DOPEX0139
A151: DOPEX0140
A152: DOPEX0141
A153: DOPEX0142
A154: DOPEX01 | B154: Total opex
B158: 3.2.2 - OPEX CONSISTENCY
B159: OPEX CONSISTENCY - CURRENT COST ALLOCATION APPROACH
D160: STANDARD CONTROL SERVICES | R160: ALTERNATIVE CONTROL SERVICES
D161: EXPENDITURE ($0's) | R161: EXPENDITURE ($0's)
D162: =IF(dms_RPT="financial",dms_fy1,dms_cy1) -> 2005-06 | E162: =IF(dms_RPT="financial",dms_fy2,dms_cy2) -> 2006-07 | F162: =IF(dms_RPT="financial",dms_fy3,dms_cy3) -> 2007-08 | G162: =IF(dms_RPT="financial",dms_fy4,dms_cy4) -> 2008-09 | H162: =IF(dms_RPT="financial",dms_fy5,dms_cy5) -> 2009-10 | I162: =IF(dms_RPT="financial",dms_fy6,dms_cy6) -> 2010-11 | J162: =IF(dms_RPT="financial",dms_fy7,dms_cy7) -> 2011-12 | K162: =IF(dms_RPT="financial",dms_fy8,dms_cy8) -> 2012-13 | L162: =IF(dms_RPT="financial",dms_fy9,dms_cy9) -> 2013-14 | M162: =IF(dms_RPT="financial",dms_fy10,dms_cy10) -> 2014-15 | N162: =IF(dms_RPT="financial",dms_fy11,dms_cy11) -> 2015-16 | O162: =IF(dms_RPT="financial",dms_fy12,dms_cy12) -> 2016-17 | P162: =IF(dms_RPT="financial",dms_fy13,dms_cy13) -> 2017-18 | R162: =IF(dms_RPT="financial",dms_fy1,dms_cy1) -> 2005-06 | S162: =IF(dms_RPT="financial",dms_fy2,dms_cy2) -> 2006-07 | T162: =IF(dms_RPT="financial",dms_fy3,dms_cy3) -> 2007-08 | U162: =IF(dms_RPT="financial",dms_fy4,dms_cy4) -> 2008-09 | V162: =IF(dms_RPT="financial",dms_fy5,dms_cy5) -> 2009-10 | W162: =IF(dms_RPT="financial",dms_fy6,dms_cy6) -> 2010-11 | X162: =IF(dms_RPT="financial",dms_fy7,dms_cy7) -> 2011-12 | Y162: =IF(dms_RPT="financial",dms_fy8,dms_cy8) -> 2012-13 | Z162: =IF(dms_RPT="financial",dms_fy9,dms_cy9) -> 2013-14 | AA162: =IF(dms_RPT="financial",dms_fy10,dms_cy10) -> 2014-15 | AB162: =IF(dms_RPT="financial",dms_fy11,dms_cy11) -> 2015-16 | AC162: =IF(dms_RPT="financial",dms_fy12,dms_cy12) -> 2016-17 | AD162: =IF(dms_RPT="financial",dms_fy13,dms_cy13) -> 2017-18
A163: DOPEX0201 | B163: Opex for network services | D163: 116302749.9 | E163: 112914640.4 | F163: 130933878 | G163: 149173385.1 | H163: 152669628.4 | I163: 197231659.6 | J163: 210494320.5 | K163: 228733331 | L163: 248266602.4 | M163: 258182865.6 | N163: 220390744.5 | O163: 263810740.7 | P163: 263297406.1 | R163: 10065870.78 | S163: 11571511.57 | T163: 12379406.11 | U163: 15758024.15 | V163: 17487666.58 | W163: 27505412.56 | X163: 21199448.53 | Y163: 19247503.88 | Z163: 18472890.07 | AA163: 19920613.39 | AB163: 48671134.54 | AC163: 37265476.7 | AD163: 43202947.45
A164: DOPEX0202 | B164: Opex for metering | D164: 0 | E164: 0 | F164: 0 | G164: 0 | H164: 0 | I164: 0 | J164: 0 | K164: 0 | L164: 0 | M164: 0 | N164: 0 | O164: 0 | P164: 0 | R164: 4894411 | S164: 4565993 | T164: 4678449 | U164: 5044835 | V164: 5563617 | W164: 4982699 | X164: 5932888 | Y164: 5626892 | Z164: 5458228 | AA164: 5458228 | AB164: 9776210.176 | AC164: 8949371.868 | AD164: 6972928.324
A165: DOPEX0203 | B165: Opex for connection services | D165: 496112 | E165: 996364 | F165: 1159821 | G165: 1269274 | H165: 1450806 | I165: 1972564 | J165: 3344811 | K165: 3032563 | L165: 2918777 | M165: 2478811.832 | N165: 2548726.555 | O165: 2042911.67 | P165: 2204913.181 | R165: 74507.57981 | S165: 150598.9196 | T165: 192851.5746 | U165: 275071.3889 | V165: 357832.2932 | W165: 336909.0638 | X165: 468483.1029 | Y165: 353364.7575 | Z165: 349685.0289 | AA165: 250163.2576 | AB165: 433869.5253 | AC165: 296278.2495 | AD165: 201777.4587
A166: DOPEX0204 | B166: Opex for public lighting | D166: 0 | E166: 0 | F166: 0 | G166: 0 | H166: 0 | I166: 0 | J166: 0 | K166: 0 | L166: 0 | M166: 0 | N166: 0 | O166: 0 | P166: 0 | R166: 4000763.462 | S166: 5612425.491 | T166: 7277105.689 | U166: 5707005.137 | V166: 6322657.203 | W166: 5794438.935 | X166: 6639410.893 | Y166: 7249467.629 | Z166: 8225485.681 | AA166: 8107323.705 | AB166: 8115856.802 | AC166: 9777500.441 | AD166: 15708051.86
A167: DOPEX0205 | B167: Opex for amounts payable for easement levy or similar direct charges on DNSP | D167: 0 | E167: 0 | F167: 0 | G167: 0 | H167: 0 | I167: 0 | J167: 0 | K167: 0 | L167: 0 | M167: 0 | N167: 0 | O167: 0 | P167: 0 | R167: 0 | S167: 0 | T167: 0 | U167: 0 | V167: 0 | W167: 0 | X167: 0 | Y167: 0 | Z167: 0 | AA167: 0 | AB167: 0 | AC167: 0 | AD167: 0
A168: DOPEX0206 | B168: Opex for transmission connection point planning | D168: 0 | E168: 0 | F168: 0 | G168: 0 | H168: 0 | I168: 0 | J168: 0 | K168: 0 | L168: 0 | M168: 0 | N168: 0 | O168: 0 | P168: 0 | R168: 0 | S168: 0 | T168: 0 | U168: 0 | V168: 0 | W168: 0 | X168: 0 | Y168: 0 | Z168: 0 | AA168: 0 | AB168: 0 | AC168: 0 | AD168: 0
B170: OPEX CONSISTENCY - A: HISTORICAL COST ALLOCATION APPROACH
D171: STANDARD CONTROL SERVICES | R171: ALTERNATIVE CONTROL SERVICES
D172: EXPENDITURE ($0's) | R172: EXPENDITURE ($0's)
D173: =IF(dms_RPT="financial",dms_fy1,dms_cy1) -> 2005-06 | E173: =IF(dms_RPT="financial",dms_fy2,dms_cy2) -> 2006-07 | F173: =IF(dms_RPT="financial",dms_fy3,dms_cy3) -> 2007-08 | G173: =IF(dms_RPT="financial",dms_fy4,dms_cy4) -> 2008-09 | H173: =IF(dms_RPT="financial",dms_fy5,dms_cy5) -> 2009-10 | I173: =IF(dms_RPT="financial",dms_fy6,dms_cy6) -> 2010-11 | J173: =IF(dms_RPT="financial",dms_fy7,dms_cy7) -> 2011-12 | K173: =IF(dms_RPT="financial",dms_fy8,dms_cy8) -> 2012-13 | L173: =IF(dms_RPT="financial",dms_fy9,dms_cy9) -> 2013-14 | M173: =IF(dms_RPT="financial",dms_fy10,dms_cy10) -> 2014-15 | N173: =IF(dms_RPT="financial",dms_fy11,dms_cy11) -> 2015-16 | O173: =IF(dms_RPT="financial",dms_fy12,dms_cy12) -> 2016-17 | P173: =IF(dms_RPT="financial",dms_fy13,dms_cy13) -> 2017-18 | R173: =IF(dms_RPT="financial",dms_fy1,dms_cy1) -> 2005-06 | S173: =IF(dms_RPT="financial",dms_fy2,dms_cy2) -> 2006-07 | T173: =IF(dms_RPT="financial",dms_fy3,dms_cy3) -> 2007-08 | U173: =IF(dms_RPT="financial",dms_fy4,dms_cy4) -> 2008-09 | V173: =IF(dms_RPT="financial",dms_fy5,dms_cy5) -> 2009-10 | W173: =IF(dms_RPT="financial",dms_fy6,dms_cy6) -> 2010-11 | X173: =IF(dms_RPT="financial",dms_fy7,dms_cy7) -> 2011-12 | Y173: =IF(dms_RPT="financial",dms_fy8,dms_cy8) -> 2012-13 | Z173: =IF(dms_RPT="financial",dms_fy9,dms_cy9) -> 2013-14 | AA173: =IF(dms_RPT="financial",dms_fy10,dms_cy10) -> 2014-15 | AB173: =IF(dms_RPT="financial",dms_fy11,dms_cy11) -> 2015-16 | AC173: =IF(dms_RPT="financial",dms_fy12,dms_cy12) -> 2016-17 | AD173: =IF(dms_RPT="financial",dms_fy13,dms_cy13) -> 2017-18
A174: DOPEX0201 | B174: Opex for network services | I174: 197231659.6 | J174: 210494320.5 | K174: 228733331 | L174: 248266602.4 | M174: 258182865.6 | N174: 220390744.5 | O174: 263810740.7 | P174: 263297406.1 | W174: 27505412.56 | X174: 21199448.53 | Y174: 19247503.88 | Z174: 18472890.07 | AA174: 19920613.39 | AB174: 48671134.54 | AC174: 37265476.7 | AD174: 43202947.45
A175: DOPEX0202 | B175: Opex for metering | I175: 0 | J175: 0 | K175: 0 | L175: 0 | M175: 0 | N175: 0 | O175: 0 | P175: 0 | W175: 4982699 | X175: 5932888 | Y175: 5626892 | Z175: 5458228 | AA175: 5458228 | AB175: 9776210.176 | AC175: 8949371.868 | AD175: 6972928.324
A176: DOPEX0203 | B176: Opex for connection services | I176: 1972564 | J176: 3344811 | K176: 3032563 | L176: 2918777 | M176: 2478811.832 | N176: 2548726.555 | O176: 2042911.67 | P176: 2204913.181 | W176: 336909.0638 | X176: 468483.1029 | Y176: 353364.7575 | Z176: 349685.0289 | AA176: 250163.2576 | AB176: 433869.5253 | AC176: 296278.2495 | AD176: 201777.4587
A177: DOPEX0204 | B177: Opex for public lighting | I177: 0 | J177: 0 | K177: 0 | L177: 0 | M177: 0 | N177: 0 | O177: 0 | P177: 0 | W177: 5794438.935 | X177: 6639410.893 | Y177: 7249467.629 | Z177: 8225485.681 | AA177: 8107323.705 | AB177: 8115856.802 | AC177: 9777500.441 | AD177: 15708051.86
A178: DOPEX0205 | B178: Opex for amounts payable for easement levy or similar direct charges on DNSP | I178: 0 | J178: 0 | K178: 0 | L178: 0 | M178: 0 | N178: 0 | O178: 0 | P178: 0
A179: DOPEX0206 | B179: Opex for transmission connection point planning | I179: 0 | J179: 0 | K179: 0 | L179: 0 | M179: 0 | N179: 0 | O179: 0 | P179: 0
B181: OPEX CONSISTENCY - B: HISTORICAL COST ALLOCATION APPROACH
D182: STANDARD CONTROL SERVICES | R182: ALTERNATIVE CONTROL SERVICES
D183: EXPENDITURE ($0's) | R183: EXPENDITURE ($0's)
D184: =IF(dms_RPT="financial",dms_fy1,dms_cy1) -> 2005-06 | E184: =IF(dms_RPT="financial",dms_fy2,dms_cy2) -> 2006-07 | F184: =IF(dms_RPT="financial",dms_fy3,dms_cy3) -> 2007-08 | G184: =IF(dms_RPT="financial",dms_fy4,dms_cy4) -> 2008-09 | H184: =IF(dms_RPT="financial",dms_fy5,dms_cy5) -> 2009-10 | I184: =IF(dms_RPT="financial",dms_fy6,dms_cy6) -> 2010-11 | J184: =IF(dms_RPT="financial",dms_fy7,dms_cy7) -> 2011-12 | K184: =IF(dms_RPT="financial",dms_fy8,dms_cy8) -> 2012-13 | L184: =IF(dms_RPT="financial",dms_fy9,dms_cy9) -> 2013-14 | M184: =IF(dms_RPT="financial",dms_fy10,dms_cy10) -> 2014-15 | N184: =IF(dms_RPT="financial",dms_fy11,dms_cy11) -> 2015-16 | O184: =IF(dms_RPT="financial",dms_fy12,dms_cy12) -> 2016-17 | P184: =IF(dms_RPT="financial",dms_fy13,dms_cy13) -> 2017-18 | R184: =IF(dms_RPT="financial",dms_fy1,dms_cy1) -> 2005-06 | S184: =IF(dms_RPT="financial",dms_fy2,dms_cy2) -> 2006-07 | T184: =IF(dms_RPT="financial",dms_fy3,dms_cy3) -> 2007-08 | U184: =IF(dms_RPT="financial",dms_fy4,dms_cy4) -> 2008-09 | V184: =IF(dms_RPT="financial",dms_fy5,dms_cy5) -> 2009-10 | W184: =IF(dms_RPT="financial",dms_fy6,dms_cy6) -> 2010-11 | X184: =IF(dms_RPT="financial",dms_fy7,dms_cy7) -> 2011-12 | Y184: =IF(dms_RPT="financial",dms_fy8,dms_cy8) -> 2012-13 | Z184: =IF(dms_RPT="financial",dms_fy9,dms_cy9) -> 2013-14 | AA184: =IF(dms_RPT="financial",dms_fy10,dms_cy10) -> 2014-15 | AB184: =IF(dms_RPT="financial",dms_fy11,dms_cy11) -> 2015-16 | AC184: =IF(dms_RPT="financial",dms_fy12,dms_cy12) -> 2016-17 | AD184: =IF(dms_RPT="financial",dms_fy13,dms_cy13) -> 2017-18
A185: DOPEX0201 | B185: Opex for network services | D185: 109237266 | E185: 105859353 | F185: 126326594 | G185: 144911380 | H185: 147660900 | R185: 0 | S185: 0 | T185: 0 | U185: 0 | V185: 0
A186: DOPEX0202 | B186: Opex for metering | D186: 4580777 | E186: 4297285 | F186: 4219928 | G186: 4563309 | H186: 5139059 | R186: 0 | S186: 0 | T186: 0 | U186: 0 | V186: 0
A187: DOPEX0203 | B187: Opex for connection services | D187: 1012888 | E187: 1017113 | F187: 1183127 | G187: 1295707 | H187: 1481018 | R187: 0 | S187: 0 | T187: 0 | U187: 0 | V187: 0
A188: DOPEX0204 | B188: Opex for public lighting | D188: 0 | E188: 0 | F188: 0 | G188: 0 | H188: 0 | R188: 0 | S188: 0 | T188: 0 | U188: 0 | V188: 0
A189: DOPEX0205 | B189: Opex for amounts payable for easement levy or similar direct charges on DNSP | D189: 0 | E189: 0 | F189: 0 | G189: 0 | H189: 0 | R189: 0 | S189: 0 | T189: 0 | U189: 0 | V189: 0
A190: DOPEX0206 | B190: Opex for transmission connection point planning | D190: 0 | E190: 0 | F190: 0 | G190: 0 | H190: 0 | R190: 0 | S190: 0 | T190: 0 | U190: 0 | V190: 0
B194: 3.2.4 - OPEX FOR HIGH VOLTAGE CUSTOMERS
D195: End user costs (not standard control services)
A196: DOPEX0401 | B196: Opex for high voltage customers | D196: 836879.1057 | E196: 936176.4542 | F196: 932983.2581 | G196: 1020619.255 | H196: 1118098.245 | I196: 1257164.329 | J196: 1452207.619 | K196: 1424653.625 | L196: 1650269.574 | M196: 1608763.724 | N196: 1492504.555 | O196: 1424386.323 | P196: 1630270.39

Sheet 3.2.3 Provisions
B1: REGULATORY REPORTING STATEMENT
B2: =dms_TradingName -> SA Power Networks
B3: =CONCATENATE("ECONOMIC BENCHMARKING ",IF(SUM(dms_SingleYear_Model)>0,CRY,CONCATENATE(dms_CRCP_FirstYear_Result," to ",dms_CRCP_FinalYear_Result))) -> ECONOMIC BENCHMARKING 2005-06
B4: 3.2 OPERATING EXPENDITURE
B6: There is ONE table on this worksheet. Each Provision has been grouped for ease of navigation. see the Instructions sheet on how to group or ungroup tables.
B8: 3.2.3 - PROVISIONS
B9: For each provision report:
C10: $0's
C11: =IF(dms_RPT="financial",dms_fy1,dms_cy1) -> 2005-06 | D11: =IF(dms_RPT="financial",dms_fy2,dms_cy2) -> 2006-07 | E11: =IF(dms_RPT="financial",dms_fy3,dms_cy3) -> 2007-08 | F11: =IF(dms_RPT="financial",dms_fy4,dms_cy4) -> 2008-09 | G11: =IF(dms_RPT="financial",dms_fy5,dms_cy5) -> 2009-10 | H11: =IF(dms_RPT="financial",dms_fy6,dms_cy6) -> 2010-11 | I11: =IF(dms_RPT="financial",dms_fy7,dms_cy7) -> 2011-12 | J11: =IF(dms_RPT="financial",dms_fy8,dms_cy8) -> 2012-13 | K11: =IF(dms_RPT="financial",dms_fy9,dms_cy9) -> 2013-14 | L11: =IF(dms_RPT="financial",dms_fy10,dms_cy10) -> 2014-15 | M11: =IF(dms_RPT="financial",dms_fy11,dms_cy11) -> 2015-16 | N11: =IF(dms_RPT="financial",dms_fy12,dms_cy12) -> 2016-17 | O11: =IF(dms_RPT="financial",dms_fy13,dms_cy13) -> 2017-18
A12: DOPEX03A | B12: <Provision name>
B13: <Brief description of provision>
A14: DOPEX0301A | B14: Opening balance (the carrying amount at the beginning of the period)
B15: Additional provisions made in the period, including increases to existing provisions
A16: DOPEX0302A | B16: Opex component
A17: DOPEX0303A | B17: Capex component
A18: DOPEX0304A | B18: Other component
B19: Amounts used (that is, incurred and charged against the provision) during the period
A20: DOPEX0305A | B20: Opex component
A21: DOPEX0306A | B21: Capex component
A22: DOPEX0307A | B22: Other component
B23: Unused amounts reversed during the period
A24: DOPEX0308A | B24: Opex component
A25: DOPEX0309A | B25: Capex component
A26: DOPEX0310A | B26: Other component
B27: The increase during the period in the discounted amount arising from the passage of time and the effect of any change in the discount rate
A28: DOPEX0311A | B28: Opex component
A29: DOPEX0312A | B29: Capex component
A30: DOPEX0313A | B30: Other component
A31: DOPEX0314A | B31: Closing balance (carrying amount at the end of the period)
A32: DOPEX03B | B32: <Provision name>
B33: <Brief description of provision>
A34: DOPEX0301B | B34: Opening balance (the carrying amount at the beginning of the period)
B35: Additional provisions made in the period, including increases to existing provisions
A36: DOPEX0302B | B36: Opex component
A37: DOPEX0303B | B37: Capex component
A38: DOPEX0304B | B38: Other component
B39: Amounts used (that is, incurred and charged against the provision) during the period
A40: DOPEX0305B | B40: Opex component
A41: DOPEX0306B | B41: Capex component
A42: DOPEX0307B | B42: Other component
B43: Unused amounts reversed during the period
A44: DOPEX0308B | B44: Opex component
A45: DOPEX0309B | B45: Capex component
A46: DOPEX0310B | B46: Other component
B47: The increase during the period in the discounted amount arising from the passage of time and the effect of any change in the discount rate
A48: DOPEX0311B | B48: Opex component
A49: DOPEX0312B | B49: Capex component
A50: DOPEX0313B | B50: Other component
A51: DOPEX0314B | B51: Closing balance (carrying amount at the end of the period)
A52: DOPEX03C | B52: <Provision name>
B53: <Brief description of provision>
A54: DOPEX0301C | B54: Opening balance (the carrying amount at the beginning of the period)
B55: Additional provisions made in the period, including increases to existing provisions
A56: DOPEX0302C | B56: Opex component
A57: DOPEX0303C | B57: Capex component
A58: DOPEX0304C | B58: Other component
B59: Amounts used (that is, incurred and charged against the provision) during the period
A60: DOPEX0305C | B60: Opex component
A61: DOPEX0306C | B61: Capex component
A62: DOPEX0307C | B62: Other component
B63: Unused amounts reversed during the period
A64: DOPEX0308C | B64: Opex component
A65: DOPEX0309C | B65: Capex component
A66: DOPEX0310C | B66: Other component
B67: The increase during the period in the discounted amount arising from the passage of time and the effect of any change in the discount rate
A68: DOPEX0311C | B68: Opex component
A69: DOPEX0312C | B69: Capex component
A70: DOPEX0313C | B70: Other component
A71: DOPEX0314C | B71: Closing balance (carrying amount at the end of the period)
A72: DOPEX03D | B72: <Provision name>
B73: <Brief description of provision>
A74: DOPEX0301D | B74: Opening balance (the carrying amount at the beginning of the period)
B75: Additional provisions made in the period, including increases to existing provisions
A76: DOPEX0302D | B76: Opex component
A77: DOPEX0303D | B77: Capex component
A78: DOPEX0304D | B78: Other component
B79: Amounts used (that is, incurred and charged against the provision) during the period
A80: DOPEX0305D | B80: Opex component
A81: DOPEX0306D | B81: Capex component
A82: DOPEX0307D | B82: Other component
B83: Unused amounts reversed during the period
A84: DOPEX0308D | B84: Opex component
A85: DOPEX0309D | B85: Capex component
A86: DOPEX0310D | B86: Other component
B87: The increase during the period in the discounted amount arising from the passage of time and the effect of any change in the discount rate
A88: DOPEX0311D | B88: Opex component
A89: DOPEX0312D | B89: Capex component
A90: DOPEX0313D | B90: Other component
A91: DOPEX0314D | B91: Closing balance (carrying amount at the end of the period)
A92: DOPEX03E | B92: <Provision name>
B93: <Brief description of provision>
A94: DOPEX0301E | B94: Opening balance (the carrying amount at the beginning of the period)
B95: Additional provisions made in the period, including increases to existing provisions
A96: DOPEX0302E | B96: Opex component
A97: DOPEX0303E | B97: Capex component
A98: DOPEX0304E | B98: Other component
B99: Amounts used (that is, incurred and charged against the provision) during the period
A100: DOPEX0305E | B100: Opex component
A101: DOPEX0306E | B101: Capex component
A102: DOPEX0307E | B102: Other component
B103: Unused amounts reversed during the period
A104: DOPEX0308E | B104: Opex component
A105: DOPEX0309E | B105: Capex component
A106: DOPEX0310E | B106: Other component
B107: The increase during the period in the discounted amount arising from the passage of time and the effect of any change in the discount rate
A108: DOPEX0311E | B108: Opex component
A109: DOPEX0312E | B109: Capex component
A110: DOPEX0313E | B110: Other component
A111: DOPEX0314E | B111: Closing balance (carrying amount at the end of the period)
A112: DOPEX03F | B112: <Provision name>
B113: <Brief description of provision>
A114: DOPEX0301F | B114: Opening balance (the carrying amount at the beginning of the period)
B115: Additional provisions made in the period, including increases to existing provisions
A116: DOPEX0302F | B116: Opex component
A117: DOPEX0303F | B117: Capex component
A118: DOPEX0304F | B118: Other component
B119: Amounts used (that is, incurred and charged against the provision) during the period
A120: DOPEX0305F | B120: Opex component
A121: DOPEX0306F | B121: Capex component
A122: DOPEX0307F | B122: Other component
B123: Unused amounts reversed during the period
A124: DOPEX0308F | B124: Opex component
A125: DOPEX0309F | B125: Capex component
A126: DOPEX0310F | B126: Other component
B127: The increase during the period in the discounted amount arising from the passage of time and the effect of any change in the discount rate
A128: DOPEX0311F | B128: Opex component
A129: DOPEX0312F | B129: Capex component
A130: DOPEX0313F | B130: Other component
A131: DOPEX0314F | B131: Closing balance (carrying amount at the end of the period)
A132: DOPEX03G | B132: <Provision name>
B133: <Brief description of provision>
A134: DOPEX0301G | B134: Opening balance (the carrying amount at the beginning of the period)
B135: Additional provisions made in the period, including increases to existing provisions
A136: DOPEX0302G | B136: Opex component
A137: DOPEX0303G | B137: Capex component
A138: DOPEX0304G | B138: Other component
B139: Amounts used (that is, incurred and charged against the provision) during the period
A140: DOPEX0305G | B140: Opex component
A141: DOPEX0306G | B141: Capex component
A142: DOPEX0307G | B142: Other component
B143: Unused amounts reversed during the period
A144: DOPEX0308G | B144: Opex component
A145: DOPEX0309G | B145: Capex component
A146: DOPEX0310G | B146: Other component
B147: The increase during the period in the discounted amount arising from the passage of time and the effect of any change in the discount rate
A148: DOPEX0311G | B148: Opex component
A149: DOPEX0312G | B149: Capex component
A150: DOPEX0313G | B150: Other component
A151: DOPEX0314G | B151: Closing balance (carrying amount at the end of the period)
A152: DOPEX03H | B152: <Provision name>
B153: <Brief description of provision>
A154: DOPEX0301H | B154: Opening balance (the carrying amount at the beginning of the period)
B155: Additional provisions made in the period, including increases to existing provisions
A156: DOPEX0302H | B156: Opex component
A157: DOPEX0303H | B157: Capex component
A158: DOPEX0304H | B158: Other component
B159: Amounts used (that is, incurred and charged against the provision) during the period
A160: DOPEX0305H | B160: Opex component
A161: DOPEX0306H | B161: Capex component
A162: DOPEX0307H | B162: Other component
B163: Unused amounts reversed during the period
A164: DOPEX0308H | B164: Opex component
A165: DOPEX0309H | B165: Capex component
A166: DOPEX0310H | B166: Other component
B167: The increase during the period in the discounted amount arising from the passage of time and the effect of any change in the discount rate
A168: DOPEX0311H | B168: Opex component
A169: DOPEX0312H | B169: Capex component
A170: DOPEX0313H | B170: Other component
A171: DOPEX0314H | B171: Closing balance (carrying amount at the end of the period)
A172: DOPEX03I | B172: <Provision name>
B173: <Brief description of provision>
A174: DOPEX0301I | B174: Opening balance (the carrying amount at the beginning of the period)
B175: Additional provisions made in the period, including increases to existing provisions
A176: DOPEX0302I | B176: Opex component
A177: DOPEX0303I | B177: Capex component
A178: DOPEX0304I | B178: Other component
B179: Amounts used (that is, incurred and charged against the provision) during the period
A180: DOPEX0305I | B180: Opex component
A181: DOPEX0306I | B181: Capex component
A182: DOPEX0307I | B182: Other component
B183: Unused amounts reversed during the period
A184: DOPEX0308I | B184: Opex component
A185: DOPEX0309I | B185: Capex component
A186: DOPEX0310I | B186: Other component
B187: The increase during the period in the discounted amount arising from the passage of time and the effect of any change in the discount rate
A188: DOPEX0311I | B188: Opex component
A189: DOPEX0312I | B189: Capex component
A190: DOPEX0313I | B190: Other component
A191: DOPEX0314I | B191: Closing balance (carrying amount at the end of the period)
A192: DOPEX03J | B192: <Provision name>
B193: <Brief description of provision>
A194: DOPEX0301J | B194: Opening balance (the carrying amount at the beginning of the period)
B195: Additional provisions made in the period, including increases to existing provisions
A196: DOPEX0302J | B196: Opex component
A197: DOPEX0303J | B197: Capex component
A198: DOPEX0304J | B198: Other component
B199: Amounts used (that is, incurred and charged against the provision) during the period
A200: DOPEX0305J | B200: Opex component
A201: DOPEX0306J | B201: Capex component
A202: DOPEX0307J | B202: Other component
... 169 more rows

Sheet 3.3 Assets (RAB)
B1: REGULATORY REPORTING STATEMENT
B2: =dms_TradingName -> SA Power Networks
B3: =CONCATENATE("ECONOMIC BENCHMARKING ",IF(SUM(dms_SingleYear_Model)>0,CRY,CONCATENATE(dms_CRCP_FirstYear_Result," to ",dms_CRCP_FinalYear_Result))) -> ECONOMIC BENCHMARKING 2005-06
B4: 3.3 ASSETS
B6: There are FOUR tables on this worksheet. Both ROWS and COLUMNS in each have been grouped (and sub-grouped) for ease of navigation. see the Instructions sheet on how to group or ungroup tables.
B8: 3.3.1 - REGULATORY ASSET BASE VALUES
C9: Network services | Q9: Standard control services | AE9: Alternative control services
C10: $0's, Nominal | Q10: $0's, Nominal | AE10: $0's, Nominal
C11: =IF(dms_RPT="financial",dms_fy1,dms_cy1) -> 2005-06 | D11: =IF(dms_RPT="financial",dms_fy2,dms_cy2) -> 2006-07 | E11: =IF(dms_RPT="financial",dms_fy3,dms_cy3) -> 2007-08 | F11: =IF(dms_RPT="financial",dms_fy4,dms_cy4) -> 2008-09 | G11: =IF(dms_RPT="financial",dms_fy5,dms_cy5) -> 2009-10 | H11: =IF(dms_RPT="financial",dms_fy6,dms_cy6) -> 2010-11 | I11: =IF(dms_RPT="financial",dms_fy7,dms_cy7) -> 2011-12 | J11: =IF(dms_RPT="financial",dms_fy8,dms_cy8) -> 2012-13 | K11: =IF(dms_RPT="financial",dms_fy9,dms_cy9) -> 2013-14 | L11: =IF(dms_RPT="financial",dms_fy10,dms_cy10) -> 2014-15 | M11: =IF(dms_RPT="financial",dms_fy11,dms_cy11) -> 2015-16 | N11: =IF(dms_RPT="financial",dms_fy12,dms_cy12) -> 2016-17 | O11: =IF(dms_RPT="financial",dms_fy13,dms_cy13) -> 2017-18 | Q11: =IF(dms_RPT="financial",dms_fy1,dms_cy1) -> 2005-06 | R11: =IF(dms_RPT="financial",dms_fy2,dms_cy2) -> 2006-07 | S11: =IF(dms_RPT="financial",dms_fy3,dms_cy3) -> 2007-08 | T11: =IF(dms_RPT="financial",dms_fy4,dms_cy4) -> 2008-09 | U11: =IF(dms_RPT="financial",dms_fy5,dms_cy5) -> 2009-10 | V11: =IF(dms_RPT="financial",dms_fy6,dms_cy6) -> 2010-11 | W11: =IF(dms_RPT="financial",dms_fy7,dms_cy7) -> 2011-12 | X11: =IF(dms_RPT="financial",dms_fy8,dms_cy8) -> 2012-13 | Y11: =IF(dms_RPT="financial",dms_fy9,dms_cy9) -> 2013-14 | Z11: =IF(dms_RPT="financial",dms_fy10,dms_cy10) -> 2014-15 | AA11: =IF(dms_RPT="financial",dms_fy11,dms_cy11) -> 2015-16 | AB11: =IF(dms_RPT="financial",dms_fy12,dms_cy12) -> 2016-17 | AC11: =IF(dms_RPT="financial",dms_fy13,dms_cy13) -> 2017-18 | AE11: =IF(dms_RPT="financial",dms_fy1,dms_cy1) -> 2005-06 | AF11: =IF(dms_RPT="financial",dms_fy2,dms_cy2) -> 2006-07 | AG11: =IF(dms_RPT="financial",dms_fy3,dms_cy3) -> 2007-08 | AH11: =IF(dms_RPT="financial",dms_fy4,dms_cy4) -> 2008-09 | AI11: =IF(dms_RPT="financial",dms_fy5,dms_cy5) -> 2009-10 | AJ11: =IF(dms_RPT="financial",dms_fy6,dms_cy6) -> 2010-11 | AK11: =IF(dms_RPT="financial",dms_fy7,dms_cy7) -> 2011-12 | AL11: =IF(dms_RPT="financial",dms_fy8,dms_cy8) -> 2012-13 | AM11: =IF(dms_RPT="financial",dms_fy9,dms_cy9) -> 2013-14 | AN11: =IF(dms_RPT="financial",dms_fy10,dms_cy10) -> 2014-15 | AO11: =IF(dms_RPT="financial",dms_fy11,dms_cy11) -> 2015-16 | AP11: =IF(dms_RPT="financial",dms_fy12,dms_cy12) -> 2016-17 | AQ11: =IF(dms_RPT="financial",dms_fy13,dms_cy13) -> 2017-18
B12: For total asset base:
A13: DRAB0101 | B13: Opening value | C13: 2497680902 | D13: 2574172258 | E13: 2597655322 | F13: 2655385003 | G13: 2706169355 | H13: 2723122620 | I13: 2909040100 | J13: 3092390286 | K13: 3296253903 | L13: 3456377698 | M13: 3572345661 | N13: 3670172554 | O13: 3714128826 | Q13: 2614693953 | R13: 2706427372 | S13: 2744675306 | T13: 2822201980 | U13: 2890556185 | V13: 2874932017 | W13: 3069164699 | X13: 3257781137 | Y13: 3469105426 | Z13: 3638144379 | AA13: 3761548688 | AB13: 3863075380 | AC13: 3909008815 | AE13: 39908889.3 | AF13: 41008214 | AG13: 40683716.87 | AH13: 41239235.38 | AI13: 40102037.74 | AJ13: 119283069.3 | AK13: 119917412.3 | AL13: 118418372.5 | AM13: 117446795.6 | AN13: 115453632.5 | AO13: 112318203 | AP13: 105476491.2 | AQ13: 98963308.89
A14: DRAB0102 | B14: Inflation addition | C14: 74458301.01 | D14: 62771312.73 | E14: 110155166.9 | F14: 65588009.58 | G14: 78208294.37 | H14: 90679983.23 | I14: 45962833.59 | J14: 77331734.1 | K14: 96580239.37 | L14: 45969823.38 | M14: 60321033.68 | N14: 54172288.62 | O14: 70906095.78 | Q14: 77997659.36 | R14: 65923496.71 | S14: 116419395.6 | T14: 69708388.9 | U14: 82375146.36 | V14: 95735236.15 | W14: 48492802.24 | X14: 81526808.4 | Y14: 101644789 | Z14: 48387320.25 | AA14: 63515831.5 | AB14: 57019562.81 | AC14: 74626531.92 | AE14: 1189284.901 | AF14: 1000600.422 | AG14: 1724989.595 | AH14: 1018609.114 | AI14: 2320876.285 | AJ14: 3972126.209 | AK14: 1894695.115 | AL14: 2962487.976 | AM14: 3441191.112 | AN14: 1535533.312 | AO14: 1896555.022 | AP14: 1556848.579 | AQ14: 1889299.533
A15: DRAB0103 | B15: Straight line depreciation | C15: -130295087.8 | D15: -144004821.8 | E15: -151833957.6 | F15: -163422269.3 | G15: -177952341 | H15: -162869215.7 | I15: -175375965 | J15: -194921966.5 | K15: -212850371.2 | L15: -232846835.4 | M15: -196888133.7 | N15: -270405028.9 | O15: -277563139.9 | Q15: -135686690.9 | R15: -150178573 | S15: -158783303.8 | T15: -171297247.5 | U15: -185414476.2 | V15: -170687198.4 | W15: -183583746.1 | X15: -203257456.6 | Y15: -221528032.3 | Z15: -241985608.6 | AA15: -209730602.1 | AB15: -285990186.6 | AC15: -293369470 | AE15: -3237165.099 | AF15: -3388973.356 | AG15: -3618308.683 | AH15: -3764430.908 | AI15: -5514098.873 | AJ15: -9780543.684 | AK15: -10476054.8 | AL15: -11035186.1 | AM15: -11707937.69 | AN15: -12409123.73 | AO15: -13481059.47 | AP15: -10892216.69 | AQ15: -11465516.33
A16: DRAB0105 | B16: Actual additions (recognised in RAB) | C16: 135926143.2 | D16: 110547572.4 | E16: 101717472.3 | F16: 152968611.9 | G16: 118018310.9 | H16: 260457713.1 | I16: 314244317.1 | J16: 323359849.9 | K16: 278951926.3 | L16: 305232975.1 | M16: 236435436.1 | N16: 262623569.4 | O16: 361496634.8 | Q16: 153020450.8 | R16: 128334010.2 | S16: 122199581.8 | T16: 174293064.3 | U16: 88736161.2 | V16: 271535644.5 | W16: 325188382.2 | X16: 334960936.4 | Y16: 291480197.2 | Z16: 319390596.8 | AA16: 249782906.1 | AB16: 277338615.1 | AC16: 377377035.6 | AE16: 3147204.9 | AF16: 2063875.8 | AG16: 2448837.6 | AH16: 1608624.15 | AI16: 82374254.19 | AJ16: 6442760.483 | AK16: 7082319.819 | AL16: 7101121.265 | AM16: 6273583.438 | AN16: 7738160.905 | AO16: 4742792.719 | AP16: 2822185.752 | AQ16: 4646430.972
A17: DRAB0106 | B17: Disposals | C17: -3598000 | D17: -5831000 | E17: -2309000 | F17: -4350000 | G17: -1321000 | H17: -2351000 | I17: -1481000 | J17: -1906000 | K17: -2558000 | L17: -2388000 | M17: -2041442.81 | N17: -2434556.98 | O17: -2549996.39 | Q17: -3598000 | R17: -5831000 | S17: -2309000 | T17: -4350000 | U17: -1321000 | V17: -2351000 | W17: -1481000 | X17: -1906000 | Y17: -2558000 | Z17: -2388000 | AA17: -2041442.81 | AB17: -2434556.98 | AC17: -2549996.39 | AE17: 0 | AF17: 0 | AG17: 0 | AH17: 0 | AI17: 0 | AJ17: 0 | AK17: 0 | AL17: 0 | AM17: 0 | AN17: 0 | AO17: 0 | AP17: 0 | AQ17: 0
A18: DRAB0107 | B18: Closing value | C18: =SUM(C13:C17) -> 2574172258 | D18: 2597655322 | E18: 2655385003 | F18: 2706169355 | G18: 2723122620 | H18: 2909040100 | I18: 3092390286 | J18: =SUM(J13:J17) -> 3296253903 | K18: 3456377698 | L18: 3572345661 | M18: 3670172554 | N18: =SUM(N13:N17) -> 3714128826 | O18: 3866418421 | Q18: =SUM(Q13:Q17) -> 2706427372 | R18: 2744675306 | S18: 2822201980 | T18: 2890556185 | U18: 2874932017 | V18: 3069164699 | W18: 3257781137 | X18: 3469105426 | Y18: 3638144379 | AE18: =SUM(AE13:AE17) -> 41008214 | AF18: 40683716.87 | AG18: 41239235.38 | AH18: 40102037.74 | AI18: 119283069.3 | AJ18: 119917412.3 | AK18: 118418372.5 | AL18: 117446795.6 | AM18: 115453632.5 | AN18: 112318203 | AO18: 105476491.2 | AP18: 98963308.89 | AQ18: 94033523.06
B21: 3.3.2 - ASSET VALUE ROLL FORWARD
C22: Network services | Q22: Standard control services | AE22: Alternative control services
C23: $0's, Nominal | Q23: $0's, Nominal | AE23: $0's, Nominal
C24: =IF(dms_RPT="financial",dms_fy1,dms_cy1) -> 2005-06 | D24: =IF(dms_RPT="financial",dms_fy2,dms_cy2) -> 2006-07 | E24: =IF(dms_RPT="financial",dms_fy3,dms_cy3) -> 2007-08 | F24: =IF(dms_RPT="financial",dms_fy4,dms_cy4) -> 2008-09 | G24: =IF(dms_RPT="financial",dms_fy5,dms_cy5) -> 2009-10 | H24: =IF(dms_RPT="financial",dms_fy6,dms_cy6) -> 2010-11 | I24: =IF(dms_RPT="financial",dms_fy7,dms_cy7) -> 2011-12 | J24: =IF(dms_RPT="financial",dms_fy8,dms_cy8) -> 2012-13 | K24: =IF(dms_RPT="financial",dms_fy9,dms_cy9) -> 2013-14 | L24: =IF(dms_RPT="financial",dms_fy10,dms_cy10) -> 2014-15 | M24: =IF(dms_RPT="financial",dms_fy11,dms_cy11) -> 2015-16 | N24: =IF(dms_RPT="financial",dms_fy12,dms_cy12) -> 2016-17 | O24: =IF(dms_RPT="financial",dms_fy13,dms_cy13) -> 2017-18 | Q24: =IF(dms_RPT="financial",dms_fy1,dms_cy1) -> 2005-06 | R24: =IF(dms_RPT="financial",dms_fy2,dms_cy2) -> 2006-07 | S24: =IF(dms_RPT="financial",dms_fy3,dms_cy3) -> 2007-08 | T24: =IF(dms_RPT="financial",dms_fy4,dms_cy4) -> 2008-09 | U24: =IF(dms_RPT="financial",dms_fy5,dms_cy5) -> 2009-10 | V24: =IF(dms_RPT="financial",dms_fy6,dms_cy6) -> 2010-11 | W24: =IF(dms_RPT="financial",dms_fy7,dms_cy7) -> 2011-12 | X24: =IF(dms_RPT="financial",dms_fy8,dms_cy8) -> 2012-13 | Y24: =IF(dms_RPT="financial",dms_fy9,dms_cy9) -> 2013-14 | Z24: =IF(dms_RPT="financial",dms_fy10,dms_cy10) -> 2014-15 | AA24: =IF(dms_RPT="financial",dms_fy11,dms_cy11) -> 2015-16 | AB24: =IF(dms_RPT="financial",dms_fy12,dms_cy12) -> 2016-17 | AC24: =IF(dms_RPT="financial",dms_fy13,dms_cy13) -> 2017-18 | AE24: =IF(dms_RPT="financial",dms_fy1,dms_cy1) -> 2005-06 | AF24: =IF(dms_RPT="financial",dms_fy2,dms_cy2) -> 2006-07 | AG24: =IF(dms_RPT="financial",dms_fy3,dms_cy3) -> 2007-08 | AH24: =IF(dms_RPT="financial",dms_fy4,dms_cy4) -> 2008-09 | AI24: =IF(dms_RPT="financial",dms_fy5,dms_cy5) -> 2009-10 | AJ24: =IF(dms_RPT="financial",dms_fy6,dms_cy6) -> 2010-11 | AK24: =IF(dms_RPT="financial",dms_fy7,dms_cy7) -> 2011-12 | AL24: =IF(dms_RPT="financial",dms_fy8,dms_cy8) -> 2012-13 | AM24: =IF(dms_RPT="financial",dms_fy9,dms_cy9) -> 2013-14 | AN24: =IF(dms_RPT="financial",dms_fy10,dms_cy10) -> 2014-15 | AO24: =IF(dms_RPT="financial",dms_fy11,dms_cy11) -> 2015-16 | AP24: =IF(dms_RPT="financial",dms_fy12,dms_cy12) -> 2016-17 | AQ24: =IF(dms_RPT="financial",dms_fy13,dms_cy13) -> 2017-18
B25: For overhead network assets less than 33kV:
A26: DRAB0201 | B26: Opening value | C26: 523135277 | D26: 525653908.8 | E26: 523753314.5 | F26: 527163089.4 | G26: 521459489.5 | H26: 518995407.1 | I26: 530949756.5 | J26: 536528173.7 | K26: 549953961.6 | L26: 543342703.1 | M26: 537773025.6 | N26: 390841866.3 | O26: 432227686.3 | Q26: 566821942.9 | R26: 571527192.5 | S26: 571475971.3 | T26: 577904574.9 | U26: 574429708.2 | V26: 575481677.2 | W26: 591059343.5 | X26: 598974375.2 | Y26: 615452274.1 | Z26: 612452547.3 | AA26: 610004065.1 | AB26: 469324979.5 | AC26: 512458027 | AE26: 0 | AF26: 0 | AG26: 0 | AH26: 0 | AI26: 0 | AJ26: 0 | AK26: 0 | AL26: 0 | AM26: 0 | AN26: 0 | AO26: 0 | AP26: 0 | AQ26: 0
A27: DRAB0202 | B27: Inflation addition | C27: 15586820.11 | D27: 12830325.53 | E27: 22205110.88 | F27: 13020928.31 | G27: 15070179.25 | H27: 17282547.06 | I27: 8389006.152 | J27: 13405710.8 | K27: 16022049.69 | L27: 7154815.05 | M27: 9080595.179 | N27: 5768883.636 | O27: 8251619.466 | Q27: 16908636.85 | R27: 13921258.03 | S27: 24240016.05 | T27: 14274243 | U27: 16601018.57 | V27: 19163539.85 | W27: 9338737.627 | X27: 14989478.8 | Y27: 17941150.25 | Z27: 8073975.978 | AA27: 10300256.26 | AB27: 6927305.971 | AC27: 9783289.607 | AE27: 0 | AF27: 0 | AG27: 0 | AH27: 0 | AI27: 0 | AJ27: 0 | AK27: 0 | AL27: 0 | AM27: 0 | AN27: 0 | AO27: 0 | AP27: 0 | AQ27: 0
A28: DRAB0203 | B28: Straight line depreciation | C28: -24127873.37 | D28: -24921875.4 | E28: -25571103.23 | F28: -26749516.38 | G28: -27392212.56 | H28: -28772140.03 | I28: -29558830.33 | J28: -30623157.68 | K28: -31572944.7 | L28: -32420290.55 | M28: -32906168.35 | N28: -33067112.28 | O28: -37001059.41 | Q28: -26069822.26 | R28: -26999665.89 | S28: -27776450.17 | T28: -29121527.53 | U28: -29873370.58 | V28: -31479144.85 | W28: -32453814.32 | X28: -33593280.42 | Y28: -34715304.84 | Z28: -35787697.24 | AA28: -37677913.58 | AB28: -39707163.26 | AC28: -43869216.4 | AE28: 0 | AF28: 0 | AG28: 0 | AH28: 0 | AI28: 0 | AJ28: 0 | AK28: 0 | AL28: 0 | AM28: 0 | AN28: 0 | AO28: 0 | AP28: 0 | AQ28: 0
A29: DRAB0205 | B29: Actual additions (recognised in RAB) | C29: 11059685.03 | D29: 10190955.59 | E29: 6775767.262 | F29: 8024988.162 | G29: 9857950.931 | H29: 23443942.32 | I29: 26748241.41 | J29: 30643234.79 | K29: 8939636.522 | L29: 19695798 | M29: -123105586.1 | N29: 68684048.64 | O29: 39085584.9 | Q29: 13866434.98 | R29: 13027186.63 | S29: 9965037.766 | T29: 11372417.79 | U29: 14324321.02 | V29: 27893271.3 | W29: 31030108.43 | X29: 35081700.53 | Y29: 13774427.76 | Z29: 25265239.05 | AA29: -113301428.3 | AB29: 75912904.8 | AC29: 42946840.31 | AE29: 0 | AF29: 0 | AG29: 0 | AH29: 0 | AI29: 0 | AJ29: 0 | AK29: 0 | AL29: 0 | AM29: 0 | AN29: 0 | AO29: 0 | AP29: 0 | AQ29: 0
A30: DRAB0206 | B30: Disposals | C30: 0 | D30: 0 | E30: 0 | F30: 0 | G30: 0 | H30: 0 | I30: 0 | J30: 0 | K30: 0 | L30: 0 | M30: 0 | N30: 0 | O30: 0 | Q30: 0 | R30: 0 | S30: 0 | T30: 0 | U30: 0 | V30: 0 | W30: 0 | X30: 0 | Y30: 0 | Z30: 0 | AA30: 0 | AB30: 0 | AC30: 0 | AE30: 0 | AF30: 0 | AG30: 0 | AH30: 0 | AI30: 0 | AJ30: 0 | AK30: 0 | AL30: 0 | AM30: 0 | AN30: 0 | AO30: 0 | AP30: 0 | AQ30: 0
A31: DRAB0207 | B31: Closing value | C31: =SUM(C26:C30) -> 525653908.8 | D31: 523753314.5 | E31: 527163089.4 | F31: 521459489.5 | G31: 518995407.1 | H31: 530949756.5 | I31: 536528173.7 | J31: =SUM(J26:J30) -> 549953961.6 | K31: 543342703.1 | L31: 537773025.6 | M31: 390841866.3 | N31: =SUM(N26:N30) -> 432227686.3 | O31: 442563831.3 | Q31: =SUM(Q26:Q30) -> 571527192.5 | R31: 571475971.3 | S31: 577904574.9 | T31: 574429708.2 | U31: 575481677.2 | V31: 591059343.5 | W31: 598974375.2 | X31: 615452274.1 | Y31: 612452547.3 | Z31: 610004065.1 | AA31: 469324979.5 | AB31: 512458027 | AC31: 521318940.5 | AE31: =SUM(AE26:AE30) -> 0 | AF31: 0 | AG31: 0 | AH31: 0 | AI31: 0 | AJ31: 0 | AK31: 0 | AL31: 0 | AM31: 0 | AN31: 0 | AO31: 0 | AP31: 0 | AQ31: 0
B32: For underground network assets less than 33kV:
A33: DRAB0301 | B33: Opening value | C33: 818760910.8 | D33: 812733995.7 | E33: 810193418.2 | F33: 822985627.6 | G33: 801135277.1 | H33: 758557364.2 | I33: 774123570.5 | J33: 778847939 | K33: 822996848.9 | L33: 850055307.1 | M33: 858838397.1 | N33: 806147509.8 | O33: 826152416.7 | Q33: 887459121.2 | R33: 886671205.8 | S33: 889487361.7 | T33: 909225784.8 | U33: 892346788.3 | V33: 853880491.1 | W33: 874138582.1 | X33: 881792588.8 | Y33: 930350058.4 | Z33: 962712144.4 | AA33: 975810384.4 | AB33: 920567222.8 | AC33: 940802064.3 | AE33: 0 | AF33: 0 | AG33: 0 | AH33: 0 | AI33: 0 | AJ33: 0 | AK33: 0 | AL33: 0 | AM33: 0 | AN33: 0 | AO33: 0 | AP33: 0 | AQ33: 0
A34: DRAB0302 | B34: Inflation addition | C34: 24394591.57 | D34: 19838445.64 | E34: 34348514.53 | F34: 20327745 | G34: 23152809.51 | H34: 25259960.23 | I34: 12231152.41 | J34: 19456747.7 | K34: 24078069.88 | L34: 11264265.68 | M34: 14501961.68 | N34: 11898856.23 | O34: 15772000.68 | Q34: 26474213.58 | R34: 21596355.66 | S34: 37729457.71 | T34: 22457876.88 | U34: 25788822.18 | V34: 28434220.35 | W34: 13811389.6 | X34: 22068053.99 | Y34: 27223518.92 | Z34: 12762601.62 | AA34: 16477098.42 | AB34: 13587708.09 | AC34: 17960766.68 | AE34: 0 | AF34: 0 | AG34: 0 | AH34: 0 | AI34: 0 | AJ34: 0 | AK34: 0 | AL34: 0 | AM34: 0 | AN34: 0 | AO34: 0 | AP34: 0 | AQ34: 0
A35: DRAB0303 | B35: Straight line depreciation | C35: -44565030.68 | D35: -46078310.64 | E35: -47729629.51 | F35: -50752741.86 | G35: -52272393.72 | H35: -51498675.68 | I35: -53095245.04 | J35: -54947510.47 | K35: -57305052.66 | L35: -59828823.02 | M35: -60904120 | N35: -63023017.42 | O35: -64407466.37 | Q35: -48014684.92 | R35: -49922349.49 | S35: -51971949.45 | T35: -55417629.45 | U35: -57253370.91 | V35: -56609653.53 | W35: -58408042.11 | X35: -60312877.83 | Y35: -62840353.62 | Z35: -65600189.58 | AA35: -68974843.19 | AB35: -71968124.22 | AC35: -73345639.49 | AE35: 0 | AF35: 0 | AG35: 0 | AH35: 0 | AI35: 0 | AJ35: 0 | AK35: 0 | AL35: 0 | AM35: 0 | AN35: 0 | AO35: 0 | AP35: 0 | AQ35: 0
A36: DRAB0305 | B36: Actual additions (recognised in RAB) | C36: 14143524.02 | D36: 23699287.5 | E36: 26173324.35 | F36: 8574646.406 | G36: -13458328.76 | H36: 41804921.73 | I36: 45588461.18 | J36: 79639672.69 | K36: 60285441 | L36: 57347647.32 | M36: -6288729.046 | N36: 71129068.08 | O36: 121663882.8 | Q36: 20752555.94 | R36: 31142149.82 | S36: 33980914.79 | T36: 16080756.02 | U36: -7001748.447 | V36: 48433524.16 | W36: 52250659.28 | X36: 86802293.44 | Y36: 67978920.69 | Z36: 65935827.99 | AA36: -2745416.848 | AB36: 78615257.56 | AC36: 133683028.1 | AE36: 0 | AF36: 0 | AG36: 0 | AH36: 0 | AI36: 0 | AJ36: 0 | AK36: 0 | AL36: 0 | AM36: 0 | AN36: 0 | AO36: 0 | AP36: 0 | AQ36: 0
A37: DRAB0306 | B37: Disposals | C37: 0 | D37: 0 | E37: 0 | F37: 0 | G37: 0 | H37: 0 | I37: 0 | J37: 0 | K37: 0 | L37: 0 | M37: 0 | N37: 0 | O37: 0 | Q37: 0 | R37: 0 | S37: 0 | T37: 0 | U37: 0 | V37: 0 | W37: 0 | X37: 0 | Y37: 0 | Z37: 0 | AA37: 0 | AB37: 0 | AC37: 0 | AE37: 0 | AF37: 0 | AG37: 0 | AH37: 0 | AI37: 0 | AJ37: 0 | AK37: 0 | AL37: 0 | AM37: 0 | AN37: 0 | AO37: 0 | AP37: 0 | AQ37: 0
A38: DRAB0307 | B38: Closing value | C38: =SUM(C33:C37) -> 812733995.7 | D38: 810193418.2 | E38: 822985627.6 | F38: 801135277.1 | G38: 758557364.2 | H38: 774123570.5 | I38: 778847939 | J38: =SUM(J33:J37) -> 822996848.9 | K38: 850055307.1 | L38: 858838397.1 | M38: 806147509.8 | N38: =SUM(N33:N37) -> 826152416.7 | O38: 899180833.8 | Q38: =SUM(Q33:Q37) -> 886671205.8 | R38: 889487361.7 | S38: 909225784.8 | T38: 892346788.3 | U38: 853880491.1 | V38: 874138582.1 | W38: 881792588.8 | X38: 930350058.4 | Y38: 962712144.4 | Z38: 975810384.4 | AA38: 920567222.8 | AB38: 940802064.3 | AC38: 1019100220 | AE38: =SUM(AE33:AE37) -> 0 | AF38: 0 | AG38: 0 | AH38: 0 | AI38: 0 | AJ38: 0 | AK38: 0 | AL38: 0 | AM38: 0 | AN38: 0 | AO38: 0 | AP38: 0 | AQ38: 0
B39: For distribution substations and transformers:
A40: DRAB0401 | B40: Opening value | C40: 483792489.1 | D40: 504343858.9 | E40: 524225749.5 | F40: 550638287.2 | G40: 577102856 | H40: 627286613.5 | I40: 697201500.4 | J40: 776715935.9 | K40: 841871992.2 | L40: 906423311.9 | M40: 945913977 | N40: 1149102033 | O40: 1140677624 | Q40: 483792489.1 | R40: 504343858.9 | S40: 524225749.5 | T40: 550638287.2 | U40: 577102856 | V40: 627286613.5 | W40: 697201500.4 | X40: 776715935.9 | Y40: 841871992.2 | Z40: 906423311.9 | AA40: 945913977 | AB40: 1149102033 | AC40: 1140677624 | AE40: 0 | AF40: 0 | AG40: 0 | AH40: 0 | AI40: 0 | AJ40: 0 | AK40: 0 | AL40: 0 | AM40: 0 | AN40: 0 | AO40: 0 | AP40: 0 | AQ40: 0
A41: DRAB0402 | B41: Inflation addition | C41: 14431152.44 | D41: 12285817.47 | E41: 22235389.51 | F41: 13600765.69 | G41: 16678272.54 | H41: 20888644.23 | I41: 11015783.71 | J41: 19436485.51 | K41: 24732704.39 | L41: 12096931.73 | M41: 15972281.04 | N41: 16960915.62 | O41: 21776572.82 | Q41: 14431152.44 | R41: 12285817.47 | S41: 22235389.51 | T41: 13600765.69 | U41: 16678272.54 | V41: 20888644.23 | W41: 11015783.71 | X41: 19436485.51 | Y41: 24732704.39 | Z41: 12096931.73 | AA41: 15972281.04 | AB41: 16960915.62 | AC41: 21776572.82 | AE41: 0 | AF41: 0 | AG41: 0 | AH41: 0 | AI41: 0 | AJ41: 0 | AK41: 0 | AL41: 0 | AM41: 0 | AN41: 0 | AO41: 0 | AP41: 0 | AQ41: 0
A42: DRAB0403 | B42: Straight line depreciation | C42: -22804677.37 | D42: -24077676.24 | E42: -25267035.37 | F42: -27094503.02 | G42: -28678122.46 | H42: -32287357.43 | I42: -34613011.49 | J42: -37872195.43 | K42: -40318335.43 | L42: -43242921.77 | M42: -54299193.83 | N42: -56228073.39 | O42: -58336045.3 | Q42: -22804677.37 | R42: -24077676.24 | S42: -25267035.37 | T42: -27094503.02 | U42: -28678122.46 | V42: -32287357.43 | W42: -34613011.49 | X42: -37872195.43 | Y42: -40318335.43 | Z42: -43242921.77 | AA42: -54299193.83 | AB42: -56228073.39 | AC42: -58336045.3 | AE42: 0 | AF42: 0 | AG42: 0 | AH42: 0 | AI42: 0 | AJ42: 0 | AK42: 0 | AL42: 0 | AM42: 0 | AN42: 0 | AO42: 0 | AP42: 0 | AQ42: 0
A43: DRAB0405 | B43: Actual additions (recognised in RAB) | C43: 28924894.76 | D43: 31673749.35 | E43: 29444183.58 | F43: 39958306.12 | G43: 62183607.42 | H43: 81313600.08 | I43: 103111663.3 | J43: 83591766.21 | K43: 80136950.78 | L43: 70636655.13 | M43: 241514969 | N43: 30842748.25 | O43: 52531678.97 | Q43: 28924894.76 | R43: 31673749.35 | S43: 29444183.58 | T43: 39958306.12 | U43: 62183607.42 | V43: 81313600.08 | W43: 103111663.3 | X43: 83591766.21 | Y43: 80136950.78 | Z43: 70636655.13 | AA43: 241514969 | AB43: 30842748.25 | AC43: 52531678.97 | AE43: 0 | AF43: 0 | AG43: 0 | AH43: 0 | AI43: 0 | AJ43: 0 | AK43: 0 | AL43: 0 | AM43: 0 | AN43: 0 | AO43: 0 | AP43: 0 | AQ43: 0
A44: DRAB0406 | B44: Disposals | C44: 0 | D44: 0 | E44: 0 | F44: 0 | G44: 0 | H44: 0 | I44: 0 | J44: 0 | K44: 0 | L44: 0 | M44: 0 | N44: 0 | O44: 0 | Q44: 0 | R44: 0 | S44: 0 | T44: 0 | U44: 0 | V44: 0 | W44: 0 | X44: 0 | Y44: 0 | Z44: 0 | AA44: 0 | AB44: 0 | AC44: 0 | AE44: 0 | AF44: 0 | AG44: 0 | AH44: 0 | AI44: 0 | AJ44: 0 | AK44: 0 | AL44: 0 | AM44: 0 | AN44: 0 | AO44: 0 | AP44: 0 | AQ44: 0
A45: DRAB0407 | B45: Closing value | C45: =SUM(C40:C44) -> 504343858.9 | D45: 524225749.5 | E45: 550638287.2 | F45: 577102856 | G45: 627286613.5 | H45: 697201500.4 | I45: 776715935.9 | J45: =SUM(J40:J44) -> 841871992.2 | K45: 906423311.9 | L45: 945913977 | M45: 1149102033 | N45: =SUM(N40:N44) -> 1140677624 | O45: 1156649830 | Q45: =SUM(Q40:Q44) -> 504343858.9 | R45: 524225749.5 | S45: 550638287.2 | T45: 577102856 | U45: 627286613.5 | V45: 697201500.4 | W45: 776715935.9 | X45: 841871992.2 | Y45: 906423311.9 | Z45: 945913977 | AA45: 1149102033 | AB45: 1140677624 | AC45: 1156649830 | AE45: =SUM(AE40:AE44) -> 0 | AF45: 0 | AG45: 0 | AH45: 0 | AI45: 0 | AJ45: 0 | AK45: 0 | AL45: 0 | AM45: 0 | AN45: 0 | AO45: 0 | AP45: 0 | AQ45: 0
B46: For overhead network assets 33kV and above:
A47: DRAB0501 | B47: Opening value | C47: 91726651.99 | D47: 95430924.31 | E47: 98639311.23 | F47: 103277637.7 | G47: 108785129.3 | H47: 118207529.7 | I47: 127958727 | J47: 132484084.4 | K47: 139287712.3 | L47: 142966956.7 | M47: 145708010.5 | N47: 151809545.1 | O47: 152066783.8 | Q47: 91726651.99 | R47: 95430924.31 | S47: 98639311.23 | T47: 103277637.7 | U47: 108785129.3 | V47: 118207529.7 | W47: 127958727 | X47: 132484084.4 | Y47: 139287712.3 | Z47: 142966956.7 | AA47: 145708010.5 | AB47: 151809545.1 | AC47: 152066783.8 | AE47: 0 | AF47: 0 | AG47: 0 | AH47: 0 | AI47: 0 | AJ47: 0 | AK47: 0 | AL47: 0 | AM47: 0 | AN47: 0 | AO47: 0 | AP47: 0 | AQ47: 0
A48: DRAB0502 | B48: Inflation addition | C48: 2736171.699 | D48: 2324641.487 | E48: 4183876.792 | F48: 2550957.65 | G48: 3143890.236 | H48: 3936310.741 | I48: 2021747.887 | J48: 3315222.181 | K48: 4072533.364 | L48: 1894855.116 | M48: 2460360.403 | N48: 2240731.294 | O48: 2903093.146 | Q48: 2736171.699 | R48: 2324641.487 | S48: 4183876.792 | T48: 2550957.65 | U48: 3143890.236 | V48: 3936310.741 | W48: 2021747.887 | X48: 3315222.181 | Y48: 4072533.364 | Z48: 1894855.116 | AA48: 2460360.403 | AB48: 2240731.294 | AC48: 2903093.146 | AE48: 0 | AF48: 0 | AG48: 0 | AH48: 0 | AI48: 0 | AJ48: 0 | AK48: 0 | AL48: 0 | AM48: 0 | AN48: 0 | AO48: 0 | AP48: 0 | AQ48: 0
A49: DRAB0503 | B49: Straight line depreciation | C49: -3789726.178 | D49: -3983490.868 | E49: -4156270.671 | F49: -4431163.221 | G49: -4680197.901 | H49: -5140227.176 | I49: -5431248.128 | J49: -5713029.072 | K49: -5969616.543 | L49: -6233941.066 | M49: -2945221.03 | N49: -3163206.4 | O49: -3413136.98 | Q49: -3789726.178 | R49: -3983490.868 | S49: -4156270.671 | T49: -4431163.221 | U49: -4680197.901 | V49: -5140227.176 | W49: -5431248.128 | X49: -5713029.072 | Y49: -5969616.543 | Z49: -6233941.066 | AA49: -2945221.03 | AB49: -3163206.4 | AC49: -3413136.98 | AE49: 0 | AF49: 0 | AG49: 0 | AH49: 0 | AI49: 0 | AJ49: 0 | AK49: 0 | AL49: 0 | AM49: 0 | AN49: 0 | AO49: 0 | AP49: 0 | AQ49: 0
A50: DRAB0505 | B50: Actual additions (recognised in RAB) | C50: 4757826.79 | D50: 4867236.304 | E50: 4610720.316 | F50: 7387697.181 | G50: 10958708.14 | H50: 10955113.72 | I50: 7934857.631 | J50: 9201434.786 | K50: 5576327.597 | L50: 7080139.737 | M50: 6586395.256 | N50: 1179713.81 | O50: 1362423.46 | Q50: 4757826.79 | R50: 4867236.304 | S50: 4610720.316 | T50: 7387697.181 | U50: 10958708.14 | V50: 10955113.72 | W50: 7934857.631 | X50: 9201434.786 | Y50: 5576327.597 | Z50: 7080139.737 | AA50: 6586395.256 | AB50: 1179713.81 | AC50: 1362423.46 | AE50: 0 | AF50: 0 | AG50: 0 | AH50: 0 | AI50: 0 | AJ50: 0 | AK50: 0 | AL50: 0 | AM50: 0 | AN50: 0 | AO50: 0 | AP50: 0 | AQ50: 0
A51: DRAB0506 | B51: Disposals | C51: 0 | D51: 0 | E51: 0 | F51: 0 | H51: 0 | I51: 0 | J51: 0 | K51: 0 | L51: 0 | M51: 0 | N51: 0 | O51: 0 | Q51: 0 | R51: 0 | S51: 0 | T51: 0 | U51: 0 | V51: 0 | W51: 0 | X51: 0 | Y51: 0 | Z51: 0 | AA51: 0 | AB51: 0 | AC51: 0 | AE51: 0 | AF51: 0 | AG51: 0 | AH51: 0 | AI51: 0 | AJ51: 0 | AK51: 0 | AL51: 0 | AM51: 0 | AN51: 0 | AO51: 0 | AP51: 0 | AQ51: 0
A52: DRAB0507 | B52: Closing value | C52: =SUM(C47:C51) -> 95430924.31 | D52: 98639311.23 | E52: 103277637.7 | F52: 108785129.3 | G52: 118207529.7 | H52: 127958727 | I52: 132484084.4 | J52: =SUM(J47:J51) -> 139287712.3 | K52: 142966956.7 | L52: 145708010.5 | M52: 151809545.1 | N52: =SUM(N47:N51) -> 152066783.8 | O52: 152919163.5 | Q52: =SUM(Q47:Q51) -> 95430924.31 | R52: 98639311.23 | S52: 103277637.7 | T52: 108785129.3 | U52: 118207529.7 | V52: 127958727 | W52: 132484084.4 | X52: 139287712.3 | Y52: 142966956.7 | Z52: 145708010.5 | AA52: 151809545.1 | AB52: 152066783.8 | AC52: 152919163.5 | AE52: =SUM(AE47:AE51) -> 0 | AF52: 0 | AG52: 0 | AH52: 0 | AI52: 0 | AJ52: 0 | AK52: 0 | AL52: 0 | AM52: 0 | AN52: 0 | AO52: 0 | AP52: 0 | AQ52: 0
B53: For underground network assets 33kV and above:
A54: DRAB0601 | B54: Opening value | C54: 15862840.08 | D54: 16503442.11 | E54: 17058287.7 | F54: 17860421.31 | G54: 18812864.87 | H54: 20442337.09 | I54: 22128670.12 | J54: 22911267.32 | K54: 24087859.5 | L54: 24724133.3 | M54: 25198160.17 | N54: 21715478.34 | O54: 22066672.15 | Q54: 15862840.08 | R54: 16503442.11 | S54: 17058287.7 | T54: 17860421.31 | U54: 18812864.87 | V54: 20442337.09 | W54: 22128670.12 | X54: 22911267.32 | Y54: 24087859.5 | Z54: 24724133.3 | AA54: 25198160.17 | AB54: 21715478.34 | AC54: 22066672.15 | AE54: 0 | AF54: 0 | AG54: 0 | AH54: 0 | AI54: 0 | AJ54: 0 | AK54: 0 | AL54: 0 | AM54: 0 | AN54: 0 | AO54: 0 | AP54: 0 | AQ54: 0
A55: DRAB0602 | B55: Inflation addition | C55: 473182.5827 | D55: 402014.1948 | E55: 723542.9072 | F55: 441152.4064 | G55: 543691.7946 | H55: 680729.8252 | I55: 349632.988 | J55: 573321.2555 | K55: 704287.6205 | L55: 327688.66 | M55: 425484.881 | N55: 320523.6655 | O55: 421272.832 | Q55: 473182.5827 | R55: 402014.1948 | S55: 723542.9072 | T55: 441152.4064 | U55: 543691.7946 | V55: 680729.8252 | W55: 349632.988 | X55: 573321.2555 | Y55: 704287.6205 | Z55: 327688.66 | AA55: 425484.881 | AB55: 320523.6655 | AC55: 421272.832 | AE55: 0 | AF55: 0 | AG55: 0 | AH55: 0 | AI55: 0 | AJ55: 0 | AK55: 0 | AL55: 0 | AM55: 0 | AN55: 0 | AO55: 0 | AP55: 0 | AQ55: 0
A56: DRAB0603 | B56: Straight line depreciation | C56: -655380.0776 | D56: -688888.9677 | E56: -718768.8153 | F56: -766307.6326 | G56: -809374.6935 | H56: -888930.315 | I56: -939258.3138 | J56: -987988.3826 | K56: -1032361.593 | L56: -1078072.818 | M56: -421296.85 | N56: -452478.4 | O56: -495286.17 | Q56: -655380.0776 | R56: -688888.9677 | S56: -718768.8153 | T56: -766307.6326 | U56: -809374.6935 | V56: -888930.315 | W56: -939258.3138 | X56: -987988.3826 | Y56: -1032361.593 | Z56: -1078072.818 | AA56: -421296.85 | AB56: -452478.4 | AC56: -495286.17 | AE56: 0 | AF56: 0 | AG56: 0 | AH56: 0 | AI56: 0 | AJ56: 0 | AK56: 0 | AL56: 0 | AM56: 0 | AN56: 0 | AO56: 0 | AP56: 0 | AQ56: 0
A57: DRAB0605 | B57: Actual additions (recognised in RAB) | C57: 822799.5228 | D57: 841720.3663 | E57: 797359.5179 | F57: 1277598.783 | G57: 1895155.125 | H57: 1894533.52 | I57: 1372222.521 | J57: 1591259.305 | K57: 964347.7765 | L57: 1224411.029 | M57: -3486869.864 | N57: 483148.55 | O57: 38750.98 | Q57: 822799.5228 | R57: 841720.3663 | S57: 797359.5179 | T57: 1277598.783 | U57: 1895155.125 | V57: 1894533.52 | W57: 1372222.521 | X57: 1591259.305 | Y57: 964347.7765 | Z57: 1224411.029 | AA57: -3486869.864 | AB57: 483148.55 | AC57: 38750.98 | AE57: 0 | AF57: 0 | AG57: 0 | AH57: 0 | AI57: 0 | AJ57: 0 | AK57: 0 | AL57: 0 | AM57: 0 | AN57: 0 | AO57: 0 | AP57: 0 | AQ57: 0
A58: DRAB0606 | B58: Disposals | C58: 0 | D58: 0 | E58: 0 | F58: 0 | G58: 0 | H58: 0 | I58: 0 | J58: 0 | K58: 0 | L58: 0 | M58: 0 | N58: 0 | O58: 0 | Q58: 0 | R58: 0 | S58: 0 | T58: 0 | U58: 0 | V58: 0 | W58: 0 | X58: 0 | Y58: 0 | Z58: 0 | AA58: 0 | AB58: 0 | AC58: 0 | AE58: 0 | AF58: 0 | AG58: 0 | AH58: 0 | AI58: 0 | AJ58: 0 | AK58: 0 | AL58: 0 | AM58: 0 | AN58: 0 | AO58: 0 | AP58: 0 | AQ58: 0
A59: DRAB0607 | B59: Closing value | C59: =SUM(C54:C58) -> 16503442.11 | D59: 17058287.7 | E59: 17860421.31 | F59: 18812864.87 | G59: 20442337.09 | H59: 22128670.12 | I59: 22911267.32 | J59: =SUM(J54:J58) -> 24087859.5 | K59: 24724133.3 | L59: 25198160.17 | M59: 21715478.34 | N59: =SUM(N54:N58) -> 22066672.15 | O59: 22031409.8 | Q59: =SUM(Q54:Q58) -> 16503442.11 | R59: 17058287.7 | S59: 17860421.31 | T59: 18812864.87 | U59: 20442337.09 | V59: 22128670.12 | W59: 22911267.32 | X59: 24087859.5 | Y59: 24724133.3 | Z59: 25198160.17 | AA59: 21715478.34 | AB59: 22066672.15 | AC59: 22031409.8 | AE59: =SUM(AE54:AE58) -> 0 | AF59: 0 | AG59: 0 | AH59: 0 | AI59: 0 | AJ59: 0 | AK59: 0 | AL59: 0 | AM59: 0 | AN59: 0 | AO59: 0 | AP59: 0 | AQ59: 0
B60: Zone substations and transformers
A61: DRAB0701 | B61: Opening value | C61: 256902568.3 | D61: 267827543.3 | E61: 278410485.9 | F61: 292407841 | G61: 306447540.6 | H61: 333206143.5 | I61: 370787182.3 | J61: 417184647.7 | K61: 452316078.3 | L61: 487685387.3 | M61: 509264108.4 | N61: 493546218.3 | O61: 486096648.1 | Q61: 256902568.3 | R61: 267827543.3 | S61: 278410485.9 | T61: 292407841 | U61: 306447540.6 | V61: 333206143.5 | W61: 370787182.3 | X61: 417184647.7 | Y61: 452316078.3 | Z61: 487685387.3 | AA61: 509264108.4 | AB61: 493546218.3 | AC61: 486096648.1 | AE61: 0 | AF61: 0 | AG61: 0 | AH61: 0 | AI61: 0 | AJ61: 0 | AK61: 0 | AL61: 0 | AM61: 0 | AN61: 0 | AO61: 0 | AP61: 0 | AQ61: 0
A62: DRAB0702 | B62: Inflation addition | C62: 7663201.778 | D62: 6524281.575 | E62: 11808968.09 | F62: 7222473.672 | G62: 8856333.923 | H62: 11095764.58 | I62: 5858437.48 | J62: 10439601.45 | K62: 13290157.65 | L62: 6509822.029 | M62: 8599206.333 | N62: 7284815.03 | O62: 9280026.918 | Q62: 7663201.778 | R62: 6524281.575 | S62: 11808968.09 | T62: 7222473.672 | U62: 8856333.923 | V62: 11095764.58 | W62: 5858437.48 | X62: 10439601.45 | Y62: 13290157.65 | Z62: 6509822.029 | AA62: 8599206.333 | AB62: 7284815.03 | AC62: 9280026.918 | AE62: 0 | AF62: 0 | AG62: 0 | AH62: 0 | AI62: 0 | AJ62: 0 | AK62: 0 | AL62: 0 | AM62: 0 | AN62: 0 | AO62: 0 | AP62: 0 | AQ62: 0
A63: DRAB0703 | B63: Straight line depreciation | C63: -12102240 | D63: -12777809.21 | E63: -13408991.55 | F63: -14378812.42 | G63: -15219225.21 | H63: -17134614.2 | I63: -18368818.18 | J63: -20098438.19 | K63: -21396582.98 | L63: -22948635.01 | M63: -17550050.35 | N63: -18259718.2 | O63: -18501317.13 | Q63: -12102240 | R63: -12777809.21 | S63: -13408991.55 | T63: -14378812.42 | U63: -15219225.21 | V63: -17134614.2 | W63: -18368818.18 | X63: -20098438.19 | Y63: -21396582.98 | Z63: -22948635.01 | AA63: -17550050.35 | AB63: -18259718.2 | AC63: -18501317.13 | AE63: 0 | AF63: 0 | AG63: 0 | AH63: 0 | AI63: 0 | AJ63: 0 | AK63: 0 | AL63: 0 | AM63: 0 | AN63: 0 | AO63: 0 | AP63: 0 | AQ63: 0
A64: DRAB0705 | B64: Actual additions (recognised in RAB) | C64: 15364013.19 | D64: 16836470.3 | E64: 15597378.51 | F64: 21196038.36 | G64: 33121494.24 | H64: 43619888.34 | I64: 58907846.14 | J64: 44790267.33 | K64: 43475734.35 | L64: 38017534.06 | M64: -6767046.094 | N64: 3525332.94 | O64: 17489442.72 | Q64: 15364013.19 | R64: 16836470.3 | S64: 15597378.51 | T64: 21196038.36 | U64: 33121494.24 | V64: 43619888.34 | W64: 58907846.14 | X64: 44790267.33 | Y64: 43475734.35 | Z64: 38017534.06 | AA64: -6767046.094 | AB64: 3525332.94 | AC64: 17489442.72 | AE64: 0 | AF64: 0 | AG64: 0 | AH64: 0 | AI64: 0 | AJ64: 0 | AK64: 0 | AL64: 0 | AM64: 0 | AN64: 0 | AO64: 0 | AP64: 0 | AQ64: 0
A65: DRAB0706 | B65: Disposals | C65: 0 | D65: 0 | E65: 0 | F65: 0 | G65: 0 | H65: 0 | I65: 0 | J65: 0 | K65: 0 | L65: 0 | M65: 0 | N65: 0 | O65: 0 | Q65: 0 | R65: 0 | S65: 0 | T65: 0 | U65: 0 | V65: 0 | W65: 0 | X65: 0 | Y65: 0 | Z65: 0 | AA65: 0 | AB65: 0 | AC65: 0 | AE65: 0 | AF65: 0 | AG65: 0 | AH65: 0 | AI65: 0 | AJ65: 0 | AK65: 0 | AL65: 0 | AM65: 0 | AN65: 0 | AO65: 0 | AP65: 0 | AQ65: 0
A66: DRAB0707 | B66: Closing value | C66: =SUM(C61:C65) -> 267827543.3 | D66: 278410485.9 | E66: 292407841 | F66: 306447540.6 | G66: 333206143.5 | H66: 370787182.3 | I66: 417184647.7 | J66: =SUM(J61:J65) -> 452316078.3 | K66: 487685387.3 | L66: 509264108.4 | M66: 493546218.3 | N66: =SUM(N61:N65) -> 486096648.1 | O66: 494364800.6 | Q66: =SUM(Q61:Q65) -> 267827543.3 | R66: 278410485.9 | S66: 292407841 | T66: 306447540.6 | U66: 333206143.5 | V66: 370787182.3 | W66: 417184647.7 | X66: 452316078.3 | Y66: 487685387.3 | AE66: =SUM(AE61:AE65) -> 0 | AF66: 0 | AG66: 0 | AH66: 0 | AI66: 0 | AJ66: 0 | AK66: 0 | AL66: 0 | AM66: 0 | AN66: 0 | AO66: 0 | AP66: 0 | AQ66: 0
B67: For easements:
A68: DRAB0801 | B68: Opening value | C68: 0 | D68: 0 | E68: 0 | F68: 0 | G68: 0 | H68: 803328.9486 | I68: 1087489.535 | J68: 3061196.617 | K68: 4128583.471 | L68: 4946005.156 | M68: 6047418.392 | N68: 6725577.219 | O68: 7175246.602 | Q68: 0 | R68: 0 | S68: 0 | T68: 0 | U68: 0 | V68: 803328.9486 | W68: 1087489.535 | X68: 3061196.617 | Y68: 4128583.471 | Z68: 4946005.156 | AA68: 6047418.392 | AB68: 6725577.219 | AC68: 7175246.602 | AE68: 0 | AF68: 0 | AG68: 0 | AH68: 0 | AI68: 0 | AJ68: 0 | AK68: 0 | AL68: 0 | AM68: 0 | AN68: 0 | AO68: 0 | AP68: 0 | AQ68: 0
A69: DRAB0802 | B69: Inflation addition | C69: 0 | D69: 0 | E69: 0 | F69: 0 | G69: 0 | H69: 26750.85399 | I69: 17182.33465 | J69: 76582.33543 | K69: 120967.4957 | L69: 65781.86857 | M69: 102114.0066 | N69: 99270.51246 | O69: 136981.9806 | Q69: 0 | R69: 0 | S69: 0 | T69: 0 | U69: 0 | V69: 26750.85399 | W69: 17182.33465 | X69: 76582.33543 | Y69: 120967.4957 | Z69: 65781.86857 | AA69: 102114.0066 | AB69: 99270.51246 | AC69: 136981.9806 | AE69: 0 | AF69: 0 | AG69: 0 | AH69: 0 | AI69: 0 | AJ69: 0 | AK69: 0 | AL69: 0 | AM69: 0 | AN69: 0 | AO69: 0 | AP69: 0 | AQ69: 0
A70: DRAB0805 | B70: Actual additions (recognised in RAB) | C70: 0 | D70: 0 | E70: 0 | F70: 0 | G70: 803328.9486 | H70: 257409.7325 | I70: 1956524.748 | J70: 990804.5185 | K70: 696454.1887 | L70: 1035631.367 | M70: 576044.8207 | N70: 350398.87 | O70: 566310.01 | Q70: 0 | R70: 0 | S70: 0 | T70: 0 | U70: 803328.9486 | V70: 257409.7325 | W70: 1956524.748 | X70: 990804.5185 | Y70: 696454.1887 | Z70: 1035631.367 | AA70: 576044.8207 | AB70: 350398.87 | AC70: 566310.01 | AE70: 0 | AF70: 0 | AG70: 0 | AH70: 0 | AI70: 0 | AJ70: 0 | AK70: 0 | AL70: 0 | AM70: 0 | AN70: 0 | AO70: 0 | AP70: 0 | AQ70: 0
A71: DRAB0806 | B71: Disposals | C71: 0 | D71: 0 | E71: 0 | F71: 0 | G71: 0 | H71: 0 | I71: 0 | J71: 0 | K71: 0 | L71: 0 | M71: 0 | N71: 0 | O71: 0 | Q71: 0 | R71: 0 | S71: 0 | T71: 0 | U71: 0 | V71: 0 | W71: 0 | X71: 0 | Y71: 0 | Z71: 0 | AA71: 0 | AB71: 0 | AC71: 0 | AE71: 0 | AF71: 0 | AG71: 0 | AH71: 0 | AI71: 0 | AJ71: 0 | AK71: 0 | AL71: 0 | AM71: 0 | AN71: 0 | AO71: 0 | AP71: 0 | AQ71: 0
A72: DRAB0807 | B72: Closing value | C72: =SUM(C68:C71) -> 0 | D72: 0 | E72: 0 | F72: 0 | G72: 803328.9486 | H72: 1087489.535 | I72: 3061196.617 | J72: =SUM(J68:J71) -> 4128583.471 | K72: 4946005.156 | L72: 6047418.392 | M72: 6725577.219 | N72: =SUM(N68:N71) -> 7175246.602 | O72: 7878538.592 | Q72: =SUM(Q68:Q71) -> 0 | R72: 0 | S72: 0 | T72: 0 | U72: 803328.9486 | V72: 1087489.535 | W72: 3061196.617 | X72: 4128583.471 | Y72: 4946005.156 | Z72: 6047418.392 | AA72: 6725577.219 | AB72: 7175246.602 | AC72: 7878538.592 | AE72: =SUM(AE68:AE71) -> 0 | AF72: 0 | AG72: 0 | AH72: 0 | AI72: 0 | AJ72: 0 | AK72: 0 | AL72: 0 | AM72: 0 | AN72: 0 | AO72: 0 | AP72: 0 | AQ72: 0
B73: For meters:
A74: DRAB0901 | B74: Opening value | C74: 0 | D74: 0 | E74: 0 | F74: 0 | G74: 0 | H74: 0 | I74: 0 | J74: 0 | K74: 0 | L74: 0 | M74: 0 | N74: 0 | O74: 0 | Q74: 4628174.543 | R74: 12444619.93 | S74: 20003384.02 | T74: 29835333.68 | U74: 0 | V74: 0 | W74: 0 | X74: 0 | Y74: 0 | Z74: 0 | AA74: 0 | AB74: 0 | AC74: 0 | AE74: 0 | AF74: 0 | AG74: 0 | AH74: 0 | AI74: 40205100.14 | AJ74: 79147994.52 | AK74: 79821611.69 | AL74: 79065332.25 | AM74: 78583246.36 | AN74: 77642027.06 | AO74: 75610825.33 | AP74: 70559650.14 | AQ74: 62757122.89
A75: DRAB0902 | B75: Inflation addition | C75: 0 | D75: 0 | E75: 0 | F75: 0 | G75: 0 | H75: 0 | I75: 0 | J75: 0 | K75: 0 | L75: 0 | M75: 0 | N75: 0 | O75: 0 | Q75: 137919.6014 | R75: 303341.456 | S75: 848380.4043 | T75: 736932.7419 | U75: 0 | V75: 0 | W75: 0 | X75: 0 | Y75: 0 | Z75: 0 | AA75: 0 | AB75: 0 | AC75: 0 | AE75: 0 | AF75: 0 | AG75: 0 | AH75: 0 | AI75: 1161927.394 | AJ75: 2635628.218 | AK75: 1261181.465 | AL75: 1978657.283 | AM75: 2302489.118 | AN75: 1032638.96 | AO75: 1276730.634 | AP75: 1041470.851 | AQ75: 1198090.528
A76: DRAB0903 | B76: Straight line depreciation | C76: 0 | D76: 0 | E76: 0 | F76: 0 | G76: 0 | H76: 0 | I76: 0 | J76: 0 | K76: 0 | L76: 0 | M76: 0 | N76: 0 | O76: 0 | Q76: 0 | R76: -251921.8355 | S76: -501679.3629 | T76: -838079.4504 | U76: 0 | V76: 0 | W76: 0 | X76: 0 | Y76: 0 | Z76: 0 | AA76: 0 | AB76: 0 | AC76: 0 | AE76: 0 | AF76: 0 | AG76: 0 | AH76: 0 | AI76: -1540625.912 | AJ76: -5656401.849 | AK76: -6106828.423 | AL76: -6488345.911 | AM76: -6934913.414 | AN76: -7401319.776 | AO76: -8283769.9 | AP76: -8667169.57 | AQ76: -9018562.66
A77: DRAB0905 | B77: Actual additions (recognised in RAB) | C77: 0 | D77: 0 | E77: 0 | F77: 0 | G77: 0 | H77: 0 | I77: 0 | J77: 0 | K77: 0 | L77: 0 | M77: 0 | N77: 0 | O77: 0 | Q77: 7678525.787 | R77: 7507344.465 | S77: 9485248.62 | T77: 10470913.17 | U77: 0 | V77: 0 | W77: 0 | X77: 0 | Y77: 0 | Z77: 0 | AA77: 0 | AB77: 0 | AC77: 0 | AE77: 0 | AF77: 0 | AG77: 0 | AH77: 0 | AI77: 39321592.9 | AJ77: 3694390.799 | AK77: 4089367.525 | AL77: 4027602.735 | AM77: 3691204.998 | AN77: 4337479.078 | AO77: 1955864.076 | AP77: -176828.53 | AQ77: -450698.99
A78: DRAB0906 | B78: Disposals | C78: 0 | D78: 0 | E78: 0 | F78: 0 | G78: 0 | H78: 0 | I78: 0 | J78: 0 | K78: 0 | L78: 0 | M78: 0 | N78: 0 | O78: 0 | Q78: 0 | R78: 0 | S78: 0 | T78: 0 | U78: 0 | V78: 0 | W78: 0 | X78: 0 | Y78: 0 | Z78: 0 | AA78: 0 | AB78: 0 | AC78: 0 | AE78: 0 | AF78: 0 | AG78: 0 | AH78: 0 | AI78: 0 | AJ78: 0 | AK78: 0 | AL78: 0 | AM78: 0 | AN78: 0 | AO78: 0 | AP78: 0 | AQ78: 0
A79: DRAB0907 | B79: Closing value | C79: =SUM(C74:C78) -> 0 | D79: 0 | E79: 0 | F79: 0 | G79: 0 | H79: 0 | I79: 0 | J79: =SUM(J74:J78) -> 0 | K79: 0 | L79: 0 | M79: 0 | N79: =SUM(N74:N78) -> 0 | O79: 0 | Q79: =SUM(Q74:Q78) -> 12444619.93 | R79: 20003384.02 | S79: 29835333.68 | T79: 40205100.14 | U79: 0 | V79: 0 | W79: 0 | X79: 0 | Y79: 0 | Z79: 0 | AA79: 0 | AB79: 0 | AC79: 0 | AE79: =SUM(AE74:AE78) -> 0 | AF79: 0 | AG79: 0 | AH79: 0 | AI79: 79147994.52 | AJ79: 79821611.69 | AK79: 79065332.25 | AL79: 78583246.36 | AM79: 77642027.06 | AN79: 75610825.33 | AO79: 70559650.14 | AP79: 62757122.89 | AQ79: 54485951.76
B80: For “other” asset items with long lives:
A81: DRAB1001 | B81: Opening value | C81: 245148948.4 | D81: 270486831.4 | E81: 270778347.8 | F81: 272602010.5 | G81: 299203653.4 | H81: 301388824.9 | I81: 337259348.8 | J81: 359259081.7 | K81: 389339561.8 | L81: 414193661.2 | M81: 448565094.7 | N81: 455754280.4 | O81: 455524203.5 | Q81: 245148948.4 | R81: 270486831.4 | S81: 270778347.8 | T81: 272602010.5 | U81: 299203653.4 | V81: 301388824.9 | W81: 337259348.8 | X81: 359259081.7 | Y81: 389339561.8 | Z81: 414193661.2 | AA81: 448565094.7 | AB81: 455754280.4 | AC81: 455524203.5 | AE81: 39908889.3 | AF81: 41008214 | AG81: 40683716.87 | AH81: 41239235.38 | AI81: 40102037.74 | AJ81: 40135074.82 | AK81: 40095800.66 | AL81: 39353040.22 | AM81: 38863549.26 | AN81: 37811605.42 | AO81: 36707377.64 | AP81: 34916841.11 | AQ81: 36482048.37
A82: DRAB1002 | B82: Inflation addition | C82: 7313109.428 | D82: 6588263.337 | E82: 11485582.03 | F82: 6733269.66 | G82: 8646985.584 | H82: 10036247.87 | I82: 5328697.711 | J82: 8990518.846 | K82: 11424496.09 | L82: 5543258.08 | M82: 7574269.893 | N82: 6727000.449 | O82: 8696371.157 | Q82: 7313109.428 | R82: 6588263.337 | S82: 11485582.03 | T82: 6733269.66 | U82: 8646985.584 | V82: 10036247.87 | W82: 5328697.711 | X82: 8990518.846 | Y82: 11424496.09 | Z82: 5543258.08 | AA82: 7574269.893 | AB82: 6727000.449 | AC82: 8696371.157 | AE82: 1189284.901 | AF82: 1000600.422 | AG82: 1724989.595 | AH82: 1018609.114 | AI82: 1158948.891 | AJ82: 1336497.991 | AK82: 633513.6504 | AL82: 983830.6926 | AM82: 1138701.993 | AN82: 502894.3521 | AO82: 619824.3879 | AP82: 515377.7285 | AQ82: 696475.4689
A83: DRAB1003 | B83: Straight line depreciation | C83: -9004100.835 | D83: -11769204.2 | E83: -12778159.05 | F83: -13836392.65 | G83: -17614318.04 | H83: -12416079.87 | I83: -14683903.02 | J83: -17578385.99 | K83: -20548341.16 | L83: -23588697.19 | M83: -28042254.02 | N83: -33354126.61 | O83: -27506259 | Q83: -9004100.835 | R83: -11769204.2 | S83: -12778159.05 | T83: -13836392.65 | U83: -17614318.04 | V83: -12416079.87 | W83: -14683903.02 | X83: -17578385.99 | Y83: -20548341.16 | Z83: -23588697.19 | AA83: -28042254.02 | AB83: -33354126.61 | AC83: -27506259 | AE83: -3237165.099 | AF83: -3388973.356 | AG83: -3618308.683 | AH83: -3764430.908 | AI83: -3973472.961 | AJ83: -4124141.835 | AK83: -4369226.378 | AL83: -4546840.189 | AM83: -4773024.272 | AN83: -5007803.959 | AO83: -5197289.565 | AP83: -1949184.746 | AQ83: -2086643.577
A84: DRAB1005 | B84: Actual additions (recognised in RAB) | C84: 29224874.36 | D84: 9311457.275 | E84: 3182239.785 | F84: 33984765.88 | G84: 11152503.91 | H84: 38250355.92 | I84: 31354938.18 | J84: 38668347.23 | K84: 33977944.47 | L84: 52416872.7 | M84: 28613755.41 | N84: 27088407.26 | O84: 56419500.1 | Q84: 29224874.36 | R84: 9311457.275 | S84: 3182239.785 | T84: 33984765.88 | U84: 11152503.91 | V84: 38250355.92 | W84: 31354938.18 | X84: 38668347.23 | Y84: 33977944.47 | Z84: 52416872.7 | AA84: 28613755.41 | AB84: 27088407.26 | AC84: 56419500.1 | AE84: 3147204.9 | AF84: 2063875.8 | AG84: 2448837.6 | AH84: 1608624.15 | AI84: 2847561.15 | AJ84: 2748369.685 | AK84: 2992952.295 | AL84: 3073518.53 | AM84: 2582378.44 | AN84: 3400681.827 | AO84: 2786928.643 | AP84: 2999014.282 | AQ84: 5097129.962
A85: DRAB1006 | B85: Disposals | C85: -2196000 | D85: -3839000 | E85: -66000 | F85: -280000 | G85: 0 | H85: 0 | I85: 0 | J85: 0 | K85: 0 | L85: 0 | M85: -956585.63 | N85: -691358.03 | O85: -574543.31 | Q85: -2196000 | R85: -3839000 | S85: -66000 | T85: -280000 | U85: 0 | V85: 0 | W85: 0 | X85: 0 | Y85: 0 | Z85: 0 | AA85: -956585.63 | AB85: -691358.03 | AC85: -574543.31 | AE85: 0 | AF85: 0 | AG85: 0 | AH85: 0 | AI85: 0 | AJ85: 0 | AK85: 0 | AL85: 0 | AM85: 0 | AN85: 0 | AO85: 0 | AP85: 0 | AQ85: 0
A86: DRAB1007 | B86: Closing value | C86: =SUM(C81:C85) -> 270486831.4 | D86: 270778347.8 | E86: 272602010.5 | F86: 299203653.4 | G86: 301388824.9 | H86: 337259348.8 | I86: 359259081.7 | J86: =SUM(J81:J85) -> 389339561.8 | K86: 414193661.2 | L86: 448565094.7 | M86: 455754280.4 | N86: =SUM(N81:N85) -> 455524203.5 | O86: 492559272.4 | Q86: =SUM(Q81:Q85) -> 270486831.4 | R86: 270778347.8 | S86: 272602010.5 | T86: 299203653.4 | U86: 301388824.9 | V86: 337259348.8 | W86: 359259081.7 | X86: 389339561.8 | Y86: 414193661.2 | Z86: 448565094.7 | AA86: 455754280.4 | AB86: 455524203.5 | AC86: 492559272.4 | AE86: =SUM(AE81:AE85) -> 41008214 | AF86: 40683716.87 | AG86: 41239235.38 | AH86: 40102037.74 | AI86: 40135074.82 | AJ86: 40095800.66 | AK86: 39353040.22 | AL86: 38863549.26 | AM86: 37811605.42 | AN86: 36707377.64 | AO86: 34916841.11 | AP86: 36482048.37 | AQ86: 40189010.22
B87: For “other” asset items with short lives:
A88: DRAB1101 | B88: Opening value | C88: 62351216.21 | D88: 81191753.86 | E88: 74596406.76 | F88: 68450088.49 | G88: 73222544.53 | H88: 44235070.64 | I88: 47543855.28 | J88: 65397959.59 | K88: 72271305.41 | L88: 82040232.06 | M88: 95037468.97 | N88: 194530045.5 | O88: 192141545.6 | Q88: 62351216.21 | R88: 81191753.86 | S88: 74596406.76 | T88: 68450088.49 | U88: 73222544.53 | V88: 44235070.64 | W88: 47543855.28 | X88: 65397959.59 | Y88: 72271305.41 | Z88: 82040232.06 | AA88: 95037468.97 | AB88: 194530045.5 | AC88: 192141545.6 | AE88: 0 | AF88: 0 | AG88: 0 | AH88: 0 | AI88: 0 | AJ88: 0 | AK88: 0 | AL88: 0 | AM88: 0 | AN88: 0 | AO88: 0 | AP88: 0 | AQ88: -275862.37
A89: DRAB1102 | B89: Inflation addition | C89: 1860071.401 | D89: 1977523.501 | E89: 3164182.13 | F89: 1690717.186 | G89: 2116131.537 | H89: 1473027.852 | I89: 751192.9134 | J89: 1637544.019 | K89: 2134973.188 | L89: 1112405.165 | M89: 1604760.264 | N89: 2871292.184 | O89: 3668156.78 | Q89: 1860071.401 | R89: 1977523.501 | S89: 3164182.13 | T89: 1690717.186 | U89: 2116131.537 | V89: 1473027.852 | W89: 751192.9134 | X89: 1637544.019 | Y89: 2134973.188 | Z89: 1112405.165 | AA89: 1604760.264 | AB89: 2871292.184 | AC89: 3668156.78 | AE89: 0 | AF89: 0 | AG89: 0 | AH89: 0 | AI89: 0 | AJ89: 0 | AK89: 0 | AL89: 0 | AM89: 0 | AN89: 0 | AO89: 0 | AP89: 0 | AQ89: -5266.463427
A90: DRAB1103 | B90: Straight line depreciation | C90: -13246059.27 | D90: -19707566.28 | E90: -22203999.36 | F90: -25412832.15 | G90: -31286496.41 | H90: -14731190.99 | I90: -18685650.54 | J90: -27101261.28 | K90: -34707136.14 | L90: -43505453.96 | M90: 180170.73 | N90: -62857296.16 | O90: -67902569.49 | Q90: -13246059.27 | R90: -19707566.28 | S90: -22203999.36 | T90: -25412832.15 | U90: -31286496.41 | V90: -14731190.99 | W90: -18685650.54 | X90: -27101261.28 | Y90: -34707136.14 | Z90: -43505453.96 | AA90: 180170.73 | AB90: -62857296.16 | AC90: -67902569.49 | AE90: 0 | AF90: 0 | AG90: 0 | AH90: 0 | AI90: 0 | AJ90: 0 | AK90: 0 | AL90: 0 | AM90: 0 | AN90: 0 | AO90: 0 | AP90: -275862.37 | AQ90: -360310.09
A91: DRAB1105 | B91: Actual additions (recognised in RAB) | C91: 31628525.51 | D91: 13126695.68 | E91: 15136498.97 | F91: 32564570.99 | G91: 1503890.993 | H91: 18917947.78 | I91: 37269561.94 | J91: 34243063.08 | K91: 44899089.6 | L91: 57778285.71 | M91: 98792502.71 | N91: 59340703.04 | O91: 72339060.91 | Q91: 31628525.51 | R91: 13126695.68 | S91: 15136498.97 | T91: 32564570.99 | U91: 1503890.993 | V91: 18917947.78 | W91: 37269561.94 | X91: 34243063.08 | Y91: 44899089.6 | Z91: 57778285.71 | AA91: 98792502.71 | AB91: 59340703.04 | AC91: 72339060.91 | AE91: 0 | AF91: 0 | AG91: 0 | AH91: 0 | AI91: 0 | AJ91: 0 | AK91: 0 | AL91: 0 | AM91: 0 | AN91: 0 | AO91: 0 | AP91: 0 | AQ91: 0
A92: DRAB1106 | B92: Disposals | C92: -1402000 | D92: -1992000 | E92: -2243000 | F92: -4070000 | G92: -1321000 | H92: -2351000 | I92: -1481000 | J92: -1906000 | K92: -2558000 | L92: -2388000 | M92: -1084857.18 | N92: -1743198.95 | O92: -1975453.08 | Q92: -1402000 | R92: -1992000 | S92: -2243000 | T92: -4070000 | U92: -1321000 | V92: -2351000 | W92: -1481000 | X92: -1906000 | Y92: -2558000 | Z92: -2388000 | AA92: -1084857.18 | AB92: -1743198.95 | AC92: -1975453.08 | AE92: 0 | AF92: 0 | AG92: 0 | AH92: 0 | AI92: 0 | AJ92: 0 | AK92: 0 | AL92: 0 | AM92: 0 | AN92: 0 | AO92: 0 | AP92: 0 | AQ92: 0
A93: DRAB1107 | B93: Closing value | C93: =SUM(C88:C92) -> 81191753.86 | D93: 74596406.76 | E93: 68450088.49 | F93: 73222544.53 | G93: 44235070.64 | H93: 47543855.28 | I93: 65397959.59 | J93: =SUM(J88:J92) -> 72271305.41 | K93: 82040232.06 | L93: 95037468.97 | M93: 194530045.5 | N93: =SUM(N88:N92) -> 192141545.6 | O93: 198270740.7 | Q93: =SUM(Q88:Q92) -> 81191753.86 | R93: 74596406.76 | S93: 68450088.49 | T93: 73222544.53 | U93: 44235070.64 | V93: 47543855.28 | W93: 65397959.59 | X93: 72271305.41 | Y93: 82040232.06 | Z93: 95037468.97 | AA93: 194530045.5 | AB93: 192141545.6 | AC93: 198270740.7 | AE93: =SUM(AE88:AE92) -> 0 | AF93: 0 | AG93: 0 | AH93: 0 | AI93: 0 | AJ93: 0 | AK93: 0 | AL93: 0 | AM93: 0 | AN93: 0 | AO93: 0 | AP93: -275862.37 | AQ93: -641438.9234
B98: 3.3.3 - TOTAL DISAGGREGATED RAB ASSET VALUES
C99: Network services | Q99: Standard control services | AE99: Alternative control services
C100: $0's, Nominal | Q100: $0's, Nominal | AE100: $0's, Nominal
C101: =IF(dms_RPT="financial",dms_fy1,dms_cy1) -> 2005-06 | D101: =IF(dms_RPT="financial",dms_fy2,dms_cy2) -> 2006-07 | E101: =IF(dms_RPT="financial",dms_fy3,dms_cy3) -> 2007-08 | F101: =IF(dms_RPT="financial",dms_fy4,dms_cy4) -> 2008-09 | G101: =IF(dms_RPT="financial",dms_fy5,dms_cy5) -> 2009-10 | H101: =IF(dms_RPT="financial",dms_fy6,dms_cy6) -> 2010-11 | I101: =IF(dms_RPT="financial",dms_fy7,dms_cy7) -> 2011-12 | J101: =IF(dms_RPT="financial",dms_fy8,dms_cy8) -> 2012-13 | K101: =IF(dms_RPT="financial",dms_fy9,dms_cy9) -> 2013-14 | L101: =IF(dms_RPT="financial",dms_fy10,dms_cy10) -> 2014-15 | M101: =IF(dms_RPT="financial",dms_fy11,dms_cy11) -> 2015-16 | N101: =IF(dms_RPT="financial",dms_fy12,dms_cy12) -> 2016-17 | O101: =IF(dms_RPT="financial",dms_fy13,dms_cy13) -> 2017-18 | Q101: =IF(dms_RPT="financial",dms_fy1,dms_cy1) -> 2005-06 | R101: =IF(dms_RPT="financial",dms_fy2,dms_cy2) -> 2006-07 | S101: =IF(dms_RPT="financial",dms_fy3,dms_cy3) -> 2007-08 | T101: =IF(dms_RPT="financial",dms_fy4,dms_cy4) -> 2008-09 | U101: =IF(dms_RPT="financial",dms_fy5,dms_cy5) -> 2009-10 | V101: =IF(dms_RPT="financial",dms_fy6,dms_cy6) -> 2010-11 | W101: =IF(dms_RPT="financial",dms_fy7,dms_cy7) -> 2011-12 | X101: =IF(dms_RPT="financial",dms_fy8,dms_cy8) -> 2012-13 | Y101: =IF(dms_RPT="financial",dms_fy9,dms_cy9) -> 2013-14 | Z101: =IF(dms_RPT="financial",dms_fy10,dms_cy10) -> 2014-15 | AA101: =IF(dms_RPT="financial",dms_fy11,dms_cy11) -> 2015-16 | AB101: =IF(dms_RPT="financial",dms_fy12,dms_cy12) -> 2016-17 | AC101: =IF(dms_RPT="financial",dms_fy13,dms_cy13) -> 2017-18 | AE101: =IF(dms_RPT="financial",dms_fy1,dms_cy1) -> 2005-06 | AF101: =IF(dms_RPT="financial",dms_fy2,dms_cy2) -> 2006-07 | AG101: =IF(dms_RPT="financial",dms_fy3,dms_cy3) -> 2007-08 | AH101: =IF(dms_RPT="financial",dms_fy4,dms_cy4) -> 2008-09 | AI101: =IF(dms_RPT="financial",dms_fy5,dms_cy5) -> 2009-10 | AJ101: =IF(dms_RPT="financial",dms_fy6,dms_cy6) -> 2010-11 | AK101: =IF(dms_RPT="financial",dms_fy7,dms_cy7) -> 2011-12 | AL101: =IF(dms_RPT="financial",dms_fy8,dms_cy8) -> 2012-13 | AM101: =IF(dms_RPT="financial",dms_fy9,dms_cy9) -> 2013-14 | AN101: =IF(dms_RPT="financial",dms_fy10,dms_cy10) -> 2014-15 | AO101: =IF(dms_RPT="financial",dms_fy11,dms_cy11) -> 2015-16 | AP101: =IF(dms_RPT="financial",dms_fy12,dms_cy12) -> 2016-17 | AQ101: =IF(dms_RPT="financial",dms_fy13,dms_cy13) -> 2017-18
A102: DRAB1201 | B102: Overhead network assets less than 33kV (wires and poles) | C102: 524394592.9 | D102: 524703611.6 | E102: 525458202 | F102: 524311289.5 | G102: 520227448.3 | H102: 524972581.8 | I102: 533738965.1 | J102: 543241067.7 | K102: 546648332.4 | L102: 540557864.4 | M102: 464307446 | N102: 411534776.3 | O102: 437395758.8 | Q102: 569174567.7 | R102: 571501581.9 | S102: 574690273.1 | T102: 576167141.5 | U102: 574955692.7 | V102: 583270510.3 | W102: 595016859.3 | X102: 607213324.7 | Y102: 613952410.7 | Z102: 611228306.2 | AA102: 539664522.3 | AB102: 490891503.3 | AC102: 516888483.8 | AE102: 0 | AF102: 0 | AG102: 0 | AH102: 0 | AI102: 0 | AJ102: 0 | AK102: 0 | AL102: 0 | AM102: 0 | AN102: 0 | AO102: 0 | AP102: 0 | AQ102: 0
A103: DRAB1202 | B103: Underground network assets less than 33kV (cables) | C103: 815747453.3 | D103: 811463707 | E103: 816589522.9 | F103: 812060452.4 | G103: 779846320.7 | H103: 766340467.3 | I103: 776485754.7 | J103: 800922394 | K103: 836526078 | L103: 854446852.1 | M103: 832492953.4 | N103: 816149963.2 | O103: 862666625.2 | Q103: 887065163.5 | R103: 888079283.8 | S103: 899356573.3 | T103: 900786286.5 | U103: 873113639.7 | V103: 864009536.6 | W103: 877965585.4 | X103: 906071323.6 | Y103: 946531101.4 | Z103: 969261264.4 | AA103: 948188803.6 | AB103: 930684643.5 | AC103: 979951141.9 | AE103: 0 | AF103: 0 | AG103: 0 | AH103: 0 | AI103: 0 | AJ103: 0 | AK103: 0 | AL103: 0 | AM103: 0 | AN103: 0 | AO103: 0 | AP103: 0 | AQ103: 0
A104: DRAB1203 | B104: Distribution substations including transformers | C104: 494068174 | D104: 514284804.2 | E104: 537432018.3 | F104: 563870571.6 | G104: 602194734.7 | H104: 662244056.9 | I104: 736958718.1 | J104: 809293964.1 | K104: 874147652.1 | L104: 926168644.5 | M104: 1047508005 | N104: 1144889828 | O104: 1148663727 | Q104: 494068174 | R104: 514284804.2 | S104: 537432018.3 | T104: 563870571.6 | U104: 602194734.7 | V104: 662244056.9 | W104: 736958718.1 | X104: 809293964.1 | Y104: 874147652.1 | Z104: 926168644.5 | AA104: 1047508005 | AB104: 1144889828 | AC104: 1148663727 | AE104: 0 | AF104: 0 | AG104: 0 | AH104: 0 | AI104: 0 | AJ104: 0 | AK104: 0 | AL104: 0 | AM104: 0 | AN104: 0 | AO104: 0 | AP104: 0 | AQ104: 0
A105: DRAB1204 | B105: Overhead network assets 33kV and above (wires and towers / poles etc) | C105: 93578788.15 | D105: 97035117.77 | E105: 100958474.4 | F105: 106031383.5 | G105: 113496329.5 | H105: 123083128.4 | I105: 130221405.7 | J105: 135885898.4 | K105: 141127334.5 | L105: 144337483.6 | M105: 148758777.8 | N105: 151938164.5 | O105: 152492973.7 | Q105: 93578788.15 | R105: 97035117.77 | S105: 100958474.4 | T105: 106031383.5 | U105: 113496329.5 | V105: 123083128.4 | W105: 130221405.7 | X105: 135885898.4 | Y105: 141127334.5 | Z105: 144337483.6 | AA105: 148758777.8 | AB105: 151938164.5 | AC105: 152492973.7 | AE105: 0 | AF105: 0 | AG105: 0 | AH105: 0 | AI105: 0 | AJ105: 0 | AK105: 0 | AL105: 0 | AM105: 0 | AN105: 0 | AO105: 0 | AP105: 0 | AQ105: 0
A106: DRAB1205 | B106: Underground network assets 33kV and above(cables, ducts etc) | C106: 16183141.09 | D106: 16780864.9 | E106: 17459354.51 | F106: 18336643.09 | G106: 19627600.98 | H106: 21285503.61 | I106: 22519968.72 | J106: 23499563.41 | K106: 24405996.4 | L106: 24961146.74 | M106: 23456819.26 | N106: 21891075.25 | O106: 22049040.98 | Q106: 16183141.09 | R106: 16780864.9 | S106: 17459354.51 | T106: 18336643.09 | U106: 19627600.98 | V106: 21285503.61 | W106: 22519968.72 | X106: 23499563.41 | Y106: 24405996.4 | Z106: 24961146.74 | AA106: 23456819.26 | AB106: 21891075.25 | AC106: 22049040.98 | AE106: 0 | AF106: 0 | AG106: 0 | AH106: 0 | AI106: 0 | AJ106: 0 | AK106: 0 | AL106: 0 | AM106: 0 | AN106: 0 | AO106: 0 | AP106: 0 | AQ106: 0
A107: DRAB1206 | B107: Zone substations and transformers | C107: 262365055.8 | D107: 273119014.6 | E107: 285409163.5 | F107: 299427690.8 | G107: 319826842.1 | H107: 351996662.9 | I107: 393985915 | J107: 434750363 | K107: 470000732.8 | L107: 498474747.9 | M107: 501405163.4 | N107: 489821433.2 | O107: 490230724.3 | Q107: 262365055.8 | R107: 273119014.6 | S107: 285409163.5 | T107: 299427690.8 | U107: 319826842.1 | V107: 351996662.9 | W107: 393985915 | X107: 434750363 | Y107: 470000732.8 | Z107: 498474747.9 | AA107: 501405163.4 | AB107: 489821433.2 | AC107: 490230724.3 | AE107: 0 | AF107: 0 | AG107: 0 | AH107: 0 | AI107: 0 | AJ107: 0 | AK107: 0 | AL107: 0 | AM107: 0 | AN107: 0 | AO107: 0 | AP107: 0 | AQ107: 0
A108: DRAB1207 | B108: Easements | C108: 0 | D108: 0 | E108: 0 | F108: 0 | G108: 401664.4743 | H108: 945409.2418 | I108: 2074343.076 | J108: 3594890.044 | K108: 4537294.314 | L108: 5496711.774 | M108: 6386497.805 | N108: 6950411.91 | O108: 7526892.597 | Q108: 0 | R108: 0 | S108: 0 | T108: 0 | U108: 401664.4743 | V108: 945409.2418 | W108: 2074343.076 | X108: 3594890.044 | Y108: 4537294.314 | Z108: 5496711.774 | AA108: 6386497.805 | AB108: 6950411.91 | AC108: 7526892.597 | AE108: 0 | AF108: 0 | AG108: 0 | AH108: 0 | AI108: 0 | AJ108: 0 | AK108: 0 | AL108: 0 | AM108: 0 | AN108: 0 | AO108: 0 | AP108: 0 | AQ108: 0
A109: DRAB1208 | B109: Meters | C109: 0 | D109: 0 | E109: 0 | F109: 0 | G109: 0 | H109: 0 | I109: 0 | J109: 0 | K109: 0 | L109: 0 | M109: 0 | N109: 0 | O109: 0 | Q109: 8536397.237 | R109: 16224001.97 | S109: 24919358.85 | T109: 35020216.91 | U109: 0 | V109: 0 | W109: 0 | X109: 0 | Y109: 0 | Z109: 0 | AA109: 0 | AB109: 0 | AC109: 0 | AE109: 0 | AF109: 0 | AG109: 0 | AH109: 0 | AI109: 59676547.33 | AJ109: 79484803.1 | AK109: 79443471.97 | AL109: 78824289.31 | AM109: 78112636.71 | AN109: 76626426.19 | AO109: 73085237.73 | AP109: 66658386.51 | AQ109: 58621537.32
A110: DRAB1209 | B110: “Other” assets with long lives | C110: 257817889.9 | D110: 270632589.6 | E110: 271690179.2 | F110: 285902832 | G110: 300296239.2 | H110: 319324086.9 | I110: 348259215.2 | J110: 374299321.7 | K110: 401766611.5 | L110: 431379378 | M110: 452159687.6 | N110: 455639241.9 | O110: 474041737.9 | Q110: 257817889.9 | R110: 270632589.6 | S110: 271690179.2 | T110: 285902832 | U110: 300296239.2 | V110: 319324086.9 | W110: 348259215.2 | X110: 374299321.7 | Y110: 401766611.5 | Z110: 431379378 | AA110: 452159687.6 | AB110: 455639241.9 | AC110: 474041737.9 | AE110: 40458551.65 | AF110: 40845965.44 | AG110: 40961476.12 | AH110: 40670636.56 | AI110: 40118556.28 | AJ110: 40115437.74 | AK110: 39724420.44 | AL110: 39108294.74 | AM110: 38337577.34 | AN110: 37259491.53 | AO110: 35812109.37 | AP110: 35699444.74 | AQ110: 38335529.3
A111: DRAB1210 | B111: “Other” assets with short lives | C111: 71771485.04 | D111: 77894080.31 | E111: 71523247.63 | F111: 70836316.51 | G111: 58728807.59 | H111: 45889462.96 | I111: 56470907.44 | J111: 68834632.5 | K111: 77155768.74 | L111: 88538850.51 | M111: 144783757.2 | N111: 193335795.6 | O111: 195206143.2 | Q111: 71771485.04 | R111: 77894080.31 | S111: 71523247.63 | T111: 70836316.51 | U111: 58728807.59 | V111: 45889462.96 | W111: 56470907.44 | X111: 68834632.5 | Y111: 77155768.74 | Z111: 88538850.51 | AA111: 144783757.2 | AB111: 193335795.6 | AC111: 195206143.2 | AE111: 0 | AF111: 0 | AG111: 0 | AH111: 0 | AI111: 0 | AJ111: 0 | AK111: 0 | AL111: 0 | AM111: 0 | AN111: 0 | AO111: 0 | AP111: -137931.185 | AQ111: -458650.6467
A112: DRAB13 | B112: Value of Capital Contributions or Contributed Assets (included in the above) | C112: 0 | D112: 0 | E112: 0 | F112: 0 | G112: 0 | H112: 0 | I112: 0 | J112: 0 | K112: 0 | L112: 0 | M112: 0 | N112: 0 | O112: 0 | Q112: -53577000 | R112: -60768000 | S112: -77922000 | T112: -121499000 | U112: -152519000 | V112: -109727000 | W112: -91217000 | X112: -71926000 | Y112: -82690000 | Z112: -65594000 | AA112: -59634008.89 | AB112: -52883615.96 | AC112: -53265040.6 | AE112: 0 | AF112: 0 | AG112: 0 | AH112: 0 | AI112: 0 | AJ112: 0 | AK112: 0 | AL112: 0 | AM112: 0 | AN112: 0 | AO112: -5858890.545 | AP112: -6662437.327 | AQ112: -6083691.669
B115: 3.3.4 - ASSET LIVES
C116: Network services | Q116: Standard control services | AE116: Alternative control services
C117: Service Life (Years) | Q117: Service Life (Years) | AE117: Service Life (Years)
C118: =IF(dms_RPT="financial",dms_fy1,dms_cy1) -> 2005-06 | D118: =IF(dms_RPT="financial",dms_fy2,dms_cy2) -> 2006-07 | E118: =IF(dms_RPT="financial",dms_fy3,dms_cy3) -> 2007-08 | F118: =IF(dms_RPT="financial",dms_fy4,dms_cy4) -> 2008-09 | G118: =IF(dms_RPT="financial",dms_fy5,dms_cy5) -> 2009-10 | H118: =IF(dms_RPT="financial",dms_fy6,dms_cy6) -> 2010-11 | I118: =IF(dms_RPT="financial",dms_fy7,dms_cy7) -> 2011-12 | J118: =IF(dms_RPT="financial",dms_fy8,dms_cy8) -> 2012-13 | K118: =IF(dms_RPT="financial",dms_fy9,dms_cy9) -> 2013-14 | L118: =IF(dms_RPT="financial",dms_fy10,dms_cy10) -> 2014-15 | M118: =IF(dms_RPT="financial",dms_fy11,dms_cy11) -> 2015-16 | N118: =IF(dms_RPT="financial",dms_fy12,dms_cy12) -> 2016-17 | O118: =IF(dms_RPT="financial",dms_fy13,dms_cy13) -> 2017-18 | Q118: =IF(dms_RPT="financial",dms_fy1,dms_cy1) -> 2005-06 | R118: =IF(dms_RPT="financial",dms_fy2,dms_cy2) -> 2006-07 | S118: =IF(dms_RPT="financial",dms_fy3,dms_cy3) -> 2007-08 | T118: =IF(dms_RPT="financial",dms_fy4,dms_cy4) -> 2008-09 | U118: =IF(dms_RPT="financial",dms_fy5,dms_cy5) -> 2009-10 | V118: =IF(dms_RPT="financial",dms_fy6,dms_cy6) -> 2010-11 | W118: =IF(dms_RPT="financial",dms_fy7,dms_cy7) -> 2011-12 | X118: =IF(dms_RPT="financial",dms_fy8,dms_cy8) -> 2012-13 | Y118: =IF(dms_RPT="financial",dms_fy9,dms_cy9) -> 2013-14 | Z118: =IF(dms_RPT="financial",dms_fy10,dms_cy10) -> 2014-15 | AA118: =IF(dms_RPT="financial",dms_fy11,dms_cy11) -> 2015-16 | AB118: =IF(dms_RPT="financial",dms_fy12,dms_cy12) -> 2016-17 | AC118: =IF(dms_RPT="financial",dms_fy13,dms_cy13) -> 2017-18 | AE118: =IF(dms_RPT="financial",dms_fy1,dms_cy1) -> 2005-06 | AF118: =IF(dms_RPT="financial",dms_fy2,dms_cy2) -> 2006-07 | AG118: =IF(dms_RPT="financial",dms_fy3,dms_cy3) -> 2007-08 | AH118: =IF(dms_RPT="financial",dms_fy4,dms_cy4) -> 2008-09 | AI118: =IF(dms_RPT="financial",dms_fy5,dms_cy5) -> 2009-10 | AJ118: =IF(dms_RPT="financial",dms_fy6,dms_cy6) -> 2010-11 | AK118: =IF(dms_RPT="financial",dms_fy7,dms_cy7) -> 2011-12 | AL118: =IF(dms_RPT="financial",dms_fy8,dms_cy8) -> 2012-13 | AM118: =IF(dms_RPT="financial",dms_fy9,dms_cy9) -> 2013-14 | AN118: =IF(dms_RPT="financial",dms_fy10,dms_cy10) -> 2014-15 | AO118: =IF(dms_RPT="financial",dms_fy11,dms_cy11) -> 2015-16 | AP118: =IF(dms_RPT="financial",dms_fy12,dms_cy12) -> 2016-17 | AQ118: =IF(dms_RPT="financial",dms_fy13,dms_cy13) -> 2017-18
B119: ESTIMATED SERVICE LIFE OF NEW ASSETS
A120: DRAB1401 | B120: Overhead network assets less than 33kV (wires and poles) | C120: 53.87091718 | D120: 53.81499876 | E120: 53.71582626 | F120: 53.69809726 | G120: 55 | H120: 55 | I120: 55 | J120: 55 | K120: 55 | L120: 55 | M120: 55 | N120: 55 | O120: 55 | Q120: 53.87272938 | R120: 53.80877986 | S120: 53.70752005 | T120: 53.68579647 | U120: 55 | V120: 55 | W120: 55 | X120: 55 | Y120: 55 | Z120: 55 | AA120: 55 | AB120: 55 | AC120: 55 | AE120: 0 | AF120: 0 | AG120: 0 | AH120: 0 | AI120: 0 | AJ120: 0 | AK120: 0 | AL120: 0 | AM120: 0 | AN120: 0 | AO120: 0 | AP120: 0 | AQ120: 0
A121: DRAB1402 | B121: Underground network assets less than 33kV (cables) | C121: 53.87091718 | D121: 53.81499876 | E121: 53.71582626 | F121: 53.69809726 | G121: 55 | H121: 55 | I121: 55 | J121: 55 | K121: 55 | L121: 55 | M121: 55 | N121: 55 | O121: 55 | Q121: 53.87272938 | R121: 53.80877986 | S121: 53.70752005 | T121: 53.68579647 | U121: 55 | V121: 55 | W121: 55 | X121: 55 | Y121: 55 | Z121: 55 | AA121: 55 | AB121: 55 | AC121: 55 | AE121: 0 | AF121: 0 | AG121: 0 | AH121: 0 | AI121: 0 | AJ121: 0 | AK121: 0 | AL121: 0 | AM121: 0 | AN121: 0 | AO121: 0 | AP121: 0 | AQ121: 0
A122: DRAB1403 | B122: Distribution substations including transformers | C122: 45 | D122: 45 | E122: 45 | F122: 45 | G122: 45 | H122: 45 | I122: 45 | J122: 45 | K122: 45 | L122: 45 | M122: 45 | N122: 45 | O122: 45 | Q122: 45 | R122: 45 | S122: 45 | T122: 45 | U122: 45 | V122: 45 | W122: 45 | X122: 45 | Y122: 45 | Z122: 45 | AA122: 45 | AB122: 45 | AC122: 45 | AE122: 0 | AF122: 0 | AG122: 0 | AH122: 0 | AI122: 0 | AJ122: 0 | AK122: 0 | AL122: 0 | AM122: 0 | AN122: 0 | AO122: 0 | AP122: 0 | AQ122: 0
A123: DRAB1404 | B123: Overhead network assets 33kV and above (wires and towers / poles etc) | C123: 55 | D123: 55 | E123: 55 | F123: 55 | G123: 55 | H123: 55 | I123: 55 | J123: 55 | K123: 55 | L123: 55 | M123: 55 | N123: 55 | O123: 55 | Q123: 55 | R123: 55 | S123: 55 | T123: 55 | U123: 55 | V123: 55 | W123: 55 | X123: 55 | Y123: 55 | Z123: 55 | AA123: 55 | AB123: 55 | AC123: 55 | AE123: 0 | AF123: 0 | AG123: 0 | AH123: 0 | AI123: 0 | AJ123: 0 | AK123: 0 | AL123: 0 | AM123: 0 | AN123: 0 | AO123: 0 | AP123: 0 | AQ123: 0
A124: DRAB1405 | B124: Underground network assets 33kV and above(cables, ducts etc) | C124: 55 | D124: 55 | E124: 55 | F124: 55 | G124: 55 | H124: 55 | I124: 55 | J124: 55 | K124: 55 | L124: 55 | M124: 55 | N124: 55 | O124: 55 | Q124: 55 | R124: 55 | S124: 55 | T124: 55 | U124: 55 | V124: 55 | W124: 55 | X124: 55 | Y124: 55 | Z124: 55 | AA124: 55 | AB124: 55 | AC124: 55 | AE124: 0 | AF124: 0 | AG124: 0 | AH124: 0 | AI124: 0 | AJ124: 0 | AK124: 0 | AL124: 0 | AM124: 0 | AN124: 0 | AO124: 0 | AP124: 0 | AQ124: 0
A125: DRAB1406 | B125: Zone substations and transformers | C125: 45 | D125: 45 | E125: 45 | F125: 45 | G125: 45 | H125: 45 | I125: 45 | J125: 45 | K125: 45 | L125: 45 | M125: 45 | N125: 45 | O125: 45 | Q125: 45 | R125: 45 | S125: 45 | T125: 45 | U125: 45 | V125: 45 | W125: 45 | X125: 45 | Y125: 45 | Z125: 45 | AA125: 45 | AB125: 45 | AC125: 45 | AE125: 0 | AF125: 0 | AG125: 0 | AH125: 0 | AI125: 0 | AJ125: 0 | AK125: 0 | AL125: 0 | AM125: 0 | AN125: 0 | AO125: 0 | AP125: 0 | AQ125: 0
A126: DRAB1407 | B126: Meters | C126: 0 | D126: 0 | E126: 0 | F126: 0 | G126: 0 | H126: 0 | I126: 0 | J126: 0 | K126: 0 | L126: 0 | M126: 0 | N126: 0 | O126: 0 | Q126: 30 | R126: 30 | S126: 30 | T126: 30 | U126: 0 | V126: 0 | W126: 0 | X126: 0 | Y126: 0 | Z126: 0 | AA126: 0 | AB126: 0 | AC126: 0 | AE126: 0 | AF126: 0 | AG126: 0 | AH126: 0 | AI126: 15 | AJ126: 15 | AK126: 15 | AL126: 15 | AM126: 15 | AN126: 15 | AO126: 15 | AP126: 15 | AQ126: 15
A127: DRAB1408 | B127: “Other” assets with long lives | C127: 16.40168531 | D127: 16.50589229 | E127: 16.72450582 | F127: 15.20405768 | G127: 19.22932329 | H127: 19.63084565 | I127: 19.57525201 | J127: 18.90227401 | K127: 18.61594937 | L127: 18.0552858 | M127: 17.89109511 | N127: 17.75486527 | O127: 17.11859324 | Q127: 16.40168531 | R127: 16.50589229 | S127: 16.72450582 | T127: 15.20405768 | U127: 19.22932329 | V127: 19.63084565 | W127: 19.57525201 | X127: 18.90227401 | Y127: 18.61594937 | Z127: 18.0552858 | AA127: 17.89109511 | AB127: 17.75486527 | AC127: 17.11859324 | AE127: 28 | AF127: 28 | AG127: 28 | AH127: 28 | AI127: 28 | AJ127: 27.93587156 | AK127: 27.9381298 | AL127: 27.94041241 | AM127: 27.94183771 | AN127: 27.94446275 | AO127: 27.94606851 | AP127: 27.95291459 | AQ127: 27.96131841
A128: DRAB1409 | B128: “Other” assets with short lives | C128: 5.150595547 | D128: 5.334836002 | E128: 5.767441026 | F128: 5.844497288 | G128: 5 | H128: 5 | I128: 5 | J128: 5 | K128: 5 | L128: 5 | M128: 5 | N128: 5 | O128: 5 | Q128: 5.150595547 | R128: 5.334836002 | S128: 5.767441026 | T128: 5.844497288 | U128: 5 | V128: 5 | W128: 5 | X128: 5 | Y128: 5 | Z128: 5 | AA128: 5 | AB128: 5 | AC128: 5 | AE128: 0 | AF128: 0 | AG128: 0 | AH128: 0 | AI128: 0 | AJ128: 0 | AK128: 0 | AL128: 0 | AM128: 0 | AN128: 0 | AO128: 0 | AP128: 3 | AQ128: 3
B130: ESTIMATED RESIDUAL SERVICE LIFE
A131: DRAB1501 | B131: Overhead network assets less than 33kV (wires and poles) | C131: 20.30456339 | D131: 19.57662208 | E131: 18.92281031 | F131: 18.29011925 | G131: 16.83891845 | H131: 16.11039344 | I131: 16.13042348 | J131: 15.64471303 | K131: 15.01947723 | L131: 16.34539541 | M131: 11.86965576 | N131: 11.43049592 | O131: 10.87623408 | Q131: 20.44103379 | R131: 19.74040878 | S131: 19.12391131 | T131: 18.54417638 | U131: 17.18528226 | V131: 16.5254527 | W131: 16.56315478 | X131: 16.1153121 | Y131: 15.53734112 | Z131: 15.19437926 | AA131: 12.02433767 | AB131: 11.55850696 | AC131: 10.99083547 | AE131: 0 | AF131: 0 | AG131: 0 | AH131: 0 | AI131: 0 | AJ131: 0 | AK131: 0 | AL131: 0 | AM131: 0 | AN131: 0 | AO131: 0 | AP131: 0 | AQ131: 0
A132: DRAB1502 | B132: Underground network assets less than 33kV (cables) | C132: 16.99424575 | D132: 16.24121839 | E132: 15.59049711 | F132: 14.73469861 | G132: 13.71685319 | H132: 13.02127123 | I132: 13.00343629 | J132: 12.88434027 | K132: 12.72041559 | L132: 14.51063081 | M132: 12.83572995 | N132: 12.89917611 | O132: 13.45132702 | Q132: 17.166727 | R132: 16.44120125 | S132: 15.83432278 | T132: 15.0459172 | U132: 14.16230008 | V132: 13.54920607 | W132: 13.55350848 | X132: 13.4577697 | Y132: 13.31862508 | Z132: 13.60500755 | AA132: 13.01232836 | AB132: 13.05537253 | AC132: 13.61213617 | AE132: 0 | AF132: 0 | AG132: 0 | AH132: 0 | AI132: 0 | AJ132: 0 | AK132: 0 | AL132: 0 | AM132: 0 | AN132: 0 | AO132: 0 | AP132: 0 | AQ132: 0
A133: DRAB1503 | B133: Distribution substations including transformers | C133: 19.83154286 | D133: 19.49373188 | E133: 19.26332648 | F133: 19.1479007 | G133: 17.9664536 | H133: 17.9792437 | I133: 18.97152881 | J133: 18.98054992 | K133: 19.01595187 | L133: 17.70915634 | M133: 20.78893851 | N133: 19.69071098 | O133: 19.26990917 | Q133: 19.83154286 | R133: 19.49373188 | S133: 19.26332648 | T133: 19.1479007 | U133: 17.9664536 | V133: 17.9792437 | W133: 18.97152881 | X133: 18.98054992 | Y133: 19.01595187 | Z133: 17.70915634 | AA133: 20.78893851 | AB133: 19.69071098 | AC133: 19.26990917 | AE133: 0 | AF133: 0 | AG133: 0 | AH133: 0 | AI133: 0 | AJ133: 0 | AK133: 0 | AL133: 0 | AM133: 0 | AN133: 0 | AO133: 0 | AP133: 0 | AQ133: 0
A134: DRAB1504 | B134: Overhead network assets 33kV and above (wires and towers / poles etc) | C134: 22.84157094 | D134: 22.47167468 | E134: 22.23522121 | F134: 22.25468552 | G134: 21.47740411 | H134: 21.27851293 | I134: 21.50368441 | J134: 21.20956168 | K134: 20.81497067 | L134: 18.77286826 | M134: 48.82689408 | N134: 44.86587087 | O134: 43.69883174 | Q134: 22.84157094 | R134: 22.47167468 | S134: 22.23522121 | T134: 22.25468552 | U134: 21.47740411 | V134: 21.27851293 | W134: 21.50368441 | X134: 21.20956168 | Y134: 20.81497067 | Z134: 18.77286826 | AA134: 48.82689408 | AB134: 44.86587087 | AC134: 43.69883174 | AE134: 0 | AF134: 0 | AG134: 0 | AH134: 0 | AI134: 0 | AJ134: 0 | AK134: 0 | AL134: 0 | AM134: 0 | AN134: 0 | AO134: 0 | AP134: 0 | AQ134: 0
A135: DRAB1505 | B135: Underground network assets 33kV and above (cables, ducts etc) | C135: 22.84157094 | D135: 22.47167468 | E135: 22.23522121 | F135: 22.25468552 | G135: 21.47740411 | H135: 21.27851293 | I135: 21.50368441 | J135: 21.20956168 | K135: 20.81497067 | L135: 18.77286826 | M135: 48.82689408 | N135: 44.86587087 | O135: 43.69883174 | Q135: 22.84157094 | R135: 22.47167468 | S135: 22.23522121 | T135: 22.25468552 | U135: 21.47740411 | V135: 21.27851293 | W135: 21.50368441 | X135: 21.20956168 | Y135: 20.81497067 | Z135: 18.77286826 | AA135: 48.82689408 | AB135: 44.86587087 | AC135: 43.69883174 | AE135: 0 | AF135: 0 | AG135: 0 | AH135: 0 | AI135: 0 | AJ135: 0 | AK135: 0 | AL135: 0 | AM135: 0 | AN135: 0 | AO135: 0 | AP135: 0 | AQ135: 0
A136: DRAB1506 | B136: Zone substations and transformers | C136: 19.83154286 | D136: 19.49373188 | E136: 19.26332648 | F136: 19.1479007 | G136: 17.9664536 | H136: 17.9792437 | I136: 18.97152881 | J136: 18.98054992 | K136: 19.01246005 | L136: 17.67327299 | M136: 26.76350146 | N136: 25.73025639 | O136: 25.7316215 | Q136: 19.83154286 | R136: 19.49373188 | S136: 19.26332648 | T136: 19.1479007 | U136: 17.9664536 | V136: 17.9792437 | W136: 18.97152881 | X136: 18.98054992 | Y136: 19.01246005 | Z136: 17.67327299 | AA136: 26.76350146 | AB136: 25.73025639 | AC136: 25.7316215 | AE136: 0 | AF136: 0 | AG136: 0 | AH136: 0 | AI136: 0 | AJ136: 0 | AK136: 0 | AL136: 0 | AM136: 0 | AN136: 0 | AO136: 0 | AP136: 0 | AQ136: 0
A137: DRAB1507 | B137: Meters | C137: 0 | D137: 0 | E137: 0 | F137: 0 | G137: 0 | H137: 0 | I137: 0 | J137: 0 | K137: 0 | L137: 0 | M137: 0 | N137: 0 | O137: 0 | Q137: 49.39873476 | R137: 39.87284608 | S137: 35.59964829 | T137: 26.09660127 | U137: 0 | V137: 0 | W137: 0 | X137: 0 | Y137: 0 | Z137: 0 | AA137: 0 | AB137: 0 | AC137: 0 | AE137: 0 | AF137: 0 | AG137: 0 | AH137: 0 | AI137: 13.99263996 | AJ137: 13.07087839 | AK137: 12.18574554 | AL137: 11.33153966 | AM137: 10.4902949 | AN137: 10.39235903 | AO137: 8.280852473 | AP137: 7.007468553 | AQ137: 6.177822297
A138: DRAB1508 | B138: “Other” assets with long lives | C138: 7.564156589 | D138: 6.747893683 | E138: 5.808721041 | F138: 5.767608688 | G138: 7.230312689 | H138: 7.254375018 | I138: 7.330000779 | J138: 7.079873663 | K138: 6.840385115 | L138: 8.921390917 | M138: 7.313570926 | N138: 8.649614215 | O138: 10.78875448 | Q138: 7.564156589 | R138: 6.747893683 | S138: 5.808721041 | T138: 5.767608688 | U138: 7.230312689 | V138: 7.254375018 | W138: 7.330000779 | X138: 7.079873663 | Y138: 6.840385115 | Z138: 8.921390917 | AA138: 7.313570926 | AB138: 8.649614215 | AC138: 10.78875448 | AE138: 12.10048286 | AF138: 11.24384911 | AG138: 10.95497205 | AH138: 10.09244007 | AI138: 9.731739699 | AJ138: 9.186584372 | AK138: 8.663421604 | AL138: 8.149466403 | AM138: 7.556840724 | AN138: 7.068170231 | AO138: 17.94213602 | AP138: 17.51524798 | AQ138: 17.41798154
A139: DRAB1509 | B139: “Other” assets with short lives | C139: 4.002883902 | D139: 3.237122678 | E139: 2.596547282 | F139: 2.263622939 | G139: 2.727774896 | H139: 2.200363216 | I139: 2.228670975 | J139: 1.892833628 | K139: 1.70991222 | L139: 4.607443938 | M139: 3.150979947 | N139: 2.849512267 | O139: 2.764688097 | Q139: 4.002883902 | R139: 3.237122678 | S139: 2.596547282 | T139: 2.263622939 | U139: 2.727774896 | V139: 2.200363216 | W139: 2.228670975 | X139: 1.892833628 | Y139: 1.70991222 | Z139: 4.607443938 | AA139: 3.150979947 | AB139: 2.849512267 | AC139: 2.764688097 | AE139: 0 | AF139: 0 | AG139: 0 | AH139: 0 | AI139: 0 | AJ139: 0 | AK139: 0 | AL139: 0 | AM139: 0 | AN139: 0 | AO139: 0 | AP139: 0 | AQ139: 0

Sheet 3.4 Operational data
B1: REGULATORY REPORTING STATEMENT
B2: =dms_TradingName -> SA Power Networks
B3: =CONCATENATE("ECONOMIC BENCHMARKING ",IF(SUM(dms_SingleYear_Model)>0,CRY,CONCATENATE(dms_CRCP_FirstYear_Result," to ",dms_CRCP_FinalYear_Result))) -> ECONOMIC BENCHMARKING 2005-06
B4: 3.4 OPERATIONAL DATA
B6: There are THREE tables on this worksheet. Each table has been grouped for ease of navigation. See the Instructions sheet on how to group or ungroup tables.
B8: 3.4.1 - ENERGY DELIVERY
D9: Standard control services
D10: VOLUMES (0's) (GWh)
C11: Units | D11: =IF(dms_RPT="financial",dms_fy1,dms_cy1) -> 2005-06 | E11: =IF(dms_RPT="financial",dms_fy2,dms_cy2) -> 2006-07 | F11: =IF(dms_RPT="financial",dms_fy3,dms_cy3) -> 2007-08 | G11: =IF(dms_RPT="financial",dms_fy4,dms_cy4) -> 2008-09 | H11: =IF(dms_RPT="financial",dms_fy5,dms_cy5) -> 2009-10 | I11: =IF(dms_RPT="financial",dms_fy6,dms_cy6) -> 2010-11 | J11: =IF(dms_RPT="financial",dms_fy7,dms_cy7) -> 2011-12 | K11: =IF(dms_RPT="financial",dms_fy8,dms_cy8) -> 2012-13 | L11: =IF(dms_RPT="financial",dms_fy9,dms_cy9) -> 2013-14 | M11: =IF(dms_RPT="financial",dms_fy10,dms_cy10) -> 2014-15 | N11: =IF(dms_RPT="financial",dms_fy11,dms_cy11) -> 2015-16 | O11: =IF(dms_RPT="financial",dms_fy12,dms_cy12) -> 2016-17 | P11: =IF(dms_RPT="financial",dms_fy13,dms_cy13) -> 2017-18
A12: DOPED01 | B12: Total energy delivered | C12: GWh
B14: 3.4.1.1 - Energy grouping - delivery by chargeable quantity
A15: DOPED0201 | B15: Energy Delivery where time of use is not a determinant | C15: GWh
A16: DOPED0202 | B16: Energy Delivery at On-peak times | C16: GWh
A17: DOPED0203 | B17: Energy Delivery at Shoulder times | C17: GWh
A18: DOPED0204 | B18: Energy Delivery at Off-peak times | C18: GWh
A19: DOPED0205 | B19: Controlled load energy deliveries | C19: GWh
A20: DOPED0206 | B20: Energy Delivery to unmetered supplies | C20: GWh
B22: 3.4.1.2 - Energy - received from TNSP and other DNSPs by time of receipt
A23: DOPED0301 | B23: Energy into DNSP network at On-peak times | C23: GWh
A24: DOPED0302 | B24: Energy into DNSP network at Shoulder times | C24: GWh
A25: DOPED0303 | B25: Energy into DNSP network at Off-peak times | C25: GWh
A26: DOPED0304 | B26: Energy received from TNSP and other DNSPs not included in the above categories | C26: GWh
B28: 3.4.1.3 - Energy - received into DNSP system from embedded generation by time of receipt
A29: DOPED0401 | B29: Energy into DNSP network at On-peak times from non-residential embedded generation | C29: GWh
A30: DOPED0402 | B30: Energy into DNSP network at Shoulder times from non-residential embedded generation | C30: GWh
A31: DOPED0403 | B31: Energy into DNSP network at Off-peak times from non-residential embedded generation | C31: GWh
A32: DOPED0404 | B32: Energy received from embedded generation not included in above categories from non-residential embedded generation | C32: GWh
A33: DOPED0405 | B33: Energy into DNSP network at On-peak times from residential embedded generation | C33: GWh
A34: DOPED0406 | B34: Energy into DNSP network at Shoulder times from residential embedded generation | C34: GWh
A35: DOPED0407 | B35: Energy into DNSP network at Off-peak times from residential embedded generation | C35: GWh
A36: DOPED0408 | B36: Energy received from embedded generation not included in above categories from residential embedded generation | C36: GWh
B38: 3.4.1.4 - Energy grouping - customer type or class
A39: DOPED0501 | B39: Residential customers energy deliveries | C39: GWh
A40: DOPED0502 | B40: Non residential customers not on demand tariffs energy deliveries | C40: GWh
A41: DOPED0503 | B41: Non-residential low voltage demand tariff customers energy deliveries | C41: GWh
A42: DOPED0504 | B42: Non-residential high voltage demand tariff customers energy deliveries | C42: GWh
A43: DOPED0505 | B43: Other Customer Class Energy Deliveries | C43: GWh
B46: 3.4.2 - CUSTOMER NUMBERS
D47: Standard control services
D48: VOLUMES (0's)
D49: =IF(dms_RPT="financial",dms_fy1,dms_cy1) -> 2005-06 | E49: =IF(dms_RPT="financial",dms_fy2,dms_cy2) -> 2006-07 | F49: =IF(dms_RPT="financial",dms_fy3,dms_cy3) -> 2007-08 | G49: =IF(dms_RPT="financial",dms_fy4,dms_cy4) -> 2008-09 | H49: =IF(dms_RPT="financial",dms_fy5,dms_cy5) -> 2009-10 | I49: =IF(dms_RPT="financial",dms_fy6,dms_cy6) -> 2010-11 | J49: =IF(dms_RPT="financial",dms_fy7,dms_cy7) -> 2011-12 | K49: =IF(dms_RPT="financial",dms_fy8,dms_cy8) -> 2012-13 | L49: =IF(dms_RPT="financial",dms_fy9,dms_cy9) -> 2013-14 | M49: =IF(dms_RPT="financial",dms_fy10,dms_cy10) -> 2014-15 | N49: =IF(dms_RPT="financial",dms_fy11,dms_cy11) -> 2015-16 | O49: =IF(dms_RPT="financial",dms_fy12,dms_cy12) -> 2016-17 | P49: =IF(dms_RPT="financial",dms_fy13,dms_cy13) -> 2017-18
B50: 3.4.2.1 - Distribution customer numbers by customer type or class
A51: DOPCN0101 | B51: Residential customer numbers
A52: DOPCN0102 | B52: Non residential customers not on demand tariff customer numbers
A53: DOPCN0103 | B53: Low voltage demand tariff customer numbers
A54: DOPCN0104 | B54: High voltage demand tariff customer numbers
A55: DOPCN0105 | B55: Unmetered Customer Numbers
A56: DOPCN0106 | B56: Other Customer Numbers
A57: DOPCN01 | B57: Total customer numbers | D57: =SUM(D51:D56) -> 0 | E57: 0 | F57: 0 | G57: 0 | H57: 0 | I57: 0 | J57: 0 | K57: 0 | L57: 0 | P57: 0
B59: 3.4.2.2 - Distribution customer numbers by location on the network
A60: DOPCN0201 | B60: Customers on CBD network
A61: DOPCN0202 | B61: Customers on Urban network
A62: DOPCN0203 | B62: Customers on Short rural network
A63: DOPCN0204 | B63: Customers on Long rural network
A64: DOPCN02 | B64: Total customer numbers | D64: =SUM(D60:D63) -> 0 | E64: 0 | F64: 0 | G64: 0 | H64: 0 | I64: 0 | J64: 0 | K64: 0 | L64: 0 | P64: 0
B68: 3.4.3 - SYSTEM DEMAND
D69: Standard control services
D70: VOLUMES (0's)
C71: Units | D71: =IF(dms_RPT="financial",dms_fy1,dms_cy1) -> 2005-06 | E71: =IF(dms_RPT="financial",dms_fy2,dms_cy2) -> 2006-07 | F71: =IF(dms_RPT="financial",dms_fy3,dms_cy3) -> 2007-08 | G71: =IF(dms_RPT="financial",dms_fy4,dms_cy4) -> 2008-09 | H71: =IF(dms_RPT="financial",dms_fy5,dms_cy5) -> 2009-10 | I71: =IF(dms_RPT="financial",dms_fy6,dms_cy6) -> 2010-11 | J71: =IF(dms_RPT="financial",dms_fy7,dms_cy7) -> 2011-12 | K71: =IF(dms_RPT="financial",dms_fy8,dms_cy8) -> 2012-13 | L71: =IF(dms_RPT="financial",dms_fy9,dms_cy9) -> 2013-14 | M71: =IF(dms_RPT="financial",dms_fy10,dms_cy10) -> 2014-15 | N71: =IF(dms_RPT="financial",dms_fy11,dms_cy11) -> 2015-16 | O71: =IF(dms_RPT="financial",dms_fy12,dms_cy12) -> 2016-17 | P71: =IF(dms_RPT="financial",dms_fy13,dms_cy13) -> 2017-18
B72: 3.4.3.1 - Annual system maximum demand characteristics at the zone substation level – MW measure
A73: DOPSD0101 | B73: Non-coincident Summated Raw System Annual Maximum Demand | C73: MW
A74: DOPSD0102 | B74: Non–coincident Summated Weather Adjusted System Annual Maximum Demand 10% POE | C74: MW
A75: DOPSD0103 | B75: Non–coincident Summated Weather Adjusted System Annual Maximum Demand 50% POE | C75: MW
A76: DOPSD0104 | B76: Coincident Raw System Annual Maximum Demand | C76: MW
A77: DOPSD0105 | B77: Coincident Weather Adjusted System Annual Maximum Demand 10% POE | C77: MW
A78: DOPSD0106 | B78: Coincident Weather Adjusted System Annual Maximum Demand 50% POE | C78: MW
B80: 3.4.3.2 - Annual system maximum demand characteristics at the transmission connection point – MW measure
A81: DOPSD0107 | B81: Non-coincident Summated Raw System Annual Maximum Demand | C81: MW
A82: DOPSD0108 | B82: Non–coincident Summated Weather Adjusted System Annual Maximum Demand 10% POE | C82: MW
A83: DOPSD0109 | B83: Non–coincident Summated Weather Adjusted System Annual Maximum Demand 50% POE | C83: MW
A84: DOPSD0110 | B84: Coincident Raw System Annual Maximum Demand | C84: MW
A85: DOPSD0111 | B85: Coincident Weather Adjusted System Annual Maximum Demand 10% POE | C85: MW
A86: DOPSD0112 | B86: Coincident Weather Adjusted System Annual Maximum Demand 50% POE | C86: MW
B88: 3.4.3.3 - Annual system maximum demand characteristics at the zone substation level – MVA measure
A89: DOPSD0201 | B89: Non–coincident Summated Raw System Annual Maximum Demand | C89: MVA
A90: DOPSD0202 | B90: Non–coincident Summated Weather Adjusted System Annual Maximum Demand 10% POE | C90: MVA
A91: DOPSD0203 | B91: Non–coincident Summated Weather Adjusted System Annual Maximum Demand 50% POE | C91: MVA
A92: DOPSD0204 | B92: Coincident Raw System Annual Maximum Demand | C92: MVA
A93: DOPSD0205 | B93: Coincident Weather Adjusted System Annual Maximum Demand 10% POE | C93: MVA
A94: DOPSD0206 | B94: Coincident Weather Adjusted System Annual Maximum Demand 50% POE | C94: MVA
B96: 3.4.3.4 - Annual system maximum demand characteristics at the transmission connection point – MVA measure
A97: DOPSD0207 | B97: Non–coincident Summated Raw System Annual Maximum Demand | C97: MVA
A98: DOPSD0208 | B98: Non–coincident Summated Weather Adjusted System Annual Maximum Demand 10% POE | C98: MVA
A99: DOPSD0209 | B99: Non–coincident Summated Weather Adjusted System Annual Maximum Demand 50% POE | C99: MVA
A100: DOPSD0210 | B100: Coincident Raw System Annual Maximum Demand | C100: MVA
A101: DOPSD0211 | B101: Coincident Weather Adjusted System Annual Maximum Demand 10% POE | C101: MVA
A102: DOPSD0212 | B102: Coincident Weather Adjusted System Annual Maximum Demand 50% POE | C102: MVA
B104: 3.4.3.5 - Power factor conversion between MVA and MW
A105: DOPSD0301 | B105: Average overall network power factor conversion between MVA and MW | C105: Factor
A106: DOPSD0302 | B106: Average power factor conversion for low voltage distribution lines | C106: Factor
A107: DOPSD0303 | B107: Average power factor conversion for 3.3 kV lines | C107: Factor
A108: DOPSD0304 | B108: Average power factor conversion for 6.6 kV lines | C108: Factor
A109: DOPSD0305 | B109: Average power factor conversion for 7.6 kV lines | C109: Factor
A110: DOPSD0306 | B110: Average power factor conversion for 11 kV lines | C110: Factor
A111: DOPSD0307 | B111: Average power factor conversion for SWER lines | C111: Factor
A112: DOPSD0308 | B112: Average power factor conversion for 22 kV lines | C112: Factor
A113: DOPSD0309 | B113: Average power factor conversion for 33 kV lines | C113: Factor
A114: DOPSD0310 | B114: Average power factor conversion for 44 kV lines | C114: Factor
A115: DOPSD0311 | B115: Average power factor conversion for 66 kV lines | C115: Factor
A116: DOPSD0312 | B116: Average power factor conversion for 110 kV lines | C116: Factor
A117: DOPSD0313 | B117: Average power factor conversion for 132 kV lines | C117: Factor
A118: DOPSD0314 | B118: Average power factor conversion for 220 kV lines | C118: Factor
B120: 3.4.3.6 - Demand supplied (for customers charged on this basis) – MW measure
A121: DOPSD0401 | B121: Summated Chargeable Contracted Maximum Demand | C121: MW
A122: DOPSD0402 | B122: Summated Chargeable Measured Maximum Demand | C122: MW
B124: 3.4.3.7 - Demand supplied (for customers charged on this basis) – MVA measure
A125: DOPSD0403 | B125: Summated Chargeable Contracted Maximum Demand | C125: MVA
A126: DOPSD0404 | B126: Summated Chargeable Measured Maximum Demand | C126: MVA

Sheet 3.5 Physical assets
B1: REGULATORY REPORTING STATEMENT
B2: =dms_TradingName -> SA Power Networks
B3: =CONCATENATE("ECONOMIC BENCHMARKING ",IF(SUM(dms_SingleYear_Model)>0,CRY,CONCATENATE(dms_CRCP_FirstYear_Result," to ",dms_CRCP_FinalYear_Result))) -> ECONOMIC BENCHMARKING 2005-06
B4: 3.5 PHYSICAL ASSETS
B6: There are THREE tables on this worksheet. Each table has been grouped (and sub-grouped) for ease of navigation. See the Instructions sheet on how to group or ungroup tables.
B8: 3.5.1 - NETWORK CAPACITIES
D9: VOLUMES (0's)
D10: =IF(dms_RPT="financial",dms_fy1,dms_cy1) -> 2005-06 | E10: =IF(dms_RPT="financial",dms_fy2,dms_cy2) -> 2006-07 | F10: =IF(dms_RPT="financial",dms_fy3,dms_cy3) -> 2007-08 | G10: =IF(dms_RPT="financial",dms_fy4,dms_cy4) -> 2008-09 | H10: =IF(dms_RPT="financial",dms_fy5,dms_cy5) -> 2009-10 | I10: =IF(dms_RPT="financial",dms_fy6,dms_cy6) -> 2010-11 | J10: =IF(dms_RPT="financial",dms_fy7,dms_cy7) -> 2011-12 | K10: =IF(dms_RPT="financial",dms_fy8,dms_cy8) -> 2012-13 | L10: =IF(dms_RPT="financial",dms_fy9,dms_cy9) -> 2013-14 | M10: =IF(dms_RPT="financial",dms_fy10,dms_cy10) -> 2014-15 | N10: =IF(dms_RPT="financial",dms_fy11,dms_cy11) -> 2015-16 | O10: =IF(dms_RPT="financial",dms_fy12,dms_cy12) -> 2016-17 | P10: =IF(dms_RPT="financial",dms_fy13,dms_cy13) -> 2017-18
B11: Circuit length
B12: 3.5.1.1 - Overhead network length of circuit at each voltage
A13: DPA0101 | B13: Overhead low voltage distribution | C13: km
A14: DPA0102 | B14: Overhead 2.2 kV | C14: km
A15: DPA0103 | B15: Overhead 6.6kv | C15: km
A16: DPA0104 | B16: Overhead 7.6 kV | C16: km
A17: DPA0105 | B17: Overhead 11 kV | C17: km
A18: DPA0106 | B18: Overhead SWER | C18: km
A19: DPA0107 | B19: Overhead 22 kV | C19: km
A20: DPA0108 | B20: Overhead 33 kV | C20: km
A21: DPA0109 | B21: Overhead 44 kV | C21: km
A22: DPA0110 | B22: Overhead 66 kV | C22: km
A23: DPA0111 | B23: Overhead 110kV | C23: km
A24: DPA0112 | B24: Overhead 132 kV | C24: km
A25: DPA0113 | B25: Overhead 220kV | C25: km
A26: DPA0114 | B26: Other | C26: km
A27: DPA01 | B27: Total overhead circuit km | C27: km | D27: =SUM(D13:D26) -> 0 | E27: =SUM(E13:E26) -> 0 | F27: 0 | G27: 0 | H27: 0 | I27: 0 | J27: 0 | K27: 0 | L27: 0 | P27: 0
B28: 3.5.1.2 - Underground network circuit length at each voltage
A29: DPA0201 | B29: Underground low voltage distribution | C29: km
A30: DPA0202 | B30: Underground 5 kV | C30: km
A31: DPA0203 | B31: Underground 6.6 Kv | C31: km
A32: DPA0204 | B32: Underground 7.6 kV | C32: km
A33: DPA0205 | B33: Underground 11 kV | C33: km
A34: DPA0206 | B34: Underground SWER | C34: km
A35: DPA0207 | B35: Underground 22 kV | C35: km
A36: DPA0208 | B36: Underground 33 kV | C36: km
A37: DPA0209 | B37: Underground 66 kV | C37: km
A38: DPA0210 | B38: Underground 110 kV | C38: km
A39: DPA0211 | B39: Underground 132 kV | C39: km
A40: DPA0212 | B40: Other | C40: km
A41: DPA02 | B41: Total underground circuit km | C41: km | D41: =SUM(D29:D40) -> 0 | E41: =SUM(E29:E40) -> 0 | F41: 0 | G41: 0 | H41: 0 | I41: 0 | J41: 0 | K41: 0 | L41: 0 | P41: 0
B43: Circuit Capacity MVA
B44: 3.5.1.3 - Estimated overhead network weighted average MVA capacity by voltage class
A45: DPA0301 | B45: Overhead low voltage distribution | C45: MVA
A46: DPA0302 | B46: Overhead 6.6 kV | C46: MVA
A47: DPA0303 | B47: Overhead 7.6 kV | C47: MVA
A48: DPA0304 | B48: Overhead 11 kV | C48: MVA
A49: DPA0305 | B49: Overhead SWER | C49: MVA
A50: DPA0306 | B50: Overhead 22 kV | C50: MVA
A51: DPA0307 | B51: Overhead 33 kV | C51: MVA
A52: DPA0308 | B52: Overhead 44 kV | C52: MVA
A53: DPA0309 | B53: Overhead 66 kV | C53: MVA
A54: DPA0310 | B54: Overhead 110 kV | C54: MVA
A55: DPA0311 | B55: Overhead 132 kV | C55: MVA
A56: DPA0312 | B56: Overhead 220 kV | C56: MVA
A57: DPA0313 | B57: Other | C57: MVA
B58: 3.5.1.4 - Estimated underground network weighted average MVA capacity by voltage class
A59: DPA0401 | B59: Underground low voltage distribution | C59: MVA
A60: DPA0402 | B60: Underground 5 kV | C60: MVA
A61: DPA0403 | B61: Underground 6.6 kV | C61: MVA
A62: DPA0404 | B62: Underground 7.6 kV | C62: MVA
A63: DPA0405 | B63: Underground 11 kV | C63: MVA
A64: DPA0406 | B64: Underground SWER | C64: MVA
A65: DPA0407 | B65: Underground 12.7 kV | C65: MVA
A66: DPA0408 | B66: Underground 22 kV | C66: MVA
A67: DPA0409 | B67: Underground 33 kV | C67: MVA
A68: DPA0410 | B68: Underground 66 kV | C68: MVA
A69: DPA0411 | B69: Underground 110 kV | C69: MVA
A70: DPA0412 | B70: Underground 132 kV | C70: MVA
A71: DPA0413 | B71: Other | C71: MVA
B75: 3.5.2 - TRANSFORMER CAPACITIES
D76: VOLUMES (0's)
D77: =IF(dms_RPT="financial",dms_fy1,dms_cy1) -> 2005-06 | E77: =IF(dms_RPT="financial",dms_fy2,dms_cy2) -> 2006-07 | F77: =IF(dms_RPT="financial",dms_fy3,dms_cy3) -> 2007-08 | G77: =IF(dms_RPT="financial",dms_fy4,dms_cy4) -> 2008-09 | H77: =IF(dms_RPT="financial",dms_fy5,dms_cy5) -> 2009-10 | I77: =IF(dms_RPT="financial",dms_fy6,dms_cy6) -> 2010-11 | J77: =IF(dms_RPT="financial",dms_fy7,dms_cy7) -> 2011-12 | K77: =IF(dms_RPT="financial",dms_fy8,dms_cy8) -> 2012-13 | L77: =IF(dms_RPT="financial",dms_fy9,dms_cy9) -> 2013-14 | M77: =IF(dms_RPT="financial",dms_fy10,dms_cy10) -> 2014-15 | N77: =IF(dms_RPT="financial",dms_fy11,dms_cy11) -> 2015-16 | O77: =IF(dms_RPT="financial",dms_fy12,dms_cy12) -> 2016-17 | P77: =IF(dms_RPT="financial",dms_fy13,dms_cy13) -> 2017-18
B78: Distribution transformer total installed capacity
A79: DPA0501 | B79: Distribution transformer capacity owned by utility | C79: MVA
A80: DPA0502 | B80: Distribution transformer capacity owned by High Voltage Customers | C80: MVA
A81: DPA0503 | B81: Cold spare capacity included in DPA0501 | C81: MVA
B82: Zone substation transformer capacity
A83: DPA0601 | B83: Total installed capacity for first step transformation where there are two steps to reach distribution voltage | C83: MVA
A84: DPA0602 | B84: Total installed capacity for second step transformation where there are two steps to reach distribution voltage | C84: MVA
A85: DPA0603 | B85: Total zone substation transformer capacity where there is only a single step transformation to reach distribution voltage | C85: MVA
A86: DPA0604 | B86: Total zone substation transformer capacity | C86: MVA
A87: DPA0605 | B87: Cold spare capacity of zone substation transformers included in DPA0604 | C87: MVA
B88: Distribution - other transformer capacity
B89: Distribution other - transformer capacity owned by utility | C89: MVA
B93: 3.5.3 - PUBLIC LIGHTING
D94: VOLUMES (0's)
D95: =IF(dms_RPT="financial",dms_fy1,dms_cy1) -> 2005-06 | E95: =IF(dms_RPT="financial",dms_fy2,dms_cy2) -> 2006-07 | F95: =IF(dms_RPT="financial",dms_fy3,dms_cy3) -> 2007-08 | G95: =IF(dms_RPT="financial",dms_fy4,dms_cy4) -> 2008-09 | H95: =IF(dms_RPT="financial",dms_fy5,dms_cy5) -> 2009-10 | I95: =IF(dms_RPT="financial",dms_fy6,dms_cy6) -> 2010-11 | J95: =IF(dms_RPT="financial",dms_fy7,dms_cy7) -> 2011-12 | K95: =IF(dms_RPT="financial",dms_fy8,dms_cy8) -> 2012-13 | L95: =IF(dms_RPT="financial",dms_fy9,dms_cy9) -> 2013-14 | M95: =IF(dms_RPT="financial",dms_fy10,dms_cy10) -> 2014-15 | N95: =IF(dms_RPT="financial",dms_fy11,dms_cy11) -> 2015-16 | O95: =IF(dms_RPT="financial",dms_fy12,dms_cy12) -> 2016-17 | P95: =IF(dms_RPT="financial",dms_fy13,dms_cy13) -> 2017-18
A96: DPA0701 | B96: Public lighting luminaires | C96: Number
A97: DPA0702 | B97: Public lighting poles | C97: Number
A98: DPA0703 | B98: Public lighting columns | C98: Number

Sheet 3.6 Quality of service
B1: REGULATORY REPORTING STATEMENT
B2: =dms_TradingName -> SA Power Networks
B3: =CONCATENATE("ECONOMIC BENCHMARKING ",IF(SUM(dms_SingleYear_Model)>0,CRY,CONCATENATE(dms_CRCP_FirstYear_Result," to ",dms_CRCP_FinalYear_Result))) -> ECONOMIC BENCHMARKING 2005-06
B4: 3.6 QUALITY OF SERVICE DATA
B6: There are THREE tables on this worksheet. Each table has been grouped (and sub-grouped) for ease of navigation. See the Instructions sheet on how to group or ungroup tables.
B8: 3.6.1 - RELIABILITY
D9: (0's)
C10: Units | D10: =IF(dms_RPT="financial",dms_fy1,dms_cy1) -> 2005-06 | E10: =IF(dms_RPT="financial",dms_fy2,dms_cy2) -> 2006-07 | F10: =IF(dms_RPT="financial",dms_fy3,dms_cy3) -> 2007-08 | G10: =IF(dms_RPT="financial",dms_fy4,dms_cy4) -> 2008-09 | H10: =IF(dms_RPT="financial",dms_fy5,dms_cy5) -> 2009-10 | I10: =IF(dms_RPT="financial",dms_fy6,dms_cy6) -> 2010-11 | J10: =IF(dms_RPT="financial",dms_fy7,dms_cy7) -> 2011-12 | K10: =IF(dms_RPT="financial",dms_fy8,dms_cy8) -> 2012-13 | L10: =IF(dms_RPT="financial",dms_fy9,dms_cy9) -> 2013-14 | M10: =IF(dms_RPT="financial",dms_fy10,dms_cy10) -> 2014-15 | N10: =IF(dms_RPT="financial",dms_fy11,dms_cy11) -> 2015-16 | O10: =IF(dms_RPT="financial",dms_fy12,dms_cy12) -> 2016-17 | P10: =IF(dms_RPT="financial",dms_fy13,dms_cy13) -> 2017-18
B11: INCLUSIVE OF MEDs
A12: DQS0101 | B12: Whole of network unplanned SAIDI | C12: minutes/customer
A13: DQS0102 | B13: Whole of network unplanned SAIDI excluding excluded outages | C13: minutes/customer
A14: DQS0103 | B14: Whole of network unplanned SAIFI | C14: interruptions/customer
A15: DQS0104 | B15: Whole of network unplanned SAIFI excluding excluded outages | C15: interruptions/customer
B16: EXCLUSIVE OF MEDs
A17: DQS0105 | B17: Whole of network unplanned SAIDI | C17: minutes/customer
A18: DQS0106 | B18: Whole of network unplanned SAIDI excluding excluded outages | C18: minutes/customer
A19: DQS0107 | B19: Whole of network unplanned SAIFI | C19: interruptions/customer
A20: DQS0108 | B20: Whole of network unplanned SAIFI excluding excluded outages | C20: interruptions/customer
B23: 3.6.2 - ENERGY NOT SUPPLIED
D24: (0's)
C25: Unit | D25: =IF(dms_RPT="financial",dms_fy1,dms_cy1) -> 2005-06 | E25: =IF(dms_RPT="financial",dms_fy2,dms_cy2) -> 2006-07 | F25: =IF(dms_RPT="financial",dms_fy3,dms_cy3) -> 2007-08 | G25: =IF(dms_RPT="financial",dms_fy4,dms_cy4) -> 2008-09 | H25: =IF(dms_RPT="financial",dms_fy5,dms_cy5) -> 2009-10 | I25: =IF(dms_RPT="financial",dms_fy6,dms_cy6) -> 2010-11 | J25: =IF(dms_RPT="financial",dms_fy7,dms_cy7) -> 2011-12 | K25: =IF(dms_RPT="financial",dms_fy8,dms_cy8) -> 2012-13 | L25: =IF(dms_RPT="financial",dms_fy9,dms_cy9) -> 2013-14 | M25: =IF(dms_RPT="financial",dms_fy10,dms_cy10) -> 2014-15 | N25: =IF(dms_RPT="financial",dms_fy11,dms_cy11) -> 2015-16 | O25: =IF(dms_RPT="financial",dms_fy12,dms_cy12) -> 2016-17 | P25: =IF(dms_RPT="financial",dms_fy13,dms_cy13) -> 2017-18
A26: DQS0201 | B26: Energy Not Supplied (planned) | C26: GWh
A27: DQS0202 | B27: Energy Not Supplied (unplanned) | C27: GWh
A28: DQS02 | B28: Total | D28: =SUM(D26:D27) -> 0 | E28: =SUM(E26:E27) -> 0 | F28: 0 | G28: 0 | H28: 0 | I28: 0 | J28: 0 | K28: 0 | L28: 0 | P28: =SUM(P26:P27) -> 0
B30: 3.6.3 - SYSTEM LOSSES
D31: (0's)
C32: Unit | D32: =IF(dms_RPT="financial",dms_fy1,dms_cy1) -> 2005-06 | E32: =IF(dms_RPT="financial",dms_fy2,dms_cy2) -> 2006-07 | F32: =IF(dms_RPT="financial",dms_fy3,dms_cy3) -> 2007-08 | G32: =IF(dms_RPT="financial",dms_fy4,dms_cy4) -> 2008-09 | H32: =IF(dms_RPT="financial",dms_fy5,dms_cy5) -> 2009-10 | I32: =IF(dms_RPT="financial",dms_fy6,dms_cy6) -> 2010-11 | J32: =IF(dms_RPT="financial",dms_fy7,dms_cy7) -> 2011-12 | K32: =IF(dms_RPT="financial",dms_fy8,dms_cy8) -> 2012-13 | L32: =IF(dms_RPT="financial",dms_fy9,dms_cy9) -> 2013-14 | M32: =IF(dms_RPT="financial",dms_fy10,dms_cy10) -> 2014-15 | N32: =IF(dms_RPT="financial",dms_fy11,dms_cy11) -> 2015-16 | O32: =IF(dms_RPT="financial",dms_fy12,dms_cy12) -> 2016-17 | P32: =IF(dms_RPT="financial",dms_fy13,dms_cy13) -> 2017-18
A33: DQS03 | B33: System losses | C33: %
B35: 3.6.4 - CAPACITY UTILISATION
D36: (0's)
C37: Unit | D37: =IF(dms_RPT="financial",dms_fy1,dms_cy1) -> 2005-06 | E37: =IF(dms_RPT="financial",dms_fy2,dms_cy2) -> 2006-07 | F37: =IF(dms_RPT="financial",dms_fy3,dms_cy3) -> 2007-08 | G37: =IF(dms_RPT="financial",dms_fy4,dms_cy4) -> 2008-09 | H37: =IF(dms_RPT="financial",dms_fy5,dms_cy5) -> 2009-10 | I37: =IF(dms_RPT="financial",dms_fy6,dms_cy6) -> 2010-11 | J37: =IF(dms_RPT="financial",dms_fy7,dms_cy7) -> 2011-12 | K37: =IF(dms_RPT="financial",dms_fy8,dms_cy8) -> 2012-13 | L37: =IF(dms_RPT="financial",dms_fy9,dms_cy9) -> 2013-14 | M37: =IF(dms_RPT="financial",dms_fy10,dms_cy10) -> 2014-15 | N37: =IF(dms_RPT="financial",dms_fy11,dms_cy11) -> 2015-16 | O37: =IF(dms_RPT="financial",dms_fy12,dms_cy12) -> 2016-17 | P37: =IF(dms_RPT="financial",dms_fy13,dms_cy13) -> 2017-18
A38: DQS04 | B38: Overall utilisation | C38: %

Sheet 3.7 Operating environment
B1: REGULATORY REPORTING STATEMENT
B2: =dms_TradingName -> SA Power Networks
B3: =CONCATENATE("ECONOMIC BENCHMARKING ",IF(SUM(dms_SingleYear_Model)>0,CRY,CONCATENATE(dms_CRCP_FirstYear_Result," to ",dms_CRCP_FinalYear_Result))) -> ECONOMIC BENCHMARKING 2005-06
B4: 3.7 OPERATING ENVIRONMENT FACTORS
B6: There are THREE tables on this worksheet. Each table has been grouped (and sub-grouped) for ease of navigation. See the Instructions sheet on how to group or ungroup tables.
B8: 3.7.1 - DENSITY FACTORS
D9: (0's)
C10: Units | D10: =IF(dms_RPT="financial",dms_fy1,dms_cy1) -> 2005-06 | E10: =IF(dms_RPT="financial",dms_fy2,dms_cy2) -> 2006-07 | F10: =IF(dms_RPT="financial",dms_fy3,dms_cy3) -> 2007-08 | G10: =IF(dms_RPT="financial",dms_fy4,dms_cy4) -> 2008-09 | H10: =IF(dms_RPT="financial",dms_fy5,dms_cy5) -> 2009-10 | I10: =IF(dms_RPT="financial",dms_fy6,dms_cy6) -> 2010-11 | J10: =IF(dms_RPT="financial",dms_fy7,dms_cy7) -> 2011-12 | K10: =IF(dms_RPT="financial",dms_fy8,dms_cy8) -> 2012-13 | L10: =IF(dms_RPT="financial",dms_fy9,dms_cy9) -> 2013-14 | M10: =IF(dms_RPT="financial",dms_fy10,dms_cy10) -> 2014-15 | N10: =IF(dms_RPT="financial",dms_fy11,dms_cy11) -> 2015-16 | O10: =IF(dms_RPT="financial",dms_fy12,dms_cy12) -> 2016-17 | P10: =IF(dms_RPT="financial",dms_fy13,dms_cy13) -> 2017-18
A11: DOEF0101 | B11: Customer density | C11: Customer / km
A12: DOEF0102 | B12: Energy density | C12: MWh/customer
A13: DOEF0103 | B13: Demand density | C13: kVA / customer
B15: 3.7.2 - TERRAIN FACTORS
D16: (0's)
C17: Units | D17: =IF(dms_RPT="financial",dms_fy1,dms_cy1) -> 2005-06 | E17: =IF(dms_RPT="financial",dms_fy2,dms_cy2) -> 2006-07 | F17: =IF(dms_RPT="financial",dms_fy3,dms_cy3) -> 2007-08 | G17: =IF(dms_RPT="financial",dms_fy4,dms_cy4) -> 2008-09 | H17: =IF(dms_RPT="financial",dms_fy5,dms_cy5) -> 2009-10 | I17: =IF(dms_RPT="financial",dms_fy6,dms_cy6) -> 2010-11 | J17: =IF(dms_RPT="financial",dms_fy7,dms_cy7) -> 2011-12 | K17: =IF(dms_RPT="financial",dms_fy8,dms_cy8) -> 2012-13 | L17: =IF(dms_RPT="financial",dms_fy9,dms_cy9) -> 2013-14 | M17: =IF(dms_RPT="financial",dms_fy10,dms_cy10) -> 2014-15 | N17: =IF(dms_RPT="financial",dms_fy11,dms_cy11) -> 2015-16 | O17: =IF(dms_RPT="financial",dms_fy12,dms_cy12) -> 2016-17 | P17: =IF(dms_RPT="financial",dms_fy13,dms_cy13) -> 2017-18
A18: DOEF0201 | B18: Rural proportion | C18: %
A19: DOEF0202 | B19: Urban and CBD vegetation maintenance spans | C19: Number of spans
A20: DOEF0203 | B20: Rural vegetation maintenance spans | C20: Number of spans
A21: DOEF0204 | B21: Total vegetation maintenance spans | C21: Number of spans
A22: DOEF0205 | B22: Total number of spans | C22: Number of spans
A23: DOEF0206 | B23: Average urban and CBD vegetation maintenance span cycle | C23: Years
A24: DOEF0207 | B24: Average rural vegetation maintenance span cycle | C24: Years
A25: DOEF0208 | B25: Average number of trees per urban and CBD vegetation maintenance span | C25: Trees
A26: DOEF0209 | B26: Average number of trees per rural vegetation maintenance span | C26: Trees
A27: DOEF0210 | B27: Average number of defects per urban and CBD vegetation maintenance span | C27: Defects
A28: DOEF0211 | B28: Average number of defects per rural vegetation maintenance span | C28: Defects
A29: DOEF0212 | B29: Tropical proportion | C29: Spans
A30: DOEF0213 | B30: Standard vehicle access | C30: km
A31: DOEF0214 | B31: Bushfire risk | C31: Spans
B33: 3.7.3 - SERVICE AREA FACTORS
D34: (0's)
C35: Units | D35: =IF(dms_RPT="financial",dms_fy1,dms_cy1) -> 2005-06 | E35: =IF(dms_RPT="financial",dms_fy2,dms_cy2) -> 2006-07 | F35: =IF(dms_RPT="financial",dms_fy3,dms_cy3) -> 2007-08 | G35: =IF(dms_RPT="financial",dms_fy4,dms_cy4) -> 2008-09 | H35: =IF(dms_RPT="financial",dms_fy5,dms_cy5) -> 2009-10 | I35: =IF(dms_RPT="financial",dms_fy6,dms_cy6) -> 2010-11 | J35: =IF(dms_RPT="financial",dms_fy7,dms_cy7) -> 2011-12 | K35: =IF(dms_RPT="financial",dms_fy8,dms_cy8) -> 2012-13 | L35: =IF(dms_RPT="financial",dms_fy9,dms_cy9) -> 2013-14 | M35: =IF(dms_RPT="financial",dms_fy10,dms_cy10) -> 2014-15 | N35: =IF(dms_RPT="financial",dms_fy11,dms_cy11) -> 2015-16 | O35: =IF(dms_RPT="financial",dms_fy12,dms_cy12) -> 2016-17 | P35: =IF(dms_RPT="financial",dms_fy13,dms_cy13) -> 2017-18
A36: DOEF0301 | B36: Route Line length | C36: km

Sheet NSP Amendments
B1: =CONCATENATE(dms_TradingName," data amendments") -> SA Power Networks data amendments
B2: Amended Table | C2: Comments
